Workbook

Sheet Datos Generales
A1: ESTADOS FINANCIEROS - DATOS GENERALES
B3: NOMBRE DEL ENTE PÚBLICO | C3: Municipio de Valle de Santiago, Gto.
B5: ENTIDAD FEDERATIVA
B7: MUNICIPIO
B9: AÑO DEL INFORME
B11: PERIODO DE INFORME

Sheet Info General (hidden)
B3: ESTADOS FINANCIEROS - DATOS GENERALES
B6: NOMBRE DEL ENTE PÚBLICO | C6: =IF(TRIM(ENTE)="", IF(MUNICIPIO="No Aplica",IF(ENTIDAD_FEDERATIVA="Ciudad de México",ENTIDAD_FEDERATIVA,CONCATENATE("Gobierno del Estado de ",ENTIDAD_FEDERATIVA)),CONCATENATE(TRIM(ENTE),IF(ENTIDAD_FEDERATIVA="Ciudad de México","Delegación ","Municipio de "),MUNICIPIO, ", ",IF(ENTIDAD_FEDERATIVA="Ciudad de México",ENTIDAD_FEDERATIVA,CONCATENATE("Gobierno del Estado de ",ENTIDAD_FEDERATIVA)))),CONCATENATE(TRIM(ENTE),", ",IF(ENTIDAD_FEDERATIVA="Ciudad de México",ENTIDAD_FEDERATIVA,CONCATENATE("Gobierno del Estado de ",ENTIDAD_FEDERATIVA)))) -> Municipio de Valle de Santiago, Gto., Gobierno del Estado de Guanajuato
C7: =CONCATENATE(ENTE_PUBLICO," (a)") -> Municipio de Valle de Santiago, Gto., Gobierno del Estado de Guanajuato (a)
B8: ENTIDAD FEDERATIVA | C8: Guanajuato
B10: MUNICIPIO | C10: Valle de Santiago
C11: =IF(MUNICIPIO="No Aplica", IF(ENTIDAD_FEDERATIVA="Ciudad de México",ENTIDAD_FEDERATIVA,CONCATENATE("Gobierno del Estado de ",ENTIDAD_FEDERATIVA)),CONCATENATE(IF(ENTIDAD_FEDERATIVA="Ciudad de México","Delegación ","Municipio de "), MUNICIPIO, IF(ENTIDAD_FEDERATIVA="Ciudad de México",CONCATENATE(", ",ENTIDAD_FEDERATIVA),CONCATENATE(", Gobierno del Estado de ",ENTIDAD_FEDERATIVA)))) -> Municipio de Valle de Santiago, Gobierno del Estado de Guanajuato
B12: AÑO DEL INFORME | C12: 2022
B14: PERIODO DE INFORME | C14: Al 31 de diciembre de 2021 y al 30 de marzo de 2022 (b)
C15: 1
C16: Del 1 de enero al 30 de marzo de 2022 (b)
D18: =IF(PERIODO=1,CONCATENATE("Monto pagado de la inversión al 30 de marzo de ",ANIO_INFORME," (k)"),IF(PERIODO=2,CONCATENATE("Monto pagado de la inversión al 30 de junio de ",ANIO_INFORME," (k)"),IF(PERIODO=3,CONCATENATE("Monto pagado de la inversión al 30 de septiembre de ",ANIO_INFORME," (k)"),IF(PERIODO=4,CONCATENATE("Monto pagado de la inversión al 31 de diciembre de ",ANIO_INFORME," (k)"))))) -> Monto pagado de la inversión al 30 de marzo de 2022 (k) | E18: =IF(PERIODO=1,CONCATENATE("Monto pagado de la inversión actualizado al 30 de marzo de ",ANIO_INFORME," (l)"),IF(PERIODO=2,CONCATENATE("Monto pagado de la inversión actualizado al 30 de junio de ",ANIO_INFORME," (l)"),IF(PERIODO=3,CONCATENATE("Monto pagado de la inversión actualizado al 30 de septiembre de ",ANIO_INFORME," (l)"),IF(PERIODO=4,CONCATENATE("Monto pagado de la inversión actualizado al 31 de diciembre de ",ANIO_INFORME," (l)"))))) -> Monto pagado de la inversión actualizado al 30 de marzo de 2022 (l) | F18: =IF(PERIODO=1,CONCATENATE("Saldo pendiente por pagar de la inversión al 30 de marzo de ",ANIO_INFORME," (m = g – l)"),IF(PERIODO=2,CONCATENATE("Saldo pendiente por pagar de la inversión al 30 de junio de ",ANIO_INFORME," (m = g – l)"),IF(PERIODO=3,CONCATENATE("Saldo pendiente por pagar de la inversión al 30 de septiembre de ",ANIO_INFORME," (m = g – l)"),IF(PERIODO=4,CONCATENATE("Saldo pendiente por pagar de la inversión al 31 de diciembre de ",ANIO_INFORME," (m = g – l)"))))) -> Saldo pendiente por pagar de la inversión al 30 de marzo de 2022 (m = g – l)
D20: =CONCATENATE(ANIO_INFORME, " (d)") -> 2022 (d) | E20: =CONCATENATE("31 de diciembre de ",ANIO_INFORME-1, " (e)") -> 31 de diciembre de 2021 (e) | F20: =CONCATENATE("Saldo al 31 de diciembre de ",ANIO_INFORME-1, " (d)") -> Saldo al 31 de diciembre de 2021 (d)
D23: =ANIO_INFORME + 1 -> 2023 | E23: =CONCATENATE(ANIO_INFORME + 2, " (d)") -> 2024 (d) | F23: =CONCATENATE(ANIO_INFORME + 3, " (d)") -> 2025 (d) | G23: =CONCATENATE(ANIO_INFORME + 4, " (d)") -> 2026 (d) | H23: =CONCATENATE(ANIO_INFORME + 5, " (d)") -> 2027 (d) | I23: =CONCATENATE(ANIO_INFORME + 6, " (d)") -> 2028 (d)
D25: =CONCATENATE(ANIO_INFORME - 5, " ",CHAR(185)," (c)") -> 2017 ¹ (c) | E25: =CONCATENATE(ANIO_INFORME - 4, " ",CHAR(185)," (c)") -> 2018 ¹ (c) | F25: =CONCATENATE(ANIO_INFORME - 3, " ",CHAR(185)," (c)") -> 2019 ¹ (c) | G25: =CONCATENATE(ANIO_INFORME - 2, " ",CHAR(185)," (c)") -> 2020 ¹ (c) | H25: =CONCATENATE(ANIO_INFORME - 1, " ",CHAR(185)," (c)") -> 2021 ¹ (c) | I25: =ANIO_INFORME -> 2022
D29: MIN_VALUE | E29: MAX_VALUE
D30: -1.797693135e+100 | E30: 1.797693135e+100
D32: MIN_FECHA | E32: MAX_FECHA
D33: 2000-01-01 | E33: 2050-12-31

Sheet datos (hidden)
B1: ENTIDAD FEDERATIVA | E1: Aguascalientes | G1: Baja California | I1: Baja California Sur | K1: Campeche | M1: Coahuila de Zaragoza | O1: Colima | Q1: Chiapas | S1: Chihuahua | U1: Ciudad de México | W1: Durango | Y1: Guanajuato | AA1: Guerrero | AC1: Hidalgo | AE1: Jalisco | AG1: México | AI1: Michoacán de Ocampo | AK1: Morelos | AM1: Nayarit | AO1: Nuevo León | AQ1: Oaxaca | AS1: Puebla | AU1: Querétaro | AW1: Quintana Roo | AY1: San Luis Potosí | BA1: Sinaloa | BC1: Sonora | BE1: Tabasco | BG1: Tamaulipas | BI1: Tlaxcala | BK1: Veracruz de Ignacio de la Llave | BM1: Yucatán | BO1: Zacatecas
A2: 1 | B2: Aguascalientes | D2: 0 | E2: No Aplica | F2: 0 | G2: No Aplica | H2: 0 | I2: No Aplica | J2: 0 | K2: No Aplica | L2: 0 | M2: No Aplica | N2: 0 | O2: No Aplica | P2: 0 | Q2: No Aplica | R2: 0 | S2: No Aplica | T2: 0 | U2: No Aplica | V2: 0 | W2: No Aplica | X2: 0 | Y2: No Aplica | Z2: 0 | AA2: No Aplica | AB2: 0 | AC2: No Aplica | AD2: 0 | AE2: No Aplica | AF2: 0 | AG2: No Aplica | AH2: 0 | AI2: No Aplica | AJ2: 0 | AK2: No Aplica | AL2: 0 | AM2: No Aplica | AN2: 0 | AO2: No Aplica | AP2: 0 | AQ2: No Aplica | AR2: 0 | AS2: No Aplica | AT2: 0 | AU2: No Aplica | AV2: 0 | AW2: No Aplica | AX2: 0 | AY2: No Aplica | AZ2: 0 | BA2: No Aplica | BB2: 0 | BC2: No Aplica | BD2: 0 | BE2: No Aplica | BF2: 0 | BG2: No Aplica | BH2: 0 | BI2: No Aplica | BJ2: 0 | BK2: No Aplica | BL2: 0 | BM2: No Aplica | BN2: 0 | BO2: No Aplica
A3: 2 | B3: Baja California | D3: 1 | E3: Aguascalientes | F3: 2 | G3: Ensenada | H3: 3 | I3: Comondú | J3: 4 | K3: Calakmul | L3: 5 | M3: Abasolo | N3: 6 | O3: Armería | P3: 7 | Q3: Acacoyagua | R3: 8 | S3: Ahumada | T3: 9 | U3: Álvaro Obregón | V3: 10 | W3: Canatlán | X3: 11 | Y3: Abasolo | Z3: 12 | AA3: Acapulco de Juárez | AB3: 13 | AC3: Acatlán | AD3: 14 | AE3: Acatic | AF3: 15 | AG3: Acambay | AH3: 16 | AI3: Acuitzio | AJ3: 17 | AK3: Amacuzac | AL3: 18 | AM3: Acaponeta | AN3: 19 | AO3: Abasolo | AP3: 20 | AQ3: Abejones | AR3: 21 | AS3: Acajete | AT3: 22 | AU3: Amealco de Bonfil | AV3: 23 | AW3: Bacalar | AX3: 24 | AY3: Ahualulco | AZ3: 25 | BA3: Ahome | BB3: 26 | BC3: Aconchi | BD3: 27 | BE3: Balancán | BF3: 28 | BG3: Abasolo | BH3: 29 | BI3: Acuamanala de Miguel Hidalgo | BJ3: 30 | BK3: Acajete | BL3: 31 | BM3: Abalá | BN3: 32 | BO3: Apozol
A4: 3 | B4: Baja California Sur | D4: 1 | E4: Asientos | F4: 2 | G4: Mexicali | H4: 3 | I4: La Paz | J4: 4 | K4: Calkiní | L4: 5 | M4: Acuña | N4: 6 | O4: Colima | P4: 7 | Q4: Acala | R4: 8 | S4: Aldama | T4: 9 | U4: Azcapotzalco | V4: 10 | W4: Canelas | X4: 11 | Y4: Acámbaro | Z4: 12 | AA4: Acatepec | AB4: 13 | AC4: Acaxochitlán | AD4: 14 | AE4: Acatlán de Juárez | AF4: 15 | AG4: Acolman | AH4: 16 | AI4: Aguililla | AJ4: 17 | AK4: Atlatlahucan | AL4: 18 | AM4: Ahuacatlán | AN4: 19 | AO4: Agualeguas | AP4: 20 | AQ4: Acatlán de Pérez Figueroa | AR4: 21 | AS4: Acateno | AT4: 22 | AU4: Arroyo Seco | AV4: 23 | AW4: Benito Juárez | AX4: 24 | AY4: Alaquines | AZ4: 25 | BA4: Angostura | BB4: 26 | BC4: Agua Prieta | BD4: 27 | BE4: Cárdenas | BF4: 28 | BG4: Aldama | BH4: 29 | BI4: Amaxac de Guerrero | BJ4: 30 | BK4: Acatlán | BL4: 31 | BM4: Acanceh | BN4: 32 | BO4: Apulco
A5: 4 | B5: Campeche | D5: 1 | E5: Calvillo | F5: 2 | G5: Playas de Rosarito | H5: 3 | I5: Loreto | J5: 4 | K5: Campeche | L5: 5 | M5: Allende | N5: 6 | O5: Comala | P5: 7 | Q5: Acapetahua | R5: 8 | S5: Allende | T5: 9 | U5: Benito Juárez | V5: 10 | W5: Coneto de Comonfort | X5: 11 | Y5: Apaseo el Alto | Z5: 12 | AA5: Ahuacuotzingo | AB5: 13 | AC5: Actopan | AD5: 14 | AE5: Ahualulco de Mercado | AF5: 15 | AG5: Aculco | AH5: 16 | AI5: Álvaro Obregón | AJ5: 17 | AK5: Axochiapan | AL5: 18 | AM5: Amatlán de Cañas | AN5: 19 | AO5: Allende | AP5: 20 | AQ5: Ánimas Trujano | AR5: 21 | AS5: Acatlán | AT5: 22 | AU5: Cadereyta de Montes | AV5: 23 | AW5: Cozumel | AX5: 24 | AY5: Aquismón | AZ5: 25 | BA5: Badiraguato | BB5: 26 | BC5: Alamos | BD5: 27 | BE5: Centla | BF5: 28 | BG5: Altamira | BH5: 29 | BI5: Apetatitlán de Antonio Carvajal | BJ5: 30 | BK5: Acayucan | BL5: 31 | BM5: Akil | BN5: 32 | BO5: Atolinga
A6: 5 | B6: Coahuila de Zaragoza | D6: 1 | E6: Cosío | F6: 2 | G6: Tecate | H6: 3 | I6: Los Cabos | J6: 4 | K6: Candelaria | L6: 5 | M6: Arteaga | N6: 6 | O6: Coquimatlán | P6: 7 | Q6: Aldama | R6: 8 | S6: Aquiles Serdán | T6: 9 | U6: Coyoacán | V6: 10 | W6: Cuencamé | X6: 11 | Y6: Apaseo el Grande | Z6: 12 | AA6: Ajuchitlán del Progreso | AB6: 13 | AC6: Agua Blanca de Iturbide | AD6: 14 | AE6: Amacueca | AF6: 15 | AG6: Almoloya de Alquisiras | AH6: 16 | AI6: Angamacutiro | AJ6: 17 | AK6: Ayala | AL6: 18 | AM6: Bahía de Banderas | AN6: 19 | AO6: Anáhuac | AP6: 20 | AQ6: Asunción Cacalotepec | AR6: 21 | AS6: Acatzingo | AT6: 22 | AU6: Colón | AV6: 23 | AW6: Felipe Carrillo Puerto | AX6: 24 | AY6: Armadillo de los Infante | AZ6: 25 | BA6: Choix | BB6: 26 | BC6: Altar | BD6: 27 | BE6: Centro | BF6: 28 | BG6: Antiguo Morelos | BH6: 29 | BI6: Apizaco | BJ6: 30 | BK6: Actopan | BL6: 31 | BM6: Baca | BN6: 32 | BO6: Benito Juárez
A7: 6 | B7: Colima | D7: 1 | E7: El Llano | F7: 2 | G7: Tijuana | H7: 3 | I7: Mulegé | J7: 4 | K7: Carmen | L7: 5 | M7: Candela | N7: 6 | O7: Cuauhtémoc | P7: 7 | Q7: Altamirano | R7: 8 | S7: Ascensión | T7: 9 | U7: Cuajimalpa de Morelos | V7: 10 | W7: Durango | X7: 11 | Y7: Atarjea | Z7: 12 | AA7: Alcozauca de Guerrero | AB7: 13 | AC7: Ajacuba | AD7: 14 | AE7: Amatitán | AF7: 15 | AG7: Almoloya de Juárez | AH7: 16 | AI7: Angangueo | AJ7: 17 | AK7: Coatlán del Río | AL7: 18 | AM7: Compostela | AN7: 19 | AO7: Apodaca | AP7: 20 | AQ7: Asunción Cuyotepeji | AR7: 21 | AS7: Acteopan | AT7: 22 | AU7: Corregidora | AV7: 23 | AW7: Isla Mujeres | AX7: 24 | AY7: Axtla de Terrazas | AZ7: 25 | BA7: Concordia | BB7: 26 | BC7: Arivechi | BD7: 27 | BE7: Comalcalco | BF7: 28 | BG7: Burgos | BH7: 29 | BI7: Atlangatepec | BJ7: 30 | BK7: Acula | BL7: 31 | BM7: Bokobá | BN7: 32 | BO7: Calera
A8: 7 | B8: Chiapas | D8: 1 | E8: Jesús María | J8: 4 | K8: Champotón | L8: 5 | M8: Castaños | N8: 6 | O8: Ixtlahuacán | P8: 7 | Q8: Amatán | R8: 8 | S8: Bachíniva | T8: 9 | U8: Cuauhtémoc | V8: 10 | W8: El Oro | X8: 11 | Y8: Celaya | Z8: 12 | AA8: Alpoyeca | AB8: 13 | AC8: Alfajayucan | AD8: 14 | AE8: Ameca | AF8: 15 | AG8: Almoloya del Río | AH8: 16 | AI8: Apatzingán | AJ8: 17 | AK8: Cuautla | AL8: 18 | AM8: Del Nayar | AN8: 19 | AO8: Aramberri | AP8: 20 | AQ8: Asunción Ixtaltepec | AR8: 21 | AS8: Ahuacatlán | AT8: 22 | AU8: El Marqués | AV8: 23 | AW8: José María Morelos | AX8: 24 | AY8: Cárdenas | AZ8: 25 | BA8: Cosalá | BB8: 26 | BC8: Arizpe | BD8: 27 | BE8: Cunduacán | BF8: 28 | BG8: Bustamante | BH8: 29 | BI8: Atltzayanca | BJ8: 30 | BK8: Acultzingo | BL8: 31 | BM8: Buctzotz | BN8: 32 | BO8: Cañitas de Felipe Pescador
A9: 8 | B9: Chihuahua | D9: 1 | E9: Pabellón de Arteaga | J9: 4 | K9: Escárcega | L9: 5 | M9: Cuatro Ciénegas | N9: 6 | O9: Manzanillo | P9: 7 | Q9: Amatenango de la Frontera | R9: 8 | S9: Balleza | T9: 9 | U9: Gustavo A. Madero | V9: 10 | W9: General Simón Bolívar | X9: 11 | Y9: Comonfort | Z9: 12 | AA9: Apaxtla | AB9: 13 | AC9: Almoloya | AD9: 14 | AE9: Arandas | AF9: 15 | AG9: Amanalco | AH9: 16 | AI9: Aporo | AJ9: 17 | AK9: Cuernavaca | AL9: 18 | AM9: Huajicori | AN9: 19 | AO9: Bustamante | AP9: 20 | AQ9: Asunción Nochixtlán | AR9: 21 | AS9: Ahuatlán | AT9: 22 | AU9: Ezequiel Montes | AV9: 23 | AW9: Lázaro Cárdenas | AX9: 24 | AY9: Catorce | AZ9: 25 | BA9: Culiacán | BB9: 26 | BC9: Atil | BD9: 27 | BE9: Emiliano Zapata | BF9: 28 | BG9: Camargo | BH9: 29 | BI9: Benito Juárez | BJ9: 30 | BK9: Agua Dulce | BL9: 31 | BM9: Cacalchén | BN9: 32 | BO9: Chalchihuites
A10: 9 | B10: Ciudad de México | D10: 1 | E10: Rincón de Romos | J10: 4 | K10: Hecelchakán | L10: 5 | M10: Escobedo | N10: 6 | O10: Minatitlán | P10: 7 | Q10: Amatenango del Valle | R10: 8 | S10: Batopilas | T10: 9 | U10: Iztacalco | V10: 10 | W10: Gómez Palacio | X10: 11 | Y10: Coroneo | Z10: 12 | AA10: Arcelia | AB10: 13 | AC10: Apan | AD10: 14 | AE10: Atemajac de Brizuela | AF10: 15 | AG10: Amatepec | AH10: 16 | AI10: Aquila | AJ10: 17 | AK10: Emiliano Zapata | AL10: 18 | AM10: Ixtlán del Río | AN10: 19 | AO10: Cadereyta Jiménez | AP10: 20 | AQ10: Asunción Ocotlán | AR10: 21 | AS10: Ahuazotepec | AT10: 22 | AU10: Huimilpan | AV10: 23 | AW10: Othón P. Blanco | AX10: 24 | AY10: Cedral | AZ10: 25 | BA10: El Fuerte | BB10: 26 | BC10: Bacadéhuachi | BD10: 27 | BE10: Huimanguillo | BF10: 28 | BG10: Casas | BH10: 29 | BI10: Calpulalpan | BJ10: 30 | BK10: Álamo Temapache | BL10: 31 | BM10: Calotmul | BN10: 32 | BO10: Concepción del Oro
A11: 10 | B11: Durango | D11: 1 | E11: San Francisco de los Romo | J11: 4 | K11: Hopelchén | L11: 5 | M11: Francisco I. Madero | N11: 6 | O11: Tecomán | P11: 7 | Q11: Angel Albino Corzo | R11: 8 | S11: Bocoyna | T11: 9 | U11: Iztapalapa | V11: 10 | W11: Guadalupe Victoria | X11: 11 | Y11: Cortazar | Z11: 12 | AA11: Atenango del Río | AB11: 13 | AC11: Atitalaquia | AD11: 14 | AE11: Atengo | AF11: 15 | AG11: Amecameca | AH11: 16 | AI11: Ario | AJ11: 17 | AK11: Huitzilac | AL11: 18 | AM11: Jala | AN11: 19 | AO11: Carmen | AP11: 20 | AQ11: Asunción Tlacolulita | AR11: 21 | AS11: Ahuehuetitla | AT11: 22 | AU11: Jalpan de Serra | AV11: 23 | AW11: Solidaridad | AX11: 24 | AY11: Cerritos | AZ11: 25 | BA11: Elota | BB11: 26 | BC11: Bacanora | BD11: 27 | BE11: Jalapa | BF11: 28 | BG11: Ciudad Madero | BH11: 29 | BI11: Chiautempan | BJ11: 30 | BK11: Alpatláhuac | BL11: 31 | BM11: Cansahcab | BN11: 32 | BO11: Cuauhtémoc
A12: 11 | B12: Guanajuato | D12: 1 | E12: San José de Gracia | J12: 4 | K12: Palizada | L12: 5 | M12: Frontera | N12: 6 | O12: Villa de Álvarez | P12: 7 | Q12: Arriaga | R12: 8 | S12: Buenaventura | T12: 9 | U12: La Magdalena Contreras | V12: 10 | W12: Guanaceví | X12: 11 | Y12: Cuerámaro | Z12: 12 | AA12: Atlamajalcingo del Monte | AB12: 13 | AC12: Atlapexco | AD12: 14 | AE12: Atenguillo | AF12: 15 | AG12: Apaxco | AH12: 16 | AI12: Arteaga | AJ12: 17 | AK12: Jantetelco | AL12: 18 | AM12: La Yesca | AN12: 19 | AO12: Cerralvo | AP12: 20 | AQ12: Ayoquezco de Aldama | AR12: 21 | AS12: Ajalpan | AT12: 22 | AU12: Landa de Matamoros | AV12: 23 | AW12: Tulum | AX12: 24 | AY12: Cerro de San Pedro | AZ12: 25 | BA12: Escuinapa | BB12: 26 | BC12: Bacerac | BD12: 27 | BE12: Jalpa de Méndez | BF12: 28 | BG12: Cruillas | BH12: 29 | BI12: Contla de Juan Cuamatzi | BJ12: 30 | BK12: Alto Lucero de Gutiérrez Barrios | BL12: 31 | BM12: Cantamayec | BN12: 32 | BO12: El Plateado de Joaquín Amaro
A13: 12 | B13: Guerrero | D13: 1 | E13: Tepezalá | J13: 4 | K13: Tenabo | L13: 5 | M13: General Cepeda | P13: 7 | Q13: Bejucal de Ocampo | R13: 8 | S13: Camargo | T13: 9 | U13: Miguel Hidalgo | V13: 10 | W13: Hidalgo | X13: 11 | Y13: Doctor Mora | Z13: 12 | AA13: Atlixtac | AB13: 13 | AC13: Atotonilco de Tula | AD13: 14 | AE13: Atotonilco el Alto | AF13: 15 | AG13: Atenco | AH13: 16 | AI13: Briseñas | AJ13: 17 | AK13: Jiutepec | AL13: 18 | AM13: Rosamorada | AN13: 19 | AO13: China | AP13: 20 | AQ13: Ayotzintepec | AR13: 21 | AS13: Albino Zertuche | AT13: 22 | AU13: Pedro Escobedo | AX13: 24 | AY13: Charcas | AZ13: 25 | BA13: Guamuchil | BB13: 26 | BC13: Bacoachi | BD13: 27 | BE13: Jonuta | BF13: 28 | BG13: El Mante | BH13: 29 | BI13: Cuapiaxtla | BJ13: 30 | BK13: Altotonga | BL13: 31 | BM13: Celestún | BN13: 32 | BO13: El Salvador
A14: 13 | B14: Hidalgo | L14: 5 | M14: Guerrero | P14: 7 | Q14: Belizario Domínguez | R14: 8 | S14: Carichí | T14: 9 | U14: Milpa Alta | V14: 10 | W14: Indé | X14: 11 | Y14: Dolores Hidalgo Cuna de la Independencia Nacional | Z14: 12 | AA14: Atoyac de Álvarez | AB14: 13 | AC14: Atotonilco el Grande | AD14: 14 | AE14: Atoyac | AF14: 15 | AG14: Atizapán | AH14: 16 | AI14: Buenavista | AJ14: 17 | AK14: Jojutla | AL14: 18 | AM14: Ruíz | AN14: 19 | AO14: Ciénega de Flores | AP14: 20 | AQ14: Calihualá | AR14: 21 | AS14: Aljojuca | AT14: 22 | AU14: Peñamiller | AX14: 24 | AY14: Ciudad del Maíz | AZ14: 25 | BA14: Guasave | BB14: 26 | BC14: Bácum | BD14: 27 | BE14: Macuspana | BF14: 28 | BG14: Gómez Farías | BH14: 29 | BI14: Cuaxomulco | BJ14: 30 | BK14: Alvarado | BL14: 31 | BM14: Cenotillo | BN14: 32 | BO14: Fresnillo
A15: 14 | B15: Jalisco | L15: 5 | M15: Hidalgo | P15: 7 | Q15: Bella Vista | R15: 8 | S15: Casas Grandes | T15: 9 | U15: Tláhuac | V15: 10 | W15: Lerdo | X15: 11 | Y15: Guanajuato | Z15: 12 | AA15: Ayutla de los Libres | AB15: 13 | AC15: Calnali | AD15: 14 | AE15: Autlán de Navarro | AF15: 15 | AG15: Atizapán de Zaragoza | AH15: 16 | AI15: Carácuaro | AJ15: 17 | AK15: Jonacatepec | AL15: 18 | AM15: San Blas | AN15: 19 | AO15: Dr. Arroyo | AP15: 20 | AQ15: Candelaria Loxicha | AR15: 21 | AS15: Altepexi | AT15: 22 | AU15: Pinal de Amoles | AX15: 24 | AY15: Ciudad Fernández | AZ15: 25 | BA15: Mazatlán | BB15: 26 | BC15: Banámichi | BD15: 27 | BE15: Nacajuca | BF15: 28 | BG15: González | BH15: 29 | BI15: El Carmen Tequexquitla | BJ15: 30 | BK15: Amatitlán | BL15: 31 | BM15: Chacsinkín | BN15: 32 | BO15: Genaro Codina
A16: 15 | B16: México | L16: 5 | M16: Jiménez | P16: 7 | Q16: Benemérito de las Américas | R16: 8 | S16: Chihuahua | T16: 9 | U16: Tlalpan | V16: 10 | W16: Mapimí | X16: 11 | Y16: Huanímaro | Z16: 12 | AA16: Azoyú | AB16: 13 | AC16: Cardonal | AD16: 14 | AE16: Ayotlán | AF16: 15 | AG16: Atlacomulco | AH16: 16 | AI16: Charapan | AJ16: 17 | AK16: Mazatepec | AL16: 18 | AM16: San Pedro Lagunillas | AN16: 19 | AO16: Dr. Coss | AP16: 20 | AQ16: Capulálpam de Méndez | AR16: 21 | AS16: Amixtlán | AT16: 22 | AU16: Querétaro | AX16: 24 | AY16: Ciudad Valles | AZ16: 25 | BA16: Mocorito | BB16: 26 | BC16: Baviácora | BD16: 27 | BE16: Paraíso | BF16: 28 | BG16: Güémez | BH16: 29 | BI16: Emiliano Zapata | BJ16: 30 | BK16: Amatlán de los Reyes | BL16: 31 | BM16: Chankom | BN16: 32 | BO16: General Enrique Estrada
A17: 16 | B17: Michoacán de Ocampo | L17: 5 | M17: Juárez | P17: 7 | Q17: Berriozábal | R17: 8 | S17: Chínipas | T17: 9 | U17: Venustiano Carranza | V17: 10 | W17: Mezquital | X17: 11 | Y17: Irapuato | Z17: 12 | AA17: Benito Juárez | AB17: 13 | AC17: Chapantongo | AD17: 14 | AE17: Ayutla | AF17: 15 | AG17: Atlautla | AH17: 16 | AI17: Charo | AJ17: 17 | AK17: Miacatlán | AL17: 18 | AM17: Santa María del Oro | AN17: 19 | AO17: Dr. González | AP17: 20 | AQ17: Chahuites | AR17: 21 | AS17: Amozoc | AT17: 22 | AU17: San Joaquín | AX17: 24 | AY17: Coxcatlán | AZ17: 25 | BA17: Navolato | BB17: 26 | BC17: Bavispe | BD17: 27 | BE17: Tacotalpa | BF17: 28 | BG17: Guerrero | BH17: 29 | BI17: Españita | BJ17: 30 | BK17: Angel R. Cabada | BL17: 31 | BM17: Chapab | BN17: 32 | BO17: General Francisco R. Murguía
A18: 17 | B18: Morelos | L18: 5 | M18: Lamadrid | P18: 7 | Q18: Bochil | R18: 8 | S18: Coronado | T18: 9 | U18: Xochimilco | V18: 10 | W18: Nazas | X18: 11 | Y18: Jaral del Progreso | Z18: 12 | AA18: Buenavista de Cuéllar | AB18: 13 | AC18: Chapulhuacán | AD18: 14 | AE18: Bolaños | AF18: 15 | AG18: Axapusco | AH18: 16 | AI18: Chavinda | AJ18: 17 | AK18: Ocuituco | AL18: 18 | AM18: Santiago Ixcuintla | AN18: 19 | AO18: Galeana | AP18: 20 | AQ18: Chalcatongo de Hidalgo | AR18: 21 | AS18: Aquixtla | AT18: 22 | AU18: San Juan del Río | AX18: 24 | AY18: Ebano | AZ18: 25 | BA18: Rosario | BB18: 26 | BC18: Benito Juárez | BD18: 27 | BE18: Teapa | BF18: 28 | BG18: Gustavo Díaz Ordaz | BH18: 29 | BI18: Huamantla | BJ18: 30 | BK18: Apazapan | BL18: 31 | BM18: Chemax | BN18: 32 | BO18: General Pánfilo Natera
A19: 18 | B19: Nayarit | L19: 5 | M19: Matamoros | P19: 7 | Q19: Cacahoatán | R19: 8 | S19: Coyame del Sotol | V19: 10 | W19: Nombre de Dios | X19: 11 | Y19: Jerécuaro | Z19: 12 | AA19: Chilapa de Álvarez | AB19: 13 | AC19: Chilcuautla | AD19: 14 | AE19: Cabo Corrientes | AF19: 15 | AG19: Ayapango | AH19: 16 | AI19: Cherán | AJ19: 17 | AK19: Puente de Ixtla | AL19: 18 | AM19: Tecuala | AN19: 19 | AO19: García | AP19: 20 | AQ19: Chiquihuitlán de Benito Juárez | AR19: 21 | AS19: Atempan | AT19: 22 | AU19: Tequisquiapan | AX19: 24 | AY19: El Naranjo | AZ19: 25 | BA19: Salvador Alvarado | BB19: 26 | BC19: Benjamín Hill | BD19: 27 | BE19: Tenosique | BF19: 28 | BG19: Hidalgo | BH19: 29 | BI19: Hueyotlipan | BJ19: 30 | BK19: Aquila | BL19: 31 | BM19: Chichimilá | BN19: 32 | BO19: Guadalupe
A20: 19 | B20: Nuevo León | L20: 5 | M20: Monclova | P20: 7 | Q20: Catazajá | R20: 8 | S20: Cuauhtémoc | V20: 10 | W20: Nuevo Ideal | X20: 11 | Y20: León | Z20: 12 | AA20: Chilpancingo de los Bravo | AB20: 13 | AC20: Cuautepec de Hinojosa | AD20: 14 | AE20: Cañadas de Obregón | AF20: 15 | AG20: Calimaya | AH20: 16 | AI20: Chilchota | AJ20: 17 | AK20: Temixco | AL20: 18 | AM20: Tepic | AN20: 19 | AO20: Gral. Bravo | AP20: 20 | AQ20: Ciénega de Zimatlán | AR20: 21 | AS20: Atexcal | AT20: 22 | AU20: Tolimán | AX20: 24 | AY20: Guadalcázar | AZ20: 25 | BA20: San Ignacio | BB20: 26 | BC20: Caborca | BF20: 28 | BG20: Jaumave | BH20: 29 | BI20: Ixtacuixtla de Mariano Matamoros | BJ20: 30 | BK20: Astacinga | BL20: 31 | BM20: Chicxulub Pueblo | BN20: 32 | BO20: Huanusco
A21: 20 | B21: Oaxaca | L21: 5 | M21: Morelos | P21: 7 | Q21: Chalchihuitán | R21: 8 | S21: Cusihuiriachi | V21: 10 | W21: Ocampo | X21: 11 | Y21: Manuel Doblado | Z21: 12 | AA21: Coahuayutla de José María Izazaga | AB21: 13 | AC21: El Arenal | AD21: 14 | AE21: Casimiro Castillo | AF21: 15 | AG21: Capulhuac | AH21: 16 | AI21: Chinicuila | AJ21: 17 | AK21: Temoac | AL21: 18 | AM21: Tuxpan | AN21: 19 | AO21: Gral. Escobedo | AP21: 20 | AQ21: Ciudad Ixtepec | AR21: 21 | AS21: Atlequizayan | AX21: 24 | AY21: Huehuetlán | AZ21: 25 | BA21: Sinaloa | BB21: 26 | BC21: Cajeme | BF21: 28 | BG21: Jiménez | BH21: 29 | BI21: Ixtenco | BJ21: 30 | BK21: Atlahuilco | BL21: 31 | BM21: Chikindzonot | BN21: 32 | BO21: Jalpa
A22: 21 | B22: Puebla | L22: 5 | M22: Múzquiz | P22: 7 | Q22: Chamula | R22: 8 | S22: Delicias | V22: 10 | W22: Otáez | X22: 11 | Y22: Moroleón | Z22: 12 | AA22: Cochoapa el Grande | AB22: 13 | AC22: Eloxochitlán | AD22: 14 | AE22: Chapala | AF22: 15 | AG22: Chalco | AH22: 16 | AI22: Chucándiro | AJ22: 17 | AK22: Tepalcingo | AL22: 18 | AM22: Xalisco | AN22: 19 | AO22: Gral. Terán | AP22: 20 | AQ22: Coatecas Altas | AR22: 21 | AS22: Atlixco | AX22: 24 | AY22: Lagunillas | BB22: 26 | BC22: Cananea | BF22: 28 | BG22: Llera | BH22: 29 | BI22: La Magdalena Tlaltelulco | BJ22: 30 | BK22: Atoyac | BL22: 31 | BM22: Chocholá | BN22: 32 | BO22: Jerez
A23: 22 | B23: Querétaro | L23: 5 | M23: Nadadores | P23: 7 | Q23: Chanal | R23: 8 | S23: Dr. Belisario Domínguez | V23: 10 | W23: Pánuco de Coronado | X23: 11 | Y23: Ocampo | Z23: 12 | AA23: Cocula | AB23: 13 | AC23: Emiliano Zapata | AD23: 14 | AE23: Chimaltitán | AF23: 15 | AG23: Chapa de Mota | AH23: 16 | AI23: Churintzio | AJ23: 17 | AK23: Tepoztlán | AN23: 19 | AO23: Gral. Treviño | AP23: 20 | AQ23: Coicoyán de las Flores | AR23: 21 | AS23: Atoyatempan | AX23: 24 | AY23: Matehuala | BB23: 26 | BC23: Carbó | BF23: 28 | BG23: Mainero | BH23: 29 | BI23: Lázaro Cárdenas | BJ23: 30 | BK23: Atzacan | BL23: 31 | BM23: Chumayel | BN23: 32 | BO23: Jiménez del Teul
A24: 23 | B24: Quintana Roo | L24: 5 | M24: Nava | P24: 7 | Q24: Chapultenango | R24: 8 | S24: El Tule | V24: 10 | W24: Peñón Blanco | X24: 11 | Y24: Pénjamo | Z24: 12 | AA24: Copala | AB24: 13 | AC24: Epazoyucan | AD24: 14 | AE24: Chiquilistlán | AF24: 15 | AG24: Chapultepec | AH24: 16 | AI24: Churumuco | AJ24: 17 | AK24: Tetecala | AN24: 19 | AO24: Gral. Zaragoza | AP24: 20 | AQ24: Concepción Buenavista | AR24: 21 | AS24: Atzala | AX24: 24 | AY24: Matlapa | BB24: 26 | BC24: Cucurpe | BF24: 28 | BG24: Matamoros | BH24: 29 | BI24: Mazatecochco de José María Morelos | BJ24: 30 | BK24: Atzalan | BL24: 31 | BM24: Conkal | BN24: 32 | BO24: Juan Aldama
A25: 24 | B25: San Luis Potosí | L25: 5 | M25: Ocampo | P25: 7 | Q25: Chenalhó | R25: 8 | S25: Galeana | V25: 10 | W25: Poanas | X25: 11 | Y25: Pueblo Nuevo | Z25: 12 | AA25: Copalillo | AB25: 13 | AC25: Francisco I. Madero | AD25: 14 | AE25: Cihuatlán | AF25: 15 | AG25: Chiautla | AH25: 16 | AI25: Coahuayana | AJ25: 17 | AK25: Tetela del Volcán | AN25: 19 | AO25: Gral. Zuazua | AP25: 20 | AQ25: Concepción Pápalo | AR25: 21 | AS25: Atzitzihuacán | AX25: 24 | AY25: Mexquitic de Carmona | BB25: 26 | BC25: Cumpas | BF25: 28 | BG25: Méndez | BH25: 29 | BI25: Muñoz de Domingo Arenas | BJ25: 30 | BK25: Ayahualulco | BL25: 31 | BM25: Cousey | BN25: 32 | BO25: Juchipila
A26: 25 | B26: Sinaloa | L26: 5 | M26: Parras | P26: 7 | Q26: Chiapa de Corzo | R26: 8 | S26: Gómez Farías | V26: 10 | W26: Pueblo Nuevo | X26: 11 | Y26: Purísima del Rincón | Z26: 12 | AA26: Copanatoyac | AB26: 13 | AC26: Huasca de Ocampo | AD26: 14 | AE26: Cocula | AF26: 15 | AG26: Chicoloapan | AH26: 16 | AI26: Coalcomán de Vázquez Pallares | AJ26: 17 | AK26: Tlalnepantla | AN26: 19 | AO26: Guadalupe | AP26: 20 | AQ26: Constancia del Rosario | AR26: 21 | AS26: Atzitzintla | AX26: 24 | AY26: Moctezuma | BB26: 26 | BC26: Divisaderos | BF26: 28 | BG26: Mier | BH26: 29 | BI26: Nanacamilpa de Mariano Arista | BJ26: 30 | BK26: Banderilla | BL26: 31 | BM26: Cuncunul | BN26: 32 | BO26: Loreto
A27: 26 | B27: Sonora | L27: 5 | M27: Piedras Negras | P27: 7 | Q27: Chiapilla | R27: 8 | S27: Gran Morelos | V27: 10 | W27: Rodeo | X27: 11 | Y27: Romita | Z27: 12 | AA27: Coyuca de Benítez | AB27: 13 | AC27: Huautla | AD27: 14 | AE27: Colotlán | AF27: 15 | AG27: Chiconcuac | AH27: 16 | AI27: Coeneo | AJ27: 17 | AK27: Tlaltizapán de Zapata | AN27: 19 | AO27: Hidalgo | AP27: 20 | AQ27: Cosolapa | AR27: 21 | AS27: Axutla | AX27: 24 | AY27: Rayón | BB27: 26 | BC27: Empalme | BF27: 28 | BG27: Miguel Alemán | BH27: 29 | BI27: Natívitas | BJ27: 30 | BK27: Benito Juárez | BL27: 31 | BM27: Cuzamá | BN27: 32 | BO27: Luis Moya
A28: 27 | B28: Tabasco | L28: 5 | M28: Progreso | P28: 7 | Q28: Chicoasén | R28: 8 | S28: Guachochi | V28: 10 | W28: San Bernardo | X28: 11 | Y28: Salamanca | Z28: 12 | AA28: Coyuca de Catalán | AB28: 13 | AC28: Huazalingo | AD28: 14 | AE28: Concepción de Buenos Aires | AF28: 15 | AG28: Chimalhuacán | AH28: 16 | AI28: Cojumatlán de Régules | AJ28: 17 | AK28: Tlaquiltenango | AN28: 19 | AO28: Higueras | AP28: 20 | AQ28: Cosoltepec | AR28: 21 | AS28: Ayotoxco de Guerrero | AX28: 24 | AY28: Rioverde | BB28: 26 | BC28: Etchojoa | BF28: 28 | BG28: Miquihuana | BH28: 29 | BI28: Panotla | BJ28: 30 | BK28: Boca del Río | BL28: 31 | BM28: Dzán | BN28: 32 | BO28: Mazapil
A29: 28 | B29: Tamaulipas | L29: 5 | M29: Ramos Arizpe | P29: 7 | Q29: Chicomuselo | R29: 8 | S29: Guadalupe | V29: 10 | W29: San Dimas | X29: 11 | Y29: Salvatierra | Z29: 12 | AA29: Cuajinicuilapa | AB29: 13 | AC29: Huehuetla | AD29: 14 | AE29: Cuautitlán de García Barragán | AF29: 15 | AG29: Coacalco de Berriozábal | AH29: 16 | AI29: Contepec | AJ29: 17 | AK29: Tlayacapan | AN29: 19 | AO29: Hualahuises | AP29: 20 | AQ29: Cuilápam de Guerrero | AR29: 21 | AS29: Calpan | AX29: 24 | AY29: Salinas | BB29: 26 | BC29: Fronteras | BF29: 28 | BG29: Nuevo Laredo | BH29: 29 | BI29: Papalotla de Xicohténcatl | BJ29: 30 | BK29: Calcahualco | BL29: 31 | BM29: Dzemul | BN29: 32 | BO29: Melchor Ocampo
A30: 29 | B30: Tlaxcala | L30: 5 | M30: Sabinas | P30: 7 | Q30: Chilón | R30: 8 | S30: Guadalupe y Calvo | V30: 10 | W30: San Juan de Guadalupe | X30: 11 | Y30: San Diego de la Unión | Z30: 12 | AA30: Cualác | AB30: 13 | AC30: Huejutla de Reyes | AD30: 14 | AE30: Cuautla | AF30: 15 | AG30: Coatepec Harinas | AH30: 16 | AI30: Copándaro | AJ30: 17 | AK30: Totolapan | AN30: 19 | AO30: Iturbide | AP30: 20 | AQ30: Cuyamecalco Villa de Zaragoza | AR30: 21 | AS30: Caltepec | AX30: 24 | AY30: San Antonio | BB30: 26 | BC30: General Plutarco Elías Calles | BF30: 28 | BG30: Nuevo Morelos | BH30: 29 | BI30: San Damián Texóloc | BJ30: 30 | BK30: Camarón de Tejeda | BL30: 31 | BM30: Dzidzantún | BN30: 32 | BO30: Mezquital del Oro
A31: 30 | B31: Veracruz de Ignacio de la Llave | L31: 5 | M31: Sacramento | P31: 7 | Q31: Cintalapa | R31: 8 | S31: Guazapares | V31: 10 | W31: San Juan del Río | X31: 11 | Y31: San Felipe | Z31: 12 | AA31: Cuautepec | AB31: 13 | AC31: Huichapan | AD31: 14 | AE31: Cuquío | AF31: 15 | AG31: Cocotitlán | AH31: 16 | AI31: Cotija | AJ31: 17 | AK31: Xochitepec | AN31: 19 | AO31: Juárez | AP31: 20 | AQ31: El Barrio de la Soledad | AR31: 21 | AS31: Camocuautla | AX31: 24 | AY31: San Ciro de Acosta | BB31: 26 | BC31: Granados | BF31: 28 | BG31: Ocampo | BH31: 29 | BI31: San Francisco Tetlanohcan | BJ31: 30 | BK31: Camerino Z. Mendoza | BL31: 31 | BM31: Dzilam de Bravo | BN31: 32 | BO31: Miguel Auza
A32: 31 | B32: Yucatán | L32: 5 | M32: Saltillo | P32: 7 | Q32: Coapilla | R32: 8 | S32: Guerrero | V32: 10 | W32: San Luis del Cordero | X32: 11 | Y32: San Francisco del Rincón | Z32: 12 | AA32: Cuetzala del Progreso | AB32: 13 | AC32: Ixmiquilpan | AD32: 14 | AE32: Degollado | AF32: 15 | AG32: Coyotepec | AH32: 16 | AI32: Cuitzeo | AJ32: 17 | AK32: Yautepec | AN32: 19 | AO32: Lampazos de Naranjo | AP32: 20 | AQ32: El Espinal | AR32: 21 | AS32: Cañada Morelos | AX32: 24 | AY32: San Luis Potosí | BB32: 26 | BC32: Guaymas | BF32: 28 | BG32: Padilla | BH32: 29 | BI32: San Jerónimo Zacualpan | BJ32: 30 | BK32: Carlos A. Carrillo | BL32: 31 | BM32: Dzilam González | BN32: 32 | BO32: Momax
A33: 32 | B33: Zacatecas | L33: 5 | M33: San Buenaventura | P33: 7 | Q33: Comitán de Domínguez | R33: 8 | S33: Hidalgo del Parral | V33: 10 | W33: San Pedro del Gallo | X33: 11 | Y33: San José Iturbide | Z33: 12 | AA33: Cutzamala de Pinzón | AB33: 13 | AC33: Jacala de Ledezma | AD33: 14 | AE33: Ejutla | AF33: 15 | AG33: Cuautitlán | AH33: 16 | AI33: Ecuandureo | AJ33: 17 | AK33: Yecapixtla | AN33: 19 | AO33: Linares | AP33: 20 | AQ33: Eloxochitlán de Flores Magón | AR33: 21 | AS33: Caxhuacan | AX33: 24 | AY33: San Martín Chalchicuautla | BB33: 26 | BC33: Hermosillo | BF33: 28 | BG33: Palmillas | BH33: 29 | BI33: San José Teacalco | BJ33: 30 | BK33: Carrillo Puerto | BL33: 31 | BM33: Dzitás | BN33: 32 | BO33: Monte Escobedo
L34: 5 | M34: San Juan de Sabinas | P34: 7 | Q34: Copainalá | R34: 8 | S34: Huejotitán | V34: 10 | W34: Santa Clara | X34: 11 | Y34: San Luis de la Paz | Z34: 12 | AA34: Eduardo Neri | AB34: 13 | AC34: Jaltocán | AD34: 14 | AE34: El Arenal | AF34: 15 | AG34: Cuautitlán Izcalli | AH34: 16 | AI34: Epitacio Huerta | AJ34: 17 | AK34: Zacatepec | AN34: 19 | AO34: Los Aldamas | AP34: 20 | AQ34: Fresnillo de Trujano | AR34: 21 | AS34: Chalchicomula de Sesma | AX34: 24 | AY34: San Nicolás Tolentino | BB34: 26 | BC34: Huachinera | BF34: 28 | BG34: Reynosa | BH34: 29 | BI34: San Juan Huactzinco | BJ34: 30 | BK34: Castillo de Teayo | BL34: 31 | BM34: Dzoncauich | BN34: 32 | BO34: Morelos
L35: 5 | M35: San Pedro | P35: 7 | Q35: El Bosque | R35: 8 | S35: Ignacio Zaragoza | V35: 10 | W35: Santiago Papasquiaro | X35: 11 | Y35: San Miguel de Allende | Z35: 12 | AA35: Florencio Villarreal | AB35: 13 | AC35: Juárez Hidalgo | AD35: 14 | AE35: El Grullo | AF35: 15 | AG35: Donato Guerra | AH35: 16 | AI35: Erongarícuaro | AJ35: 17 | AK35: Zacualpan | AN35: 19 | AO35: Los Herreras | AP35: 20 | AQ35: Guadalupe de Ramírez | AR35: 21 | AS35: Chapulco | AX35: 24 | AY35: San Vicente Tancuayalab | BB35: 26 | BC35: Huásabas | BF35: 28 | BG35: Río Bravo | BH35: 29 | BI35: San Lorenzo Axocomanitla | BJ35: 30 | BK35: Catemaco | BL35: 31 | BM35: Espita | BN35: 32 | BO35: Moyahua de Estrada
L36: 5 | M36: Sierra Mojada | P36: 7 | Q36: El Parral | R36: 8 | S36: Janos | V36: 10 | W36: Súchil | X36: 11 | Y36: Santa Catarina | Z36: 12 | AA36: General Canuto A. Neri | AB36: 13 | AC36: La Misión | AD36: 14 | AE36: El Limón | AF36: 15 | AG36: Ecatepec de Morelos | AH36: 16 | AI36: Gabriel Zamora | AN36: 19 | AO36: Los Ramones | AP36: 20 | AQ36: Guadalupe Etla | AR36: 21 | AS36: Chiautla | AX36: 24 | AY36: Santa Catarina | BB36: 26 | BC36: Huatabampo | BF36: 28 | BG36: San Carlos | BH36: 29 | BI36: San Lucas Tecopilco | BJ36: 30 | BK36: Cazones de Herrera | BL36: 31 | BM36: Halachó | BN36: 32 | BO36: Nochistlán de Mejía
L37: 5 | M37: Torreón | P37: 7 | Q37: El Porvenir | R37: 8 | S37: Jiménez | V37: 10 | W37: Tamazula | X37: 11 | Y37: Santa Cruz de Juventino Rosas | Z37: 12 | AA37: General Heliodoro Castillo | AB37: 13 | AC37: Lolotla | AD37: 14 | AE37: El Salto | AF37: 15 | AG37: Ecatzingo | AH37: 16 | AI37: Hidalgo | AN37: 19 | AO37: Marín | AP37: 20 | AQ37: Guelatao de Juárez | AR37: 21 | AS37: Chiautzingo | AX37: 24 | AY37: Santa María del Río | BB37: 26 | BC37: Huépac | BF37: 28 | BG37: San Fernando | BH37: 29 | BI37: San Pablo del Monte | BJ37: 30 | BK37: Cerro Azul | BL37: 31 | BM37: Hocabá | BN37: 32 | BO37: Noria de Ángeles
L38: 5 | M38: Viesca | P38: 7 | Q38: Emiliano Zapata | R38: 8 | S38: Juárez | V38: 10 | W38: Tepehuanes | X38: 11 | Y38: Santiago Maravatío | Z38: 12 | AA38: Huamuxtitlán | AB38: 13 | AC38: Metepec | AD38: 14 | AE38: Encarnación de Díaz | AF38: 15 | AG38: El Oro | AH38: 16 | AI38: Huandacareo | AN38: 19 | AO38: Melchor Ocampo | AP38: 20 | AQ38: Guevea de Humboldt | AR38: 21 | AS38: Chichiquila | AX38: 24 | AY38: Santo Domingo | BB38: 26 | BC38: Imuris | BF38: 28 | BG38: San Nicolás | BH38: 29 | BI38: Sanctórum de Lázaro Cárdenas | BJ38: 30 | BK38: Chacaltianguis | BL38: 31 | BM38: Hoctún | BN38: 32 | BO38: Ojocaliente
L39: 5 | M39: Villa Unión | P39: 7 | Q39: Escuintla | R39: 8 | S39: Julimes | V39: 10 | W39: Tlahualilo | X39: 11 | Y39: Silao | Z39: 12 | AA39: Huitzuco de los Figueroa | AB39: 13 | AC39: Metztitlán | AD39: 14 | AE39: Etzatlán | AF39: 15 | AG39: Huehuetoca | AH39: 16 | AI39: Huaniqueo | AN39: 19 | AO39: Mier y Noriega | AP39: 20 | AQ39: Heroica Ciudad de Ejutla de Crespo | AR39: 21 | AS39: Chiconcuautla | AX39: 24 | AY39: Soledad de Graciano Sánchez | BB39: 26 | BC39: La Colorada | BF39: 28 | BG39: Soto la Marina | BH39: 29 | BI39: Santa Ana Nopalucan | BJ39: 30 | BK39: Chalma | BL39: 31 | BM39: Homún | BN39: 32 | BO39: Pánuco
L40: 5 | M40: Zaragoza | P40: 7 | Q40: Francisco León | R40: 8 | S40: La Cruz | V40: 10 | W40: Topia | X40: 11 | Y40: Tarandacuao | Z40: 12 | AA40: Iguala de la Independencia | AB40: 13 | AC40: Mineral de la Reforma | AD40: 14 | AE40: Gómez Farías | AF40: 15 | AG40: Hueypoxtla | AH40: 16 | AI40: Huetamo | AN40: 19 | AO40: Mina | AP40: 20 | AQ40: Heroica Ciudad de Huajuapan de León | AR40: 21 | AS40: Chietla | AX40: 24 | AY40: Tamasopo | BB40: 26 | BC40: Magdalena | BF40: 28 | BG40: Tampico | BH40: 29 | BI40: Santa Apolonia Teacalco | BJ40: 30 | BK40: Chiconamel | BL40: 31 | BM40: Huhí | BN40: 32 | BO40: Pinos
P41: 7 | Q41: Frontera Comalapa | R41: 8 | S41: López | V41: 10 | W41: Vicente Guerrero | X41: 11 | Y41: Tarimoro | Z41: 12 | AA41: Igualapa | AB41: 13 | AC41: Mineral del Chico | AD41: 14 | AE41: Guachinango | AF41: 15 | AG41: Huixquilucan | AH41: 16 | AI41: Huiramba | AN41: 19 | AO41: Montemorelos | AP41: 20 | AQ41: Heroica Ciudad de Juchitán de Zaragoza | AR41: 21 | AS41: Chigmecatitlán | AX41: 24 | AY41: Tamazunchale | BB41: 26 | BC41: Mazatán | BF41: 28 | BG41: Tula | BH41: 29 | BI41: Santa Catarina Ayometla | BJ41: 30 | BK41: Chiconquiaco | BL41: 31 | BM41: Hunucmá | BN41: 32 | BO41: Río Grande
P42: 7 | Q42: Frontera Hidalgo | R42: 8 | S42: Madera | X42: 11 | Y42: Tierra Blanca | Z42: 12 | AA42: Iliatenco | AB42: 13 | AC42: Mineral del Monte | AD42: 14 | AE42: Guadalajara | AF42: 15 | AG42: Isidro Fabela | AH42: 16 | AI42: Indaparapeo | AN42: 19 | AO42: Monterrey | AP42: 20 | AQ42: Heroica Ciudad de Tlaxiaco | AR42: 21 | AS42: Chignahuapan | AX42: 24 | AY42: Tampacán | BB42: 26 | BC42: Moctezuma | BF42: 28 | BG42: Valle Hermoso | BH42: 29 | BI42: Santa Cruz Quilehtla | BJ42: 30 | BK42: Chicontepec | BL42: 31 | BM42: Ixil | BN42: 32 | BO42: Sain Alto
P43: 7 | Q43: Huehuetán | R43: 8 | S43: Maguarichi | X43: 11 | Y43: Uriangato | Z43: 12 | AA43: Ixcateopan de Cuauhtémoc | AB43: 13 | AC43: Mixquiahuala de Juárez | AD43: 14 | AE43: Hostotipaquillo | AF43: 15 | AG43: Ixtapaluca | AH43: 16 | AI43: Irimbo | AN43: 19 | AO43: Parás | AP43: 20 | AQ43: Heroica Villa Tezoatlán de Segura y Luna, Cuna de la Independencia de Oaxaca | AR43: 21 | AS43: Chignautla | AX43: 24 | AY43: Tampamolón Corona | BB43: 26 | BC43: Naco | BF43: 28 | BG43: Victoria | BH43: 29 | BI43: Santa Cruz Tlaxcala | BJ43: 30 | BK43: Chinameca | BL43: 31 | BM43: Izamal | BN43: 32 | BO43: Santa María de la Paz
B44: PERIODO | E44: AÑO | P44: 7 | Q44: Huitiupán | R44: 8 | S44: Manuel Benavides | X44: 11 | Y44: Valle de Santiago | Z44: 12 | AA44: José Joaquín de Herrera | AB44: 13 | AC44: Molango de Escamilla | AD44: 14 | AE44: Huejúcar | AF44: 15 | AG44: Ixtapan de la Sal | AH44: 16 | AI44: Ixtlán | AN44: 19 | AO44: Pesquería | AP44: 20 | AQ44: Huautepec | AR44: 21 | AS44: Chila | AX44: 24 | AY44: Tamuín | BB44: 26 | BC44: Nácori Chico | BF44: 28 | BG44: Villagrán | BH44: 29 | BI44: Santa Isabel Xiloxoxtla | BJ44: 30 | BK44: Chinampa de Gorostiza | BL44: 31 | BM44: Kanasín | BN44: 32 | BO44: Sombrerete
B45: Primer trimestre | E45: 2017 | P45: 7 | Q45: Huixtán | R45: 8 | S45: Matachí | X45: 11 | Y45: Victoria | Z45: 12 | AA45: Juan R. Escudero | AB45: 13 | AC45: Nicolás Flores | AD45: 14 | AE45: Huejuquilla el Alto | AF45: 15 | AG45: Ixtapan del Oro | AH45: 16 | AI45: Jacona | AN45: 19 | AO45: Rayones | AP45: 20 | AQ45: Huautla de Jiménez | AR45: 21 | AS45: Chila de la Sal | AX45: 24 | AY45: Tancanhuitz | BB45: 26 | BC45: Nacozari de García | BF45: 28 | BG45: Xicoténcatl | BH45: 29 | BI45: Tenancingo | BJ45: 30 | BK45: Chocamán | BL45: 31 | BM45: Kantunil | BN45: 32 | BO45: Susticacán
B46: Segundo trimestre | E46: 2018 | P46: 7 | Q46: Huixtla | R46: 8 | S46: Matamoros | X46: 11 | Y46: Villagrán | Z46: 12 | AA46: Juchitán | AB46: 13 | AC46: Nopala de Villagrán | AD46: 14 | AE46: Ixtlahuacán de los Membrillos | AF46: 15 | AG46: Ixtlahuaca | AH46: 16 | AI46: Jiménez | AN46: 19 | AO46: Sabinas Hidalgo | AP46: 20 | AQ46: Ixpantepec Nieves | AR46: 21 | AS46: Chilchotla | AX46: 24 | AY46: Tanlajás | BB46: 26 | BC46: Navojoa | BH46: 29 | BI46: Teolocholco | BJ46: 30 | BK46: Chontla | BL46: 31 | BM46: Kaua | BN46: 32 | BO46: Tabasco
B47: Tercer trimestre | E47: 2019 | P47: 7 | Q47: Ixhuatán | R47: 8 | S47: Meoqui | X47: 11 | Y47: Xichú | Z47: 12 | AA47: La Unión de Isidoro Montes de Oca | AB47: 13 | AC47: Omitlán de Juárez | AD47: 14 | AE47: Ixtlahuacán del Río | AF47: 15 | AG47: Jaltenco | AH47: 16 | AI47: Jiquilpan | AN47: 19 | AO47: Salinas Victoria | AP47: 20 | AQ47: Ixtlán de Juárez | AR47: 21 | AS47: Chinantla | AX47: 24 | AY47: Tanquián de Escobedo | BB47: 26 | BC47: Nogales | BH47: 29 | BI47: Tepetitla de Lardizábal | BJ47: 30 | BK47: Chumatlán | BL47: 31 | BM47: Kinchil | BN47: 32 | BO47: Tepechitlán
B48: Cuarto trimestre | E48: 2020 | P48: 7 | Q48: Ixtacomitán | R48: 8 | S48: Morelos | X48: 11 | Y48: Yuriria | Z48: 12 | AA48: Leonardo Bravo | AB48: 13 | AC48: Pachuca de Soto | AD48: 14 | AE48: Jalostotitlán | AF48: 15 | AG48: Jilotepec | AH48: 16 | AI48: José Sixto Verduzco | AN48: 19 | AO48: San Nicolás de los Garza | AP48: 20 | AQ48: La Compañía | AR48: 21 | AS48: Coatepec | AX48: 24 | AY48: Tierra Nueva | BB48: 26 | BC48: Onavas | BH48: 29 | BI48: Tepeyanco | BJ48: 30 | BK48: Citlaltépetl | BL48: 31 | BM48: Kopomá | BN48: 32 | BO48: Tepetongo
E49: 2021 | P49: 7 | Q49: Ixtapa | R49: 8 | S49: Moris | Z49: 12 | AA49: Malinaltepec | AB49: 13 | AC49: Pacula | AD49: 14 | AE49: Jamay | AF49: 15 | AG49: Jilotzingo | AH49: 16 | AI49: Juárez | AN49: 19 | AO49: San Pedro Garza García | AP49: 20 | AQ49: La Pe | AR49: 21 | AS49: Coatzingo | AX49: 24 | AY49: Vanegas | BB49: 26 | BC49: Opodepe | BH49: 29 | BI49: Terrenate | BJ49: 30 | BK49: Coacoatzintla | BL49: 31 | BM49: Mama | BN49: 32 | BO49: Teúl de González Ortega
E50: 2022 | P50: 7 | Q50: Ixtapangajoya | R50: 8 | S50: Namiquipa | Z50: 12 | AA50: Marquelia | AB50: 13 | AC50: Pisaflores | AD50: 14 | AE50: Jesús María | AF50: 15 | AG50: Jiquipilco | AH50: 16 | AI50: Jungapeo | AN50: 19 | AO50: Santa Catarina | AP50: 20 | AQ50: La Reforma | AR50: 21 | AS50: Cohetzala | AX50: 24 | AY50: Venado | BB50: 26 | BC50: Oquitoa | BH50: 29 | BI50: Tetla de la Solidaridad | BJ50: 30 | BK50: Coahuitlán | BL50: 31 | BM50: Maní | BN50: 32 | BO50: Tlaltenango de Sánchez Román
E51: 2023 | P51: 7 | Q51: Jiquipilas | R51: 8 | S51: Nonoava | Z51: 12 | AA51: Mártir de Cuilapan | AB51: 13 | AC51: Progreso de Obregón | AD51: 14 | AE51: Jilotlán de los Dolores | AF51: 15 | AG51: Jocotitlán | AH51: 16 | AI51: La Huacana | AN51: 19 | AO51: Santiago | AP51: 20 | AQ51: La Trinidad Vista Hermosa | AR51: 21 | AS51: Cohuecan | AX51: 24 | AY51: Villa de Arista | BB51: 26 | BC51: Pitiquito | BH51: 29 | BI51: Tetlatlahuca | BJ51: 30 | BK51: Coatepec | BL51: 31 | BM51: Maxcanú | BN51: 32 | BO51: Trancoso
E52: 2024 | P52: 7 | Q52: Jitotol | R52: 8 | S52: Nuevo Casas Grandes | Z52: 12 | AA52: Metlatónoc | AB52: 13 | AC52: San Agustín Metzquititlán | AD52: 14 | AE52: Jocotepec | AF52: 15 | AG52: Joquicingo | AH52: 16 | AI52: La Piedad | AN52: 19 | AO52: Vallecillo | AP52: 20 | AQ52: Loma Bonita | AR52: 21 | AS52: Coronango | AX52: 24 | AY52: Villa de Arriaga | BB52: 26 | BC52: Puerto Peñasco | BH52: 29 | BI52: Tlaxcala | BJ52: 30 | BK52: Coatzacoalcos | BL52: 31 | BM52: Mayapán | BN52: 32 | BO52: Trinidad García de la Cadena
E53: 2025 | P53: 7 | Q53: Juárez | R53: 8 | S53: Ocampo | Z53: 12 | AA53: Mochitlán | AB53: 13 | AC53: San Agustín Tlaxiaca | AD53: 14 | AE53: Juanacatlán | AF53: 15 | AG53: Juchitepec | AH53: 16 | AI53: Lagunillas | AN53: 19 | AO53: Villaldama | AP53: 20 | AQ53: Magdalena Apasco | AR53: 21 | AS53: Coxcatlán | AX53: 24 | AY53: Villa de Guadalupe | BB53: 26 | BC53: Quiriego | BH53: 29 | BI53: Tlaxco | BJ53: 30 | BK53: Coatzintla | BL53: 31 | BM53: Mérida | BN53: 32 | BO53: Valparaíso
E54: 2026 | P54: 7 | Q54: La Concordia | R54: 8 | S54: Ojinaga | Z54: 12 | AA54: Olinalá | AB54: 13 | AC54: San Bartolo Tutotepec | AD54: 14 | AE54: Juchitlán | AF54: 15 | AG54: La Paz | AH54: 16 | AI54: Lázaro Cárdenas | AP54: 20 | AQ54: Magdalena Jaltepec | AR54: 21 | AS54: Coyomeapan | AX54: 24 | AY54: Villa de la Paz | BB54: 26 | BC54: Rayón | BH54: 29 | BI54: Tocatlán | BJ54: 30 | BK54: Coetzala | BL54: 31 | BM54: Mocochá | BN54: 32 | BO54: Vetagrande
E55: 2027 | P55: 7 | Q55: La Grandeza | R55: 8 | S55: Praxedis G. Guerrero | Z55: 12 | AA55: Ometepec | AB55: 13 | AC55: San Felipe Orizatlán | AD55: 14 | AE55: La Barca | AF55: 15 | AG55: Lerma | AH55: 16 | AI55: Los Reyes | AP55: 20 | AQ55: Magdalena Mixtepec | AR55: 21 | AS55: Coyotepec | AX55: 24 | AY55: Villa de Ramos | BB55: 26 | BC55: Rosario | BH55: 29 | BI55: Totolac | BJ55: 30 | BK55: Colipa | BL55: 31 | BM55: Motul | BN55: 32 | BO55: Villa de Cos
E56: 2028 | P56: 7 | Q56: La Independencia | R56: 8 | S56: Riva Palacio | Z56: 12 | AA56: Pedro Ascencio Alquisiras | AB56: 13 | AC56: San Salvador | AD56: 14 | AE56: La Huerta | AF56: 15 | AG56: Luvianos | AH56: 16 | AI56: Madero | AP56: 20 | AQ56: Magdalena Ocotlán | AR56: 21 | AS56: Cuapiaxtla de Madero | AX56: 24 | AY56: Villa de Reyes | BB56: 26 | BC56: Sahuaripa | BH56: 29 | BI56: Tzompantepec | BJ56: 30 | BK56: Comapa | BL56: 31 | BM56: Muna | BN56: 32 | BO56: Villa García
E57: 2029 | P57: 7 | Q57: La Libertad | R57: 8 | S57: Rosales | Z57: 12 | AA57: Petatlán | AB57: 13 | AC57: Santiago de Anaya | AD57: 14 | AE57: La Manzanilla de la Paz | AF57: 15 | AG57: Malinalco | AH57: 16 | AI57: Maravatío | AP57: 20 | AQ57: Magdalena Peñasco | AR57: 21 | AS57: Cuautempan | AX57: 24 | AY57: Villa Hidalgo | BB57: 26 | BC57: San Felipe de Jesús | BH57: 29 | BI57: Xaloztoc | BJ57: 30 | BK57: Córdoba | BL57: 31 | BM57: Muxupip | BN57: 32 | BO57: Villa González Ortega
E58: 2030 | P58: 7 | Q58: La Trinitaria | R58: 8 | S58: Rosario | Z58: 12 | AA58: Pilcaya | AB58: 13 | AC58: Santiago Tulantepec de Lugo Guerrero | AD58: 14 | AE58: Lagos de Moreno | AF58: 15 | AG58: Melchor Ocampo | AH58: 16 | AI58: Marcos Castellanos | AP58: 20 | AQ58: Magdalena Teitipac | AR58: 21 | AS58: Cuautinchán | AX58: 24 | AY58: Villa Juárez | BB58: 26 | BC58: San Ignacio Río Muerto | BH58: 29 | BI58: Xaltocan | BJ58: 30 | BK58: Cosamaloapan de Carpio | BL58: 31 | BM58: Opichén | BN58: 32 | BO58: Villa Hidalgo
E59: 2031 | P59: 7 | Q59: Larráinzar | R59: 8 | S59: San Francisco de Borja | Z59: 12 | AA59: Pungarabato | AB59: 13 | AC59: Singuilucan | AD59: 14 | AE59: Magdalena | AF59: 15 | AG59: Metepec | AH59: 16 | AI59: Morelia | AP59: 20 | AQ59: Magdalena Tequisistlán | AR59: 21 | AS59: Cuautlancingo | AX59: 24 | AY59: Xilitla | BB59: 26 | BC59: San Javier | BH59: 29 | BI59: Xicohtzinco | BJ59: 30 | BK59: Cosautlán de Carvajal | BL59: 31 | BM59: Oxkutzcab | BN59: 32 | BO59: Villanueva
E60: 2032 | P60: 7 | Q60: Las Margaritas | R60: 8 | S60: San Francisco de Conchos | Z60: 12 | AA60: Quechultenango | AB60: 13 | AC60: Tasquillo | AD60: 14 | AE60: Mascota | AF60: 15 | AG60: Mexicaltzingo | AH60: 16 | AI60: Morelos | AP60: 20 | AQ60: Magdalena Tlacotepec | AR60: 21 | AS60: Cuayuca de Andrade | AX60: 24 | AY60: Zaragoza | BB60: 26 | BC60: San Luis Río Colorado | BH60: 29 | BI60: Yauhquemehcan | BJ60: 30 | BK60: Coscomatepec | BL60: 31 | BM60: Panabá | BN60: 32 | BO60: Zacatecas
E61: 2033 | P61: 7 | Q61: Las Rosas | R61: 8 | S61: San Francisco del Oro | Z61: 12 | AA61: San Luis Acatlán | AB61: 13 | AC61: Tecozautla | AD61: 14 | AE61: Mazamitla | AF61: 15 | AG61: Morelos | AH61: 16 | AI61: Múgica | AP61: 20 | AQ61: Magdalena Yodocono de Porfirio Díaz | AR61: 21 | AS61: Cuetzalan del Progreso | BB61: 26 | BC61: San Miguel de Horcasitas | BH61: 29 | BI61: Zacatelco | BJ61: 30 | BK61: Cosoleacaque | BL61: 31 | BM61: Peto
E62: 2034 | P62: 7 | Q62: Mapastepec | R62: 8 | S62: Santa Bárbara | Z62: 12 | AA62: San Marcos | AB62: 13 | AC62: Tenango de Doria | AD62: 14 | AE62: Mexticacán | AF62: 15 | AG62: Naucalpan de Juárez | AH62: 16 | AI62: Nahuatzen | AP62: 20 | AQ62: Magdalena Zahuatlán | AR62: 21 | AS62: Cuyoaco | BB62: 26 | BC62: San Pedro de la Cueva | BH62: 29 | BI62: Ziltlaltépec de Trinidad Sánchez Santos | BJ62: 30 | BK62: Cotaxtla | BL62: 31 | BM62: Progreso
E63: 2035 | P63: 7 | Q63: Maravilla Tenejapa | R63: 8 | S63: Santa Isabel | Z63: 12 | AA63: San Miguel Totolapan | AB63: 13 | AC63: Tepeapulco | AD63: 14 | AE63: Mezquitic | AF63: 15 | AG63: Nextlalpan | AH63: 16 | AI63: Nocupétaro | AP63: 20 | AQ63: Mariscala de Juárez | AR63: 21 | AS63: Domingo Arenas | BB63: 26 | BC63: Santa Ana | BJ63: 30 | BK63: Coxquihui | BL63: 31 | BM63: Quintana Roo
E64: 2036 | P64: 7 | Q64: Marqués de Comillas | R64: 8 | S64: Satevó | Z64: 12 | AA64: Taxco de Alarcón | AB64: 13 | AC64: Tepehuacán de Guerrero | AD64: 14 | AE64: Mixtlán | AF64: 15 | AG64: Nezahualcóyotl | AH64: 16 | AI64: Nuevo Parangaricutiro | AP64: 20 | AQ64: Mártires de Tacubaya | AR64: 21 | AS64: Eloxochitlán | BB64: 26 | BC64: Santa Cruz | BJ64: 30 | BK64: Coyutla | BL64: 31 | BM64: Río Lagartos
E65: 2037 | P65: 7 | Q65: Mazapa de Madero | R65: 8 | S65: Saucillo | Z65: 12 | AA65: Tecoanapa | AB65: 13 | AC65: Tepeji del Río de Ocampo | AD65: 14 | AE65: Ocotlán | AF65: 15 | AG65: Nicolás Romero | AH65: 16 | AI65: Nuevo Urecho | AP65: 20 | AQ65: Matías Romero Avendaño | AR65: 21 | AS65: Epatlán | BB65: 26 | BC65: Sáric | BJ65: 30 | BK65: Cuichapa | BL65: 31 | BM65: Sacalum
E66: 2038 | P66: 7 | Q66: Mazatán | R66: 8 | S66: Temósachic | Z66: 12 | AA66: Técpan de Galeana | AB66: 13 | AC66: Tepetitlán | AD66: 14 | AE66: Ojuelos de Jalisco | AF66: 15 | AG66: Nopaltepec | AH66: 16 | AI66: Numarán | AP66: 20 | AQ66: Mazatlán Villa de Flores | AR66: 21 | AS66: Esperanza | BB66: 26 | BC66: Soyopa | BJ66: 30 | BK66: Cuitláhuac | BL66: 31 | BM66: Samahil
E67: 2039 | P67: 7 | Q67: Metapa | R67: 8 | S67: Urique | Z67: 12 | AA67: Teloloapan | AB67: 13 | AC67: Tetepango | AD67: 14 | AE67: Pihuamo | AF67: 15 | AG67: Ocoyoacac | AH67: 16 | AI67: Ocampo | AP67: 20 | AQ67: Mesones Hidalgo | AR67: 21 | AS67: Francisco Z. Mena | BB67: 26 | BC67: Suaqui Grande | BJ67: 30 | BK67: El Higo | BL67: 31 | BM67: San Felipe
E68: 2040 | P68: 7 | Q68: Mezcalapa | R68: 8 | S68: Uruachi | Z68: 12 | AA68: Tepecoacuilco de Trujano | AB68: 13 | AC68: Tezontepec de Aldama | AD68: 14 | AE68: Poncitlán | AF68: 15 | AG68: Ocuilan | AH68: 16 | AI68: Pajacuarán | AP68: 20 | AQ68: Miahuatlán de Porfirio Díaz | AR68: 21 | AS68: General Felipe Ángeles | BB68: 26 | BC68: Tepache | BJ68: 30 | BK68: Emiliano Zapata | BL68: 31 | BM68: Sanahcat
E69: 2041 | P69: 7 | Q69: Mitontic | R69: 8 | S69: Valle de Zaragoza | Z69: 12 | AA69: Tetipac | AB69: 13 | AC69: Tianguistengo | AD69: 14 | AE69: Puerto Vallarta | AF69: 15 | AG69: Otumba | AH69: 16 | AI69: Panindícuaro | AP69: 20 | AQ69: Mixistlán de la Reforma | AR69: 21 | AS69: Guadalupe | BB69: 26 | BC69: Trincheras | BJ69: 30 | BK69: Espinal | BL69: 31 | BM69: Santa Elena
E70: 2042 | P70: 7 | Q70: Montecristo de Guerrero | Z70: 12 | AA70: Tixtla de Guerrero | AB70: 13 | AC70: Tizayuca | AD70: 14 | AE70: Quitupan | AF70: 15 | AG70: Otzoloapan | AH70: 16 | AI70: Paracho | AP70: 20 | AQ70: Monjas | AR70: 21 | AS70: Guadalupe Victoria | BB70: 26 | BC70: Tubutama | BJ70: 30 | BK70: Filomeno Mata | BL70: 31 | BM70: Seyé
E71: 2043 | P71: 7 | Q71: Motozintla | Z71: 12 | AA71: Tlacoachistlahuaca | AB71: 13 | AC71: Tlahuelilpan | AD71: 14 | AE71: San Cristóbal de la Barranca | AF71: 15 | AG71: Otzolotepec | AH71: 16 | AI71: Parácuaro | AP71: 20 | AQ71: Natividad | AR71: 21 | AS71: Hermenegildo Galeana | BB71: 26 | BC71: Ures | BJ71: 30 | BK71: Fortín | BL71: 31 | BM71: Sinanché
E72: 2044 | P72: 7 | Q72: Nicolás Ruíz | Z72: 12 | AA72: Tlacoapa | AB72: 13 | AC72: Tlahuiltepa | AD72: 14 | AE72: San Diego de Alejandría | AF72: 15 | AG72: Ozumba | AH72: 16 | AI72: Pátzcuaro | AP72: 20 | AQ72: Nazareno Etla | AR72: 21 | AS72: Honey | BB72: 26 | BC72: Villa Hidalgo | BJ72: 30 | BK72: Gutiérrez Zamora | BL72: 31 | BM72: Sotuta
E73: 2045 | P73: 7 | Q73: Ocosingo | Z73: 12 | AA73: Tlalchapa | AB73: 13 | AC73: Tlanalapa | AD73: 14 | AE73: San Gabriel | AF73: 15 | AG73: Papalotla | AH73: 16 | AI73: Penjamillo | AP73: 20 | AQ73: Nejapa de Madero | AR73: 21 | AS73: Huaquechula | BB73: 26 | BC73: Villa Pesqueira | BJ73: 30 | BK73: Hidalgotitlán | BL73: 31 | BM73: Sucilá
E74: 2046 | P74: 7 | Q74: Ocotepec | Z74: 12 | AA74: Tlalixtaquilla de Maldonado | AB74: 13 | AC74: Tlanchinol | AD74: 14 | AE74: San Ignacio Cerro Gordo | AF74: 15 | AG74: Polotitlán | AH74: 16 | AI74: Peribán | AP74: 20 | AQ74: Nuevo Zoquiápam | AR74: 21 | AS74: Huatlatlauca | BB74: 26 | BC74: Yécora | BJ74: 30 | BK74: Huatusco | BL74: 31 | BM74: Sudzal
E75: 2047 | P75: 7 | Q75: Ocozocoautla de Espinosa | Z75: 12 | AA75: Tlapa de Comonfort | AB75: 13 | AC75: Tlaxcoapan | AD75: 14 | AE75: San Juan de los Lagos | AF75: 15 | AG75: Rayón | AH75: 16 | AI75: Purépero | AP75: 20 | AQ75: Oaxaca de Juárez | AR75: 21 | AS75: Huauchinango | BJ75: 30 | BK75: Huayacocotla | BL75: 31 | BM75: Suma
E76: 2048 | P76: 7 | Q76: Ostuacán | Z76: 12 | AA76: Tlapehuala | AB76: 13 | AC76: Tolcayuca | AD76: 14 | AE76: San Juanito de Escobedo | AF76: 15 | AG76: San Antonio la Isla | AH76: 16 | AI76: Puruándiro | AP76: 20 | AQ76: Ocotlán de Morelos | AR76: 21 | AS76: Huehuetla | BJ76: 30 | BK76: Hueyapan de Ocampo | BL76: 31 | BM76: Tahdziú
E77: 2049 | P77: 7 | Q77: Osumacinta | Z77: 12 | AA77: Xalpatláhuac | AB77: 13 | AC77: Tula de Allende | AD77: 14 | AE77: San Julián | AF77: 15 | AG77: San Felipe del Progreso | AH77: 16 | AI77: Queréndaro | AP77: 20 | AQ77: Pinotepa de Don Luis | AR77: 21 | AS77: Huehuetlán el Chico | BJ77: 30 | BK77: Huiloapan de Cuauhtémoc | BL77: 31 | BM77: Tahmek
E78: 2050 | P78: 7 | Q78: Oxchuc | Z78: 12 | AA78: Xochihuehuetlán | AB78: 13 | AC78: Tulancingo de Bravo | AD78: 14 | AE78: San Marcos | AF78: 15 | AG78: San José del Rincón | AH78: 16 | AI78: Quiroga | AP78: 20 | AQ78: Pluma Hidalgo | AR78: 21 | AS78: Huehuetlán el Grande | BJ78: 30 | BK78: Ignacio de la Llave | BL78: 31 | BM78: Teabo
P79: 7 | Q79: Palenque | Z79: 12 | AA79: Xochistlahuaca | AB79: 13 | AC79: Villa de Tezontepec | AD79: 14 | AE79: San Martín de Bolaños | AF79: 15 | AG79: San Martín de las Pirámides | AH79: 16 | AI79: Sahuayo | AP79: 20 | AQ79: Putla Villa de Guerrero | AR79: 21 | AS79: Huejotzingo | BJ79: 30 | BK79: Ilamatlán | BL79: 31 | BM79: Tecoh
P80: 7 | Q80: Pantelhó | Z80: 12 | AA80: Zapotitlán Tablas | AB80: 13 | AC80: Xochiatipan | AD80: 14 | AE80: San Martín Hidalgo | AF80: 15 | AG80: San Mateo Atenco | AH80: 16 | AI80: Salvador Escalante | AP80: 20 | AQ80: Reforma de Pineda | AR80: 21 | AS80: Hueyapan | BJ80: 30 | BK80: Isla | BL80: 31 | BM80: Tekal de Venegas
P81: 7 | Q81: Pantepec | Z81: 12 | AA81: Zihuatanejo de Azueta | AB81: 13 | AC81: Xochicoatlán | AD81: 14 | AE81: San Miguel el Alto | AF81: 15 | AG81: San Simón de Guerrero | AH81: 16 | AI81: San Lucas | AP81: 20 | AQ81: Reyes Etla | AR81: 21 | AS81: Hueytamalco | BJ81: 30 | BK81: Ixcatepec | BL81: 31 | BM81: Tekantó
P82: 7 | Q82: Pichucalco | Z82: 12 | AA82: Zirándaro | AB82: 13 | AC82: Yahualica | AD82: 14 | AE82: San Pedro Tlaquepaque | AF82: 15 | AG82: Santo Tomás | AH82: 16 | AI82: Santa Ana Maya | AP82: 20 | AQ82: Rojas de Cuauhtémoc | AR82: 21 | AS82: Hueytlalpan | BJ82: 30 | BK82: Ixhuacán de los Reyes | BL82: 31 | BM82: Tekax
P83: 7 | Q83: Pijijiapan | Z83: 12 | AA83: Zitlala | AB83: 13 | AC83: Zacualtipán de Ángeles | AD83: 14 | AE83: San Sebastián del Oeste | AF83: 15 | AG83: Soyaniquilpan de Juárez | AH83: 16 | AI83: Senguio | AP83: 20 | AQ83: Salina Cruz | AR83: 21 | AS83: Huitzilan de Serdán | BJ83: 30 | BK83: Ixhuatlán de Madero | BL83: 31 | BM83: Tekit
P84: 7 | Q84: Pueblo Nuevo Solistahuacán | AB84: 13 | AC84: Zapotlán de Juárez | AD84: 14 | AE84: Santa María de los Ángeles | AF84: 15 | AG84: Sultepec | AH84: 16 | AI84: Susupuato | AP84: 20 | AQ84: San Agustín Amatengo | AR84: 21 | AS84: Huitziltepec | BJ84: 30 | BK84: Ixhuatlán del Café | BL84: 31 | BM84: Tekom
P85: 7 | Q85: Rayón | AB85: 13 | AC85: Zempoala | AD85: 14 | AE85: Santa María del Oro | AF85: 15 | AG85: Tecámac | AH85: 16 | AI85: Tacámbaro | AP85: 20 | AQ85: San Agustín Atenango | AR85: 21 | AS85: Ixcamilpa de Guerrero | BJ85: 30 | BK85: Ixhuatlán del Sureste | BL85: 31 | BM85: Telchac Pueblo
P86: 7 | Q86: Reforma | AB86: 13 | AC86: Zimapán | AD86: 14 | AE86: Sayula | AF86: 15 | AG86: Tejupilco | AH86: 16 | AI86: Tancítaro | AP86: 20 | AQ86: San Agustín Chayuco | AR86: 21 | AS86: Ixcaquixtla | BJ86: 30 | BK86: Ixhuatlancillo | BL86: 31 | BM86: Telchac Puerto
P87: 7 | Q87: Sabanilla | AD87: 14 | AE87: Tala | AF87: 15 | AG87: Temamatla | AH87: 16 | AI87: Tangamandapio | AP87: 20 | AQ87: San Agustín de las Juntas | AR87: 21 | AS87: Ixtacamaxtitlán | BJ87: 30 | BK87: Ixmatlahuacan | BL87: 31 | BM87: Temax
P88: 7 | Q88: Salto de Agua | AD88: 14 | AE88: Talpa de Allende | AF88: 15 | AG88: Temascalapa | AH88: 16 | AI88: Tangancícuaro | AP88: 20 | AQ88: San Agustín Etla | AR88: 21 | AS88: Ixtepec | BJ88: 30 | BK88: Ixtaczoquitlán | BL88: 31 | BM88: Temozón
P89: 7 | Q89: San Andrés Duraznal | AD89: 14 | AE89: Tamazula de Gordiano | AF89: 15 | AG89: Temascalcingo | AH89: 16 | AI89: Tanhuato | AP89: 20 | AQ89: San Agustín Loxicha | AR89: 21 | AS89: Izúcar de Matamoros | BJ89: 30 | BK89: Jalacingo | BL89: 31 | BM89: Tepakán
P90: 7 | Q90: San Cristóbal de las Casas | AD90: 14 | AE90: Tapalpa | AF90: 15 | AG90: Temascaltepec | AH90: 16 | AI90: Taretan | AP90: 20 | AQ90: San Agustín Tlacotepec | AR90: 21 | AS90: Jalpan | BJ90: 30 | BK90: Jalcomulco | BL90: 31 | BM90: Tetiz
P91: 7 | Q91: San Fernando | AD91: 14 | AE91: Tecalitlán | AF91: 15 | AG91: Temoaya | AH91: 16 | AI91: Tarímbaro | AP91: 20 | AQ91: San Agustín Yatareni | AR91: 21 | AS91: Jolalpan | BJ91: 30 | BK91: Jáltipan | BL91: 31 | BM91: Teya
P92: 7 | Q92: San Juan Cancuc | AD92: 14 | AE92: Techaluta de Montenegro | AF92: 15 | AG92: Tenancingo | AH92: 16 | AI92: Tepalcatepec | AP92: 20 | AQ92: San Andrés Cabecera Nueva | AR92: 21 | AS92: Jonotla | BJ92: 30 | BK92: Jamapa | BL92: 31 | BM92: Ticul
P93: 7 | Q93: San Lucas | AD93: 14 | AE93: Tecolotlán | AF93: 15 | AG93: Tenango del Aire | AH93: 16 | AI93: Tingambato | AP93: 20 | AQ93: San Andrés Dinicuiti | AR93: 21 | AS93: Jopala | BJ93: 30 | BK93: Jesús Carranza | BL93: 31 | BM93: Timucuy
P94: 7 | Q94: Santiago el Pinar | AD94: 14 | AE94: Tenamaxtlán | AF94: 15 | AG94: Tenango del Valle | AH94: 16 | AI94: Tingüindín | AP94: 20 | AQ94: San Andrés Huaxpaltepec | AR94: 21 | AS94: Juan C. Bonilla | BJ94: 30 | BK94: Jilotepec | BL94: 31 | BM94: Tinum
P95: 7 | Q95: Siltepec | AD95: 14 | AE95: Teocaltiche | AF95: 15 | AG95: Teoloyucan | AH95: 16 | AI95: Tiquicheo de Nicolás Romero | AP95: 20 | AQ95: San Andrés Huayápam | AR95: 21 | AS95: Juan Galindo | BJ95: 30 | BK95: José Azueta | BL95: 31 | BM95: Tixcacalcupul
P96: 7 | Q96: Simojovel | AD96: 14 | AE96: Teocuitatlán de Corona | AF96: 15 | AG96: Teotihuacán | AH96: 16 | AI96: Tlalpujahua | AP96: 20 | AQ96: San Andrés Ixtlahuaca | AR96: 21 | AS96: Juan N. Méndez | BJ96: 30 | BK96: Juan Rodríguez Clara | BL96: 31 | BM96: Tixkokob
P97: 7 | Q97: Sitalá | AD97: 14 | AE97: Tepatitlán de Morelos | AF97: 15 | AG97: Tepetlaoxtoc | AH97: 16 | AI97: Tlazazalca | AP97: 20 | AQ97: San Andrés Lagunas | AR97: 21 | AS97: La Magdalena Tlatlauquitepec | BJ97: 30 | BK97: Juchique de Ferrer | BL97: 31 | BM97: Tixmehuac
P98: 7 | Q98: Socoltenango | AD98: 14 | AE98: Tequila | AF98: 15 | AG98: Tepetlixpa | AH98: 16 | AI98: Tocumbo | AP98: 20 | AQ98: San Andrés Nuxiño | AR98: 21 | AS98: Lafragua | BJ98: 30 | BK98: La Antigua | BL98: 31 | BM98: Tixpéhual
P99: 7 | Q99: Solosuchiapa | AD99: 14 | AE99: Teuchitlán | AF99: 15 | AG99: Tepotzotlán | AH99: 16 | AI99: Tumbiscatío | AP99: 20 | AQ99: San Andrés Paxtlán | AR99: 21 | AS99: Libres | BJ99: 30 | BK99: La Perla | BL99: 31 | BM99: Tizimín
P100: 7 | Q100: Soyaló | AD100: 14 | AE100: Tizapán el Alto | AF100: 15 | AG100: Tequixquiac | AH100: 16 | AI100: Turicato | AP100: 20 | AQ100: San Andrés Sinaxtla | AR100: 21 | AS100: Los Reyes de Juárez | BJ100: 30 | BK100: Landero y Coss | BL100: 31 | BM100: Tunkás
P101: 7 | Q101: Suchiapa | AD101: 14 | AE101: Tlajomulco de Zúñiga | AF101: 15 | AG101: Texcaltitlán | AH101: 16 | AI101: Tuxpan | AP101: 20 | AQ101: San Andrés Solaga | AR101: 21 | AS101: Mazapiltepec de Juárez | BJ101: 30 | BK101: Las Choapas | BL101: 31 | BM101: Tzucacab
P102: 7 | Q102: Suchiate | AD102: 14 | AE102: Tolimán | AF102: 15 | AG102: Texcalyacac | AH102: 16 | AI102: Tuzantla | AP102: 20 | AQ102: San Andrés Teotilálpam | AR102: 21 | AS102: Mixtla | BJ102: 30 | BK102: Las Minas | BL102: 31 | BM102: Uayma
P103: 7 | Q103: Sunuapa | AD103: 14 | AE103: Tomatlán | AF103: 15 | AG103: Texcoco | AH103: 16 | AI103: Tzintzuntzan | AP103: 20 | AQ103: San Andrés Tepetlapa | AR103: 21 | AS103: Molcaxac | BJ103: 30 | BK103: Las Vigas de Ramírez | BL103: 31 | BM103: Ucú
P104: 7 | Q104: Tapachula | AD104: 14 | AE104: Tonalá | AF104: 15 | AG104: Tezoyuca | AH104: 16 | AI104: Tzitzio | AP104: 20 | AQ104: San Andrés Yaá | AR104: 21 | AS104: Naupan | BJ104: 30 | BK104: Lerdo de Tejada | BL104: 31 | BM104: Umán
P105: 7 | Q105: Tapalapa | AD105: 14 | AE105: Tonaya | AF105: 15 | AG105: Tianguistenco | AH105: 16 | AI105: Uruapan | AP105: 20 | AQ105: San Andrés Zabache | AR105: 21 | AS105: Nauzontla | BJ105: 30 | BK105: Los Reyes | BL105: 31 | BM105: Valladolid
P106: 7 | Q106: Tapilula | AD106: 14 | AE106: Tonila | AF106: 15 | AG106: Timilpan | AH106: 16 | AI106: Venustiano Carranza | AP106: 20 | AQ106: San Andrés Zautla | AR106: 21 | AS106: Nealtican | BJ106: 30 | BK106: Magdalena | BL106: 31 | BM106: Xocchel
P107: 7 | Q107: Tecpatán | AD107: 14 | AE107: Totatiche | AF107: 15 | AG107: Tlalmanalco | AH107: 16 | AI107: Villamar | AP107: 20 | AQ107: San Antonino Castillo Velasco | AR107: 21 | AS107: Nicolás Bravo | BJ107: 30 | BK107: Maltrata | BL107: 31 | BM107: Yaxcabá
P108: 7 | Q108: Tenejapa | AD108: 14 | AE108: Tototlán | AF108: 15 | AG108: Tlalnepantla de Baz | AH108: 16 | AI108: Vista Hermosa | AP108: 20 | AQ108: San Antonino el Alto | AR108: 21 | AS108: Nopalucan | BJ108: 30 | BK108: Manlio Fabio Altamirano | BL108: 31 | BM108: Yaxkukul
P109: 7 | Q109: Teopisca | AD109: 14 | AE109: Tuxcacuesco | AF109: 15 | AG109: Tlatlaya | AH109: 16 | AI109: Yurécuaro | AP109: 20 | AQ109: San Antonino Monte Verde | AR109: 21 | AS109: Ocotepec | BJ109: 30 | BK109: Mariano Escobedo | BL109: 31 | BM109: Yobaín
P110: 7 | Q110: Tila | AD110: 14 | AE110: Tuxcueca | AF110: 15 | AG110: Toluca | AH110: 16 | AI110: Zacapu | AP110: 20 | AQ110: San Antonio Acutla | AR110: 21 | AS110: Ocoyucan | BJ110: 30 | BK110: Martínez de la Torre
P111: 7 | Q111: Tonalá | AD111: 14 | AE111: Tuxpan | AF111: 15 | AG111: Tonanitla | AH111: 16 | AI111: Zamora | AP111: 20 | AQ111: San Antonio de la Cal | AR111: 21 | AS111: Olintla | BJ111: 30 | BK111: Mecatlán
P112: 7 | Q112: Totolapa | AD112: 14 | AE112: Unión de San Antonio | AF112: 15 | AG112: Tonatico | AH112: 16 | AI112: Zináparo | AP112: 20 | AQ112: San Antonio Huitepec | AR112: 21 | AS112: Oriental | BJ112: 30 | BK112: Mecayapan
P113: 7 | Q113: Tumbalá | AD113: 14 | AE113: Unión de Tula | AF113: 15 | AG113: Tultepec | AH113: 16 | AI113: Zinapécuaro | AP113: 20 | AQ113: San Antonio Nanahuatípam | AR113: 21 | AS113: Pahuatlán | BJ113: 30 | BK113: Medellín
P114: 7 | Q114: Tuxtla Chico | AD114: 14 | AE114: Valle de Guadalupe | AF114: 15 | AG114: Tultitlán | AH114: 16 | AI114: Ziracuaretiro | AP114: 20 | AQ114: San Antonio Sinicahua | AR114: 21 | AS114: Palmar de Bravo | BJ114: 30 | BK114: Miahuatlán
P115: 7 | Q115: Tuxtla Gutiérrez | AD115: 14 | AE115: Valle de Juárez | AF115: 15 | AG115: Valle de Bravo | AH115: 16 | AI115: Zitácuaro | AP115: 20 | AQ115: San Antonio Tepetlapa | AR115: 21 | AS115: Pantepec | BJ115: 30 | BK115: Minatitlán
P116: 7 | Q116: Tuzantán | AD116: 14 | AE116: Villa Corona | AF116: 15 | AG116: Valle de Chalco Solidaridad | AP116: 20 | AQ116: San Baltazar Chichicápam | AR116: 21 | AS116: Petlalcingo | BJ116: 30 | BK116: Misantla
P117: 7 | Q117: Tzimol | AD117: 14 | AE117: Villa Guerrero | AF117: 15 | AG117: Villa de Allende | AP117: 20 | AQ117: San Baltazar Loxicha | AR117: 21 | AS117: Piaxtla | BJ117: 30 | BK117: Mixtla de Altamirano
P118: 7 | Q118: Unión Juárez | AD118: 14 | AE118: Villa Hidalgo | AF118: 15 | AG118: Villa del Carbón | AP118: 20 | AQ118: San Baltazar Yatzachi el Bajo | AR118: 21 | AS118: Puebla | BJ118: 30 | BK118: Moloacán
P119: 7 | Q119: Venustiano Carranza | AD119: 14 | AE119: Villa Purificación | AF119: 15 | AG119: Villa Guerrero | AP119: 20 | AQ119: San Bartolo Coyotepec | AR119: 21 | AS119: Quecholac | BJ119: 30 | BK119: Nanchital de Lázaro Cárdenas del Río
P120: 7 | Q120: Villa Comaltitlán | AD120: 14 | AE120: Yahualica de González Gallo | AF120: 15 | AG120: Villa Victoria | AP120: 20 | AQ120: San Bartolo Soyaltepec | AR120: 21 | AS120: Quimixtlán | BJ120: 30 | BK120: Naolinco
P121: 7 | Q121: Villa Corzo | AD121: 14 | AE121: Zacoalco de Torres | AF121: 15 | AG121: Xalatlaco | AP121: 20 | AQ121: San Bartolo Yautepec | AR121: 21 | AS121: Rafael Lara Grajales | BJ121: 30 | BK121: Naranjal
P122: 7 | Q122: Villaflores | AD122: 14 | AE122: Zapopan | AF122: 15 | AG122: Xonacatlán | AP122: 20 | AQ122: San Bartolomé Ayautla | AR122: 21 | AS122: San Andrés Cholula | BJ122: 30 | BK122: Naranjos Amatlán
P123: 7 | Q123: Yajalón | AD123: 14 | AE123: Zapotiltic | AF123: 15 | AG123: Zacazonapan | AP123: 20 | AQ123: San Bartolomé Loxicha | AR123: 21 | AS123: San Antonio Cañada | BJ123: 30 | BK123: Nautla
P124: 7 | Q124: Zinacantán | AD124: 14 | AE124: Zapotitlán de Vadillo | AF124: 15 | AG124: Zacualpan | AP124: 20 | AQ124: San Bartolomé Quialana | AR124: 21 | AS124: San Diego la Mesa Tochimiltzingo | BJ124: 30 | BK124: Nogales
AD125: 14 | AE125: Zapotlán del Rey | AF125: 15 | AG125: Zinacantepec | AP125: 20 | AQ125: San Bartolomé Yucuañe | AR125: 21 | AS125: San Felipe Teotlalcingo | BJ125: 30 | BK125: Oluta
AD126: 14 | AE126: Zapotlán el Grande | AF126: 15 | AG126: Zumpahuacán | AP126: 20 | AQ126: San Bartolomé Zoogocho | AR126: 21 | AS126: San Felipe Tepatlán | BJ126: 30 | BK126: Omealca
AD127: 14 | AE127: Zapotlanejo | AF127: 15 | AG127: Zumpango | AP127: 20 | AQ127: San Bernardo Mixtepec | AR127: 21 | AS127: San Gabriel Chilac | BJ127: 30 | BK127: Orizaba
AP128: 20 | AQ128: San Blas Atempa | AR128: 21 | AS128: San Gregorio Atzompa | BJ128: 30 | BK128: Otatitlán
AP129: 20 | AQ129: San Carlos Yautepec | AR129: 21 | AS129: San Jerónimo Tecuanipan | BJ129: 30 | BK129: Oteapan
AP130: 20 | AQ130: San Cristóbal Amatlán | AR130: 21 | AS130: San Jerónimo Xayacatlán | BJ130: 30 | BK130: Ozuluama de Mascareñas
AP131: 20 | AQ131: San Cristóbal Amoltepec | AR131: 21 | AS131: San José Chiapa | BJ131: 30 | BK131: Pajapan
AP132: 20 | AQ132: San Cristóbal Lachirioag | AR132: 21 | AS132: San José Miahuatlán | BJ132: 30 | BK132: Pánuco
AP133: 20 | AQ133: San Cristóbal Suchixtlahuaca | AR133: 21 | AS133: San Juan Atenco | BJ133: 30 | BK133: Papantla
AP134: 20 | AQ134: San Dionisio del Mar | AR134: 21 | AS134: San Juan Atzompa | BJ134: 30 | BK134: Paso de Ovejas
AP135: 20 | AQ135: San Dionisio Ocotepec | AR135: 21 | AS135: San Martín Texmelucan | BJ135: 30 | BK135: Paso del Macho
AP136: 20 | AQ136: San Dionisio Ocotlán | AR136: 21 | AS136: San Martín Totoltepec | BJ136: 30 | BK136: Perote
AP137: 20 | AQ137: San Esteban Atatlahuca | AR137: 21 | AS137: San Matías Tlalancaleca | BJ137: 30 | BK137: Platón Sánchez
AP138: 20 | AQ138: San Felipe Jalapa de Díaz | AR138: 21 | AS138: San Miguel Ixitlán | BJ138: 30 | BK138: Playa Vicente
AP139: 20 | AQ139: San Felipe Tejalápam | AR139: 21 | AS139: San Miguel Xoxtla | BJ139: 30 | BK139: Poza Rica de Hidalgo
AP140: 20 | AQ140: San Felipe Usila | AR140: 21 | AS140: San Nicolás Buenos Aires | BJ140: 30 | BK140: Pueblo Viejo
AP141: 20 | AQ141: San Francisco Cahuacuá | AR141: 21 | AS141: San Nicolás de los Ranchos | BJ141: 30 | BK141: Puente Nacional
AP142: 20 | AQ142: San Francisco Cajonos | AR142: 21 | AS142: San Pablo Anicano | BJ142: 30 | BK142: Rafael Delgado
AP143: 20 | AQ143: San Francisco Chapulapa | AR143: 21 | AS143: San Pedro Cholula | BJ143: 30 | BK143: Rafael Lucio
AP144: 20 | AQ144: San Francisco Chindúa | AR144: 21 | AS144: San Pedro Yeloixtlahuaca | BJ144: 30 | BK144: Río Blanco
AP145: 20 | AQ145: San Francisco del Mar | AR145: 21 | AS145: San Salvador el Seco | BJ145: 30 | BK145: Saltabarranca
AP146: 20 | AQ146: San Francisco Huehuetlán | AR146: 21 | AS146: San Salvador el Verde | BJ146: 30 | BK146: San Andrés Tenejapan
AP147: 20 | AQ147: San Francisco Ixhuatán | AR147: 21 | AS147: San Salvador Huixcolotla | BJ147: 30 | BK147: San Andrés Tuxtla
AP148: 20 | AQ148: San Francisco Jaltepetongo | AR148: 21 | AS148: San Sebastián Tlacotepec | BJ148: 30 | BK148: San Juan Evangelista
AP149: 20 | AQ149: San Francisco Lachigoló | AR149: 21 | AS149: Santa Catarina Tlaltempan | BJ149: 30 | BK149: San Rafael
AP150: 20 | AQ150: San Francisco Logueche | AR150: 21 | AS150: Santa Inés Ahuatempan | BJ150: 30 | BK150: Santiago Sochiapan
AP151: 20 | AQ151: San Francisco Nuxaño | AR151: 21 | AS151: Santa Isabel Cholula | BJ151: 30 | BK151: Santiago Tuxtla
AP152: 20 | AQ152: San Francisco Ozolotepec | AR152: 21 | AS152: Santiago Miahuatlán | BJ152: 30 | BK152: Sayula de Alemán
AP153: 20 | AQ153: San Francisco Sola | AR153: 21 | AS153: Santo Tomás Hueyotlipan | BJ153: 30 | BK153: Sochiapa
AP154: 20 | AQ154: San Francisco Telixtlahuaca | AR154: 21 | AS154: Soltepec | BJ154: 30 | BK154: Soconusco
AP155: 20 | AQ155: San Francisco Teopan | AR155: 21 | AS155: Tecali de Herrera | BJ155: 30 | BK155: Soledad Atzompa
AP156: 20 | AQ156: San Francisco Tlapancingo | AR156: 21 | AS156: Tecamachalco | BJ156: 30 | BK156: Soledad de Doblado
AP157: 20 | AQ157: San Gabriel Mixtepec | AR157: 21 | AS157: Tecomatlán | BJ157: 30 | BK157: Soteapan
AP158: 20 | AQ158: San Ildefonso Amatlán | AR158: 21 | AS158: Tehuacán | BJ158: 30 | BK158: Tamalín
AP159: 20 | AQ159: San Ildefonso Sola | AR159: 21 | AS159: Tehuitzingo | BJ159: 30 | BK159: Tamiahua
AP160: 20 | AQ160: San Ildefonso Villa Alta | AR160: 21 | AS160: Tenampulco | BJ160: 30 | BK160: Tampico Alto
AP161: 20 | AQ161: San Jacinto Amilpas | AR161: 21 | AS161: Teopantlán | BJ161: 30 | BK161: Tancoco
AP162: 20 | AQ162: San Jacinto Tlacotepec | AR162: 21 | AS162: Teotlalco | BJ162: 30 | BK162: Tantima
AP163: 20 | AQ163: San Jerónimo Coatlán | AR163: 21 | AS163: Tepanco de López | BJ163: 30 | BK163: Tantoyuca
AP164: 20 | AQ164: San Jerónimo Silacayoapilla | AR164: 21 | AS164: Tepango de Rodríguez | BJ164: 30 | BK164: Tatahuicapan de Juárez
AP165: 20 | AQ165: San Jerónimo Sosola | AR165: 21 | AS165: Tepatlaxco de Hidalgo | BJ165: 30 | BK165: Tatatila
AP166: 20 | AQ166: San Jerónimo Taviche | AR166: 21 | AS166: Tepeaca | BJ166: 30 | BK166: Tecolutla
AP167: 20 | AQ167: San Jerónimo Tecóatl | AR167: 21 | AS167: Tepemaxalco | BJ167: 30 | BK167: Tehuipango
AP168: 20 | AQ168: San Jerónimo Tlacochahuaya | AR168: 21 | AS168: Tepeojuma | BJ168: 30 | BK168: Tempoal
AP169: 20 | AQ169: San Jorge Nuchita | AR169: 21 | AS169: Tepetzintla | BJ169: 30 | BK169: Tenampa
AP170: 20 | AQ170: San José Ayuquila | AR170: 21 | AS170: Tepexco | BJ170: 30 | BK170: Tenochtitlán
AP171: 20 | AQ171: San José Chiltepec | AR171: 21 | AS171: Tepexi de Rodríguez | BJ171: 30 | BK171: Teocelo
AP172: 20 | AQ172: San José del Peñasco | AR172: 21 | AS172: Tepeyahualco | BJ172: 30 | BK172: Tepatlaxco
AP173: 20 | AQ173: San José del Progreso | AR173: 21 | AS173: Tepeyahualco de Cuauhtémoc | BJ173: 30 | BK173: Tepetlán
AP174: 20 | AQ174: San José Estancia Grande | AR174: 21 | AS174: Tetela de Ocampo | BJ174: 30 | BK174: Tepetzintla
AP175: 20 | AQ175: San José Independencia | AR175: 21 | AS175: Teteles de Avila Castillo | BJ175: 30 | BK175: Tequila
AP176: 20 | AQ176: San José Lachiguiri | AR176: 21 | AS176: Teziutlán | BJ176: 30 | BK176: Texcatepec
AP177: 20 | AQ177: San José Tenango | AR177: 21 | AS177: Tianguismanalco | BJ177: 30 | BK177: Texhuacán
AP178: 20 | AQ178: San Juan Achiutla | AR178: 21 | AS178: Tilapa | BJ178: 30 | BK178: Texistepec
AP179: 20 | AQ179: San Juan Atepec | AR179: 21 | AS179: Tlachichuca | BJ179: 30 | BK179: Tezonapa
AP180: 20 | AQ180: San Juan Bautista Atatlahuca | AR180: 21 | AS180: Tlacotepec de Benito Juárez | BJ180: 30 | BK180: Tierra Blanca
AP181: 20 | AQ181: San Juan Bautista Coixtlahuaca | AR181: 21 | AS181: Tlacuilotepec | BJ181: 30 | BK181: Tihuatlán
AP182: 20 | AQ182: San Juan Bautista Cuicatlán | AR182: 21 | AS182: Tlahuapan | BJ182: 30 | BK182: Tlachichilco
AP183: 20 | AQ183: San Juan Bautista Guelache | AR183: 21 | AS183: Tlaltenango | BJ183: 30 | BK183: Tlacojalpan
AP184: 20 | AQ184: San Juan Bautista Jayacatlán | AR184: 21 | AS184: Tlanepantla | BJ184: 30 | BK184: Tlacolulan
AP185: 20 | AQ185: San Juan Bautista Lo de Soto | AR185: 21 | AS185: Tlaola | BJ185: 30 | BK185: Tlacotalpan
AP186: 20 | AQ186: San Juan Bautista Suchitepec | AR186: 21 | AS186: Tlapacoya | BJ186: 30 | BK186: Tlacotepec de Mejía
AP187: 20 | AQ187: San Juan Bautista Tlachichilco | AR187: 21 | AS187: Tlapanalá | BJ187: 30 | BK187: Tlalixcoyan
AP188: 20 | AQ188: San Juan Bautista Tlacoatzintepec | AR188: 21 | AS188: Tlatlauquitepec | BJ188: 30 | BK188: Tlalnelhuayocan
AP189: 20 | AQ189: San Juan Bautista Tuxtepec | AR189: 21 | AS189: Tlaxco | BJ189: 30 | BK189: Tlaltetela
AP190: 20 | AQ190: San Juan Bautista Valle Nacional | AR190: 21 | AS190: Tochimilco | BJ190: 30 | BK190: Tlapacoyan
AP191: 20 | AQ191: San Juan Cacahuatepec | AR191: 21 | AS191: Tochtepec | BJ191: 30 | BK191: Tlaquilpa
AP192: 20 | AQ192: San Juan Chicomezúchil | AR192: 21 | AS192: Totoltepec de Guerrero | BJ192: 30 | BK192: Tlilapan
AP193: 20 | AQ193: San Juan Chilateca | AR193: 21 | AS193: Tulcingo | BJ193: 30 | BK193: Tomatlán
AP194: 20 | AQ194: San Juan Cieneguilla | AR194: 21 | AS194: Tuzamapan de Galeana | BJ194: 30 | BK194: Tonayán
AP195: 20 | AQ195: San Juan Coatzóspam | AR195: 21 | AS195: Tzicatlacoyan | BJ195: 30 | BK195: Totutla
AP196: 20 | AQ196: San Juan Colorado | AR196: 21 | AS196: Venustiano Carranza | BJ196: 30 | BK196: Tres Valles
AP197: 20 | AQ197: San Juan Comaltepec | AR197: 21 | AS197: Vicente Guerrero | BJ197: 30 | BK197: Tuxpan
AP198: 20 | AQ198: San Juan Cotzocón | AR198: 21 | AS198: Xayacatlán de Bravo | BJ198: 30 | BK198: Tuxtilla
AP199: 20 | AQ199: San Juan de los Cués | AR199: 21 | AS199: Xicotepec | BJ199: 30 | BK199: Ursulo Galván
AP200: 20 | AQ200: San Juan del Estado | AR200: 21 | AS200: Xicotlán | BJ200: 30 | BK200: Uxpanapa
... 372 more rows

Sheet Formato 1
A1: Formato 1 Estado de Situación Financiera Detallado - LDF
A2: =ENTE_PUBLICO_A -> Municipio de Valle de Santiago, Gto., Gobierno del Estado de Guanajuato (a)
A3: Estado de Situación Financiera Detallado - LDF
A4: =PERIODO_INFORME -> Al 31 de diciembre de 2021 y al 30 de marzo de 2022 (b)
A5: (PESOS)
A6: Concepto (c) | B6: =ANIO -> 2022 (d) | C6: =ULTIMO -> 31 de diciembre de 2021 (e) | D6: Concepto (c) | E6: =ANIO -> 2022 (d) | F6: =ULTIMO -> 31 de diciembre de 2021 (e)
A7: ACTIVO | D7: PASIVO
A8: Activo Circulante | D8: Pasivo Circulante
A9: a. Efectivo y Equivalentes (a=a1+a2+a3+a4+a5+a6+a7) | B9: =SUM(B10:B16) -> 112751093.9 | C9: =SUM(C10:C16) -> 80504979.97 | D9: a. Cuentas por Pagar a Corto Plazo (a=a1+a2+a3+a4+a5+a6+a7+a8+a9) | E9: =SUM(E10:E18) -> 12561889.84 | F9: =SUM(F10:F18) -> 44143115.55
A10: a1) Efectivo | B10: 0 | C10: 0 | D10: a1) Servicios Personales por Pagar a Corto Plazo | E10: 226028.76 | F10: 1280404.99
A11: a2) Bancos/Tesorería | B11: 11260729.63 | C11: 16556224.97 | D11: a2) Proveedores por Pagar a Corto Plazo | E11: 776847.54 | F11: 5140978.21
A12: a3) Bancos/Dependencias y Otros | B12: 0 | C12: 0 | D12: a3) Contratistas por Obras Públicas por Pagar a Corto Plazo | E12: 6424847.12 | F12: 23137837.37
A13: a4) Inversiones Temporales (Hasta 3 meses) | B13: 98097401.67 | C13: 60258345.28 | D13: a4) Participaciones y Aportaciones por Pagar a Corto Plazo | E13: 0 | F13: 0
A14: a5) Fondos con Afectación Específica | B14: 3362005.44 | C14: 3659452.59 | D14: a5) Transferencias Otorgadas por Pagar a Corto Plazo | E14: 8395.15 | F14: 8609938.39
A15: a6) Depósitos de Fondos de Terceros en Garantía y/o Administración | B15: 30957.13 | C15: 30957.13 | D15: a6) Intereses, Comisiones y Otros Gastos de la Deuda Pública por Pagar a Corto Plazo | E15: 0 | F15: 0
A16: a7) Otros Efectivos y Equivalentes | B16: 0 | C16: 0 | D16: a7) Retenciones y Contribuciones por Pagar a Corto Plazo | E16: 2271716.31 | F16: 4179110.72
A17: b. Derechos a Recibir Efectivo o Equivalentes (b=b1+b2+b3+b4+b5+b6+b7) | B17: =SUM(B18:B24) -> 7848948.57 | C17: =SUM(C18:C24) -> 7180258.16 | D17: a8) Devoluciones de la Ley de Ingresos por Pagar a Corto Plazo | E17: 0 | F17: 0
A18: b1) Inversiones Financieras de Corto Plazo | B18: 0 | C18: 0 | D18: a9) Otras Cuentas por Pagar a Corto Plazo | E18: 2854054.96 | F18: 1794845.87
A19: b2) Cuentas por Cobrar a Corto Plazo | B19: 926032.5 | C19: 928678.43 | D19: b. Documentos por Pagar a Corto Plazo (b=b1+b2+b3) | E19: =SUM(E20:E22) -> 0 | F19: =SUM(F20:F22) -> 0
A20: b3) Deudores Diversos por Cobrar a Corto Plazo | B20: 1704719.61 | C20: 146725.21 | D20: b1) Documentos Comerciales por Pagar a Corto Plazo | E20: 0 | F20: 0
A21: b4) Ingresos por Recuperar a Corto Plazo | B21: 0 | C21: 0 | D21: b2) Documentos con Contratistas por Obras Públicas por Pagar a Corto Plazo | E21: 0 | F21: 0
A22: b5) Deudores por Anticipos de la Tesorería a Corto Plazo | B22: 175000 | C22: 20235.84 | D22: b3) Otros Documentos por Pagar a Corto Plazo | E22: 0 | F22: 0
A23: b6) Préstamos Otorgados a Corto Plazo | B23: 0 | C23: 0 | D23: c. Porción a Corto Plazo de la Deuda Pública a Largo Plazo (c=c1+c2) | E23: =E24+E25 -> 1205357.13 | F23: =F24+F25 -> 0
A24: b7) Otros Derechos a Recibir Efectivo o Equivalentes a Corto Plazo | B24: 5043196.46 | C24: 6084618.68 | D24: c1) Porción a Corto Plazo de la Deuda Pública | E24: 1205357.13 | F24: 0
A25: c. Derechos a Recibir Bienes o Servicios (c=c1+c2+c3+c4+c5) | B25: =SUM(B26:B30) -> 4616064.19 | C25: =SUM(C26:C30) -> 16028715.59 | D25: c2) Porción a Corto Plazo de Arrendamiento Financiero | E25: 0 | F25: 0
A26: c1) Anticipo a Proveedores por Adquisición de Bienes y Prestación de Servicios a Corto Plazo | B26: 600 | C26: 600 | D26: d. Títulos y Valores a Corto Plazo | E26: 0 | F26: 0
A27: c2) Anticipo a Proveedores por Adquisición de Bienes Inmuebles y Muebles a Corto Plazo | B27: 0 | C27: 0 | D27: e. Pasivos Diferidos a Corto Plazo (e=e1+e2+e3) | E27: =SUM(E28:E30) -> 0 | F27: =SUM(F28:F30) -> 0
A28: c3) Anticipo a Proveedores por Adquisición de Bienes Intangibles a Corto Plazo | B28: 0 | C28: 0 | D28: e1) Ingresos Cobrados por Adelantado a Corto Plazo | E28: 0 | F28: 0
A29: c4) Anticipo a Contratistas por Obras Públicas a Corto Plazo | B29: 4615464.19 | C29: 16028115.59 | D29: e2) Intereses Cobrados por Adelantado a Corto Plazo | E29: 0 | F29: 0
A30: c5) Otros Derechos a Recibir Bienes o Servicios a Corto Plazo | B30: 0 | C30: 0 | D30: e3) Otros Pasivos Diferidos a Corto Plazo | E30: 0 | F30: 0
A31: d. Inventarios (d=d1+d2+d3+d4+d5) | B31: =SUM(B32:B36) -> 0 | C31: =SUM(C32:C36) -> 0 | D31: f. Fondos y Bienes de Terceros en Garantía y/o Administración a Corto Plazo (f=f1+f2+f3+f4+f5+f6) | E31: =SUM(E32:E37) -> 0 | F31: =SUM(F32:F37) -> 0
A32: d1) Inventario de Mercancías para Venta | B32: 0 | C32: 0 | D32: f1) Fondos en Garantía a Corto Plazo | E32: 0 | F32: 0
A33: d2) Inventario de Mercancías Terminadas | B33: 0 | C33: 0 | D33: f2) Fondos en Administración a Corto Plazo | E33: 0 | F33: 0
A34: d3) Inventario de Mercancías en Proceso de Elaboración | B34: 0 | C34: 0 | D34: f3) Fondos Contingentes a Corto Plazo | E34: 0 | F34: 0
A35: d4) Inventario de Materias Primas, Materiales y Suministros para Producción | B35: 0 | C35: 0 | D35: f4) Fondos de Fideicomisos, Mandatos y Contratos Análogos a Corto Plazo | E35: 0 | F35: 0
A36: d5) Bienes en Tránsito | B36: 0 | C36: 0 | D36: f5) Otros Fondos de Terceros en Garantía y/o Administración a Corto Plazo | E36: 0 | F36: 0
A37: e. Almacenes | B37: 0 | C37: 0 | D37: f6) Valores y Bienes en Garantía a Corto Plazo | E37: 0 | F37: 0
A38: f. Estimación por Pérdida o Deterioro de Activos Circulantes (f=f1+f2) | B38: =SUM(B39:B40) -> 0 | C38: =SUM(C39:C40) -> 0 | D38: g. Provisiones a Corto Plazo (g=g1+g2+g3) | E38: =SUM(E39:E41) -> 0 | F38: =SUM(F39:F41) -> 0
A39: f1) Estimaciones para Cuentas Incobrables por Derechos a Recibir Efectivo o Equivalentes | B39: 0 | C39: 0 | D39: g1) Provisión para Demandas y Juicios a Corto Plazo | E39: 0 | F39: 0
A40: f2) Estimación por Deterioro de Inventarios | B40: 0 | C40: 0 | D40: g2) Provisión para Contingencias a Corto Plazo | E40: 0 | F40: 0
A41: g. Otros Activos Circulantes (g=g1+g2+g3+g4) | B41: =SUM(B42:B45) -> 0 | C41: =SUM(C42:C45) -> 0 | D41: g3) Otras Provisiones a Corto Plazo | E41: 0 | F41: 0
A42: g1) Valores en Garantía | B42: 0 | C42: 0 | D42: h. Otros Pasivos a Corto Plazo (h=h1+h2+h3) | E42: =SUM(E43:E45) -> 0 | F42: =SUM(F43:F45) -> 0
A43: g2) Bienes en Garantía (excluye depósitos de fondos) | B43: 0 | C43: 0 | D43: h1) Ingresos por Clasificar | E43: 0 | F43: 0
A44: g3) Bienes Derivados de Embargos, Decomisos, Aseguramientos y Dación en Pago | B44: 0 | C44: 0 | D44: h2) Recaudación por Participar | E44: 0 | F44: 0
A45: g4) Adquisición con Fondos de Terceros | B45: 0 | C45: 0 | D45: h3) Otros Pasivos Circulantes | E45: 0 | F45: 0
A47: IA. Total de Activos Circulantes (IA = a + b + c + d + e + f + g) | B47: =B9+B17+B25+B31+B38+B41 -> 125216106.6 | C47: =C9+C17+C25+CC4331+C38+C41 -> 103713953.7 | D47: IIA. Total de Pasivos Circulantes (IIA = a + b + c + d + e + f + g + h) | E47: =E9+E19+E23+E26+E27+E31+E38+E42 -> 13767246.97 | F47: =F9+F19+F23+F26+F27+F31+F38+F42 -> 44143115.55
A49: Activo No Circulante | D49: Pasivo No Circulante
A50: a. Inversiones Financieras a Largo Plazo | B50: 0 | C50: 0 | D50: a. Cuentas por Pagar a Largo Plazo | E50: 0 | F50: 0
A51: b. Derechos a Recibir Efectivo o Equivalentes a Largo Plazo | B51: 0 | C51: 0 | D51: b. Documentos por Pagar a Largo Plazo | E51: 0 | F51: 0
A52: c. Bienes Inmuebles, Infraestructura y Construcciones en Proceso | B52: 364824636.1 | C52: 340245485.8 | D52: c. Deuda Pública a Largo Plazo | E52: 8035714.36 | F52: 9642857.2
A53: d. Bienes Muebles | B53: 83420898.77 | C53: 83384944.81 | D53: d. Pasivos Diferidos a Largo Plazo | E53: 0 | F53: 0
A54: e. Activos Intangibles | B54: 135966.14 | C54: 135966.14 | D54: e. Fondos y Bienes de Terceros en Garantía y/o en Administración a Largo Plazo | E54: 0 | F54: 0
A55: f. Depreciación, Deterioro y Amortización Acumulada de Bienes | B55: -44948317.51 | C55: -44948317.51 | D55: f. Provisiones a Largo Plazo | E55: 0 | F55: 0
A56: g. Activos Diferidos | B56: 1176759.67 | C56: 1176759.67
A57: h. Estimación por Pérdida o Deterioro de Activos no Circulantes | B57: 0 | C57: 0 | D57: IIB. Total de Pasivos No Circulantes (IIB = a + b + c + d + e + f) | E57: =SUM(E50:E55) -> 8035714.36 | F57: =SUM(F50:F55) -> 9642857.2
A58: i. Otros Activos no Circulantes | B58: 0 | C58: 0
D59: II. Total del Pasivo (II = IIA + IIB) | E59: =E47+E57 -> 21802961.33 | F59: =F47+F57 -> 53785972.75
A60: IB. Total de Activos No Circulantes (IB = a + b + c + d + e + f + g + h + i) | B60: =SUM(B50:B58) -> 404609943.1 | C60: =SUM(C50:C58) -> 379994838.9
D61: HACIENDA PÚBLICA/PATRIMONIO
A62: I. Total del Activo (I = IA + IB) | B62: =SUM(B47+B60) -> 529826049.8 | C62: =SUM(C47+C60) -> 483708792.6
D63: IIIA. Hacienda Pública/Patrimonio Contribuido (IIIA = a + b + c) | E63: =SUM(E64:E66) -> 23319492.92 | F63: =SUM(F64:F66) -> 23319492.92
D64: a. Aportaciones | E64: 22266596.24 | F64: 22266596.24
D65: b. Donaciones de Capital | E65: 1052896.68 | F65: 1052896.68
D66: c. Actualización de la Hacienda Pública/Patrimonio | E66: 0 | F66: 0
D68: IIIB. Hacienda Pública/Patrimonio Generado (IIIB = a + b + c + d + e) | E68: =SUM(E69:E73) -> 484703595.5 | F68: =SUM(F69:F73) -> 406603326.9
D69: a. Resultados del Ejercicio (Ahorro/ Desahorro) | E69: 68042716.77 | F69: 132649066.8
D70: b. Resultados de Ejercicios Anteriores | E70: 416593767.5 | F70: 273887148.8
D71: c. Revalúos | E71: 0 | F71: 0
D72: d. Reservas | E72: 0 | F72: 0
D73: e. Rectificaciones de Resultados de Ejercicios Anteriores | E73: 67111.3 | F73: 67111.3
D75: IIIC. Exceso o Insuficiencia en la Actualización de la Hacienda Pública/Patrimonio (IIIC=a+b) | E75: =E76+E77 -> 0 | F75: =F76+F77 -> 0
D76: a. Resultado por Posición Monetaria | E76: 0 | F76: 0
D77: b. Resultado por Tenencia de Activos no Monetarios | E77: 0 | F77: 0
D79: III. Total Hacienda Pública/Patrimonio (III = IIIA + IIIB + IIIC) | E79: =E63+E68+E75 -> 508023088.4 | F79: =F63+F68+F75 -> 429922819.8
D81: IV. Total del Pasivo y Hacienda Pública/Patrimonio (IV = II + III) | E81: =E59+E79 -> 529826049.8 | F81: =F59+F79 -> 483708792.6

Sheet F01 (hidden)
A1: CLAVE | B1: N1 | C1: N2 | D1: N3 | E1: N4 | F1: N5 | G1: N6 | H1: N7 | I1: C O N C E P T O S | P1: EDO_ACT | Q1: EDO_ANT
A2: =IF(LEN(CLEAN(B2))=0,"0",B2)&","&IF(LEN(CLEAN(C2))=0,"0",C2)&","&IF(LEN(CLEAN(D2))=0,"0",D2)&","&IF(LEN(CLEAN(E2))=0,"0",E2)&","&IF(LEN(CLEAN(F2))=0,"0",F2)&","&IF(LEN(CLEAN(G2))=0,"0",G2)&","&IF(LEN(CLEAN(H2))=0,"0",H2) -> 1,1,0,0,0,0,0 | B2: 1 | C2: 1 | I2: ACTIVO
A3: =IF(LEN(CLEAN(B3))=0,"0",B3)&","&IF(LEN(CLEAN(C3))=0,"0",C3)&","&IF(LEN(CLEAN(D3))=0,"0",D3)&","&IF(LEN(CLEAN(E3))=0,"0",E3)&","&IF(LEN(CLEAN(F3))=0,"0",F3)&","&IF(LEN(CLEAN(G3))=0,"0",G3)&","&IF(LEN(CLEAN(H3))=0,"0",H3) -> 1,1,1,0,0,0,0 | B3: 1 | C3: 1 | D3: 1 | J3: Activo Circulante
A4: 1,1,1,1,0,0,0 | B4: 1 | C4: 1 | D4: 1 | E4: 1 | K4: Efectivo y Equivalentes | P4: ='Formato 1'!B9 -> 112751093.9 | Q4: ='Formato 1'!C9 -> 80504979.97
A5: 1,1,1,1,1,0,0 | B5: 1 | C5: 1 | D5: 1 | E5: 1 | F5: 1 | L5: Efectivo | P5: ='Formato 1'!B10 -> 0 | Q5: ='Formato 1'!C10 -> 0
A6: 1,1,1,1,2,0,0 | B6: 1 | C6: 1 | D6: 1 | E6: 1 | F6: 2 | L6: Bancos/Tesorería | P6: ='Formato 1'!B11 -> 11260729.63 | Q6: ='Formato 1'!C11 -> 16556224.97
A7: 1,1,1,1,3,0,0 | B7: 1 | C7: 1 | D7: 1 | E7: 1 | F7: 3 | L7: Bancos/Dependencias y Otros | P7: ='Formato 1'!B12 -> 0 | Q7: ='Formato 1'!C12 -> 0
A8: 1,1,1,1,4,0,0 | B8: 1 | C8: 1 | D8: 1 | E8: 1 | F8: 4 | L8: Inversiones Temporales (Hasta 3 meses) | P8: ='Formato 1'!B13 -> 98097401.67 | Q8: ='Formato 1'!C13 -> 60258345.28
A9: 1,1,1,1,5,0,0 | B9: 1 | C9: 1 | D9: 1 | E9: 1 | F9: 5 | L9: Fondos con Afectación Específica | P9: ='Formato 1'!B14 -> 3362005.44 | Q9: ='Formato 1'!C14 -> 3659452.59
A10: 1,1,1,1,6,0,0 | B10: 1 | C10: 1 | D10: 1 | E10: 1 | F10: 6 | L10: Depósitos de Fondos de Terceros en Garantía y/o Administración | P10: ='Formato 1'!B15 -> 30957.13 | Q10: ='Formato 1'!C15 -> 30957.13
A11: 1,1,1,1,7,0,0 | B11: 1 | C11: 1 | D11: 1 | E11: 1 | F11: 7 | L11: Otros Efectivos y Equivalentes | P11: ='Formato 1'!B16 -> 0 | Q11: ='Formato 1'!C16 -> 0
A12: 1,1,1,2,0,0,0 | B12: 1 | C12: 1 | D12: 1 | E12: 2 | K12: Derechos a Recibir Efectivo o Equivalentes | P12: ='Formato 1'!B17 -> 7848948.57 | Q12: ='Formato 1'!C17 -> 7180258.16
A13: 1,1,1,2,1,0,0 | B13: 1 | C13: 1 | D13: 1 | E13: 2 | F13: 1 | L13: Inversiones Financieras de Corto Plazo | P13: ='Formato 1'!B18 -> 0 | Q13: ='Formato 1'!C18 -> 0
A14: 1,1,1,2,2,0,0 | B14: 1 | C14: 1 | D14: 1 | E14: 2 | F14: 2 | L14: Cuentas por Cobrar a Corto Plazo | P14: ='Formato 1'!B19 -> 926032.5 | Q14: ='Formato 1'!C19 -> 928678.43
A15: 1,1,1,2,3,0,0 | B15: 1 | C15: 1 | D15: 1 | E15: 2 | F15: 3 | L15: Deudores Diversos por Cobrar a Corto Plazo | P15: ='Formato 1'!B20 -> 1704719.61 | Q15: ='Formato 1'!C20 -> 146725.21
A16: 1,1,1,2,4,0,0 | B16: 1 | C16: 1 | D16: 1 | E16: 2 | F16: 4 | L16: Ingresos por Recuperar a Corto Plazo | P16: ='Formato 1'!B21 -> 0 | Q16: ='Formato 1'!C21 -> 0
A17: 1,1,1,2,5,0,0 | B17: 1 | C17: 1 | D17: 1 | E17: 2 | F17: 5 | L17: Deudores por Anticipos de la Tesorería a Corto Plazo | P17: ='Formato 1'!B22 -> 175000 | Q17: ='Formato 1'!C22 -> 20235.84
A18: 1,1,1,2,6,0,0 | B18: 1 | C18: 1 | D18: 1 | E18: 2 | F18: 6 | L18: Préstamos Otorgados a Corto Plazo | P18: ='Formato 1'!B23 -> 0 | Q18: ='Formato 1'!C23 -> 0
A19: 1,1,1,2,7,0,0 | B19: 1 | C19: 1 | D19: 1 | E19: 2 | F19: 7 | L19: Otros Derechos a Recibir Efectivo o Equivalentes a Corto Plazo | P19: ='Formato 1'!B24 -> 5043196.46 | Q19: ='Formato 1'!C24 -> 6084618.68
A20: 1,1,1,3,0,0,0 | B20: 1 | C20: 1 | D20: 1 | E20: 3 | K20: Derechos a Recibir Bienes o Servicios | P20: ='Formato 1'!B25 -> 4616064.19 | Q20: ='Formato 1'!C25 -> 16028715.59
A21: 1,1,1,3,1,0,0 | B21: 1 | C21: 1 | D21: 1 | E21: 3 | F21: 1 | L21: Anticipo a Proveedores por Adquisición de Bienes y Prestación de Servicios a Corto Plazo | P21: ='Formato 1'!B26 -> 600 | Q21: ='Formato 1'!C26 -> 600
A22: 1,1,1,3,2,0,0 | B22: 1 | C22: 1 | D22: 1 | E22: 3 | F22: 2 | L22: Anticipo a Proveedores por Adquisición de Bienes Inmuebles y Muebles a Corto Plazo | P22: ='Formato 1'!B27 -> 0 | Q22: ='Formato 1'!C27 -> 0
A23: 1,1,1,3,3,0,0 | B23: 1 | C23: 1 | D23: 1 | E23: 3 | F23: 3 | L23: Anticipo a Proveedores por Adquisición de Bienes Intangibles a Corto Plazo | P23: ='Formato 1'!B28 -> 0 | Q23: ='Formato 1'!C28 -> 0
A24: 1,1,1,3,4,0,0 | B24: 1 | C24: 1 | D24: 1 | E24: 3 | F24: 4 | L24: Anticipo a Contratistas por Obras Públicas a Corto Plazo | P24: ='Formato 1'!B29 -> 4615464.19 | Q24: ='Formato 1'!C29 -> 16028115.59
A25: 1,1,1,3,5,0,0 | B25: 1 | C25: 1 | D25: 1 | E25: 3 | F25: 5 | L25: Otros Derechos a Recibir Bienes o Servicios a Corto Plazo | P25: ='Formato 1'!B30 -> 0 | Q25: ='Formato 1'!C30 -> 0
A26: 1,1,1,4,0,0,0 | B26: 1 | C26: 1 | D26: 1 | E26: 4 | K26: Inventarios | P26: ='Formato 1'!B31 -> 0 | Q26: ='Formato 1'!C31 -> 0
A27: 1,1,1,4,1,0,0 | B27: 1 | C27: 1 | D27: 1 | E27: 4 | F27: 1 | L27: Inventario de Mercancías para Venta | P27: ='Formato 1'!B32 -> 0 | Q27: ='Formato 1'!C32 -> 0
A28: 1,1,1,4,2,0,0 | B28: 1 | C28: 1 | D28: 1 | E28: 4 | F28: 2 | L28: Inventario de Mercancías Terminadas | P28: ='Formato 1'!B33 -> 0 | Q28: ='Formato 1'!C33 -> 0
A29: 1,1,1,4,3,0,0 | B29: 1 | C29: 1 | D29: 1 | E29: 4 | F29: 3 | L29: Inventario de Mercancías en Proceso de Elaboración | P29: ='Formato 1'!B34 -> 0 | Q29: ='Formato 1'!C34 -> 0
A30: 1,1,1,4,4,0,0 | B30: 1 | C30: 1 | D30: 1 | E30: 4 | F30: 4 | L30: Inventario de Materias Primas, Materiales y Suministros para Producción | P30: ='Formato 1'!B35 -> 0 | Q30: ='Formato 1'!C35 -> 0
A31: 1,1,1,4,5,0,0 | B31: 1 | C31: 1 | D31: 1 | E31: 4 | F31: 5 | L31: Bienes en Tránsito | P31: ='Formato 1'!B36 -> 0 | Q31: ='Formato 1'!C36 -> 0
A32: 1,1,1,5,0,0,0 | B32: 1 | C32: 1 | D32: 1 | E32: 5 | K32: Almacenes | P32: ='Formato 1'!B37 -> 0 | Q32: ='Formato 1'!C37 -> 0
A33: 1,1,1,5,1,0,0 | B33: 1 | C33: 1 | D33: 1 | E33: 5 | F33: 1 | L33: Almacenes | P33: ='Formato 1'!B37 -> 0 | Q33: ='Formato 1'!C37 -> 0
A34: 1,1,1,6,0,0,0 | B34: 1 | C34: 1 | D34: 1 | E34: 6 | K34: Estimación por Pérdida o Deterioro de Activos Circulantes | P34: ='Formato 1'!B38 -> 0 | Q34: ='Formato 1'!C38 -> 0
A35: 1,1,1,6,1,0,0 | B35: 1 | C35: 1 | D35: 1 | E35: 6 | F35: 1 | L35: Estimaciones para Cuentas Incobrables por Derechos a Recibir Efectivo o Equivalentes | P35: ='Formato 1'!B39 -> 0 | Q35: ='Formato 1'!C39 -> 0
A36: 1,1,1,6,2,0,0 | B36: 1 | C36: 1 | D36: 1 | E36: 6 | F36: 2 | L36: Estimación por Deterioro de Inventarios | P36: ='Formato 1'!B40 -> 0 | Q36: ='Formato 1'!C40 -> 0
A37: 1,1,1,7,0,0,0 | B37: 1 | C37: 1 | D37: 1 | E37: 7 | K37: Otros Activos Circulantes | P37: ='Formato 1'!B41 -> 0 | Q37: ='Formato 1'!C41 -> 0
A38: 1,1,1,7,1,0,0 | B38: 1 | C38: 1 | D38: 1 | E38: 7 | F38: 1 | L38: Valores en Garantía | P38: ='Formato 1'!B42 -> 0 | Q38: ='Formato 1'!C42 -> 0
A39: 1,1,1,7,2,0,0 | B39: 1 | C39: 1 | D39: 1 | E39: 7 | F39: 2 | L39: Bienes en Garantía (excluye depósitos de fondos) | P39: ='Formato 1'!B43 -> 0 | Q39: ='Formato 1'!C43 -> 0
A40: 1,1,1,7,3,0,0 | B40: 1 | C40: 1 | D40: 1 | E40: 7 | F40: 3 | L40: Bienes Derivados de Embargos, Decomisos, Aseguramientos y Dación en Pago | P40: ='Formato 1'!B44 -> 0 | Q40: ='Formato 1'!C44 -> 0
A41: 1,1,1,7,4,0,0 | B41: 1 | C41: 1 | D41: 1 | E41: 7 | F41: 4 | L41: Adquisición con Fondos de Terceros | P41: ='Formato 1'!B45 -> 0 | Q41: ='Formato 1'!C45 -> 0
A42: 1,1,1,8,0,0,0 | B42: 1 | C42: 1 | D42: 1 | E42: 8 | K42: Total de Activos Circulantes | P42: ='Formato 1'!B47 -> 125216106.6 | Q42: ='Formato 1'!C47 -> 103713953.7
A43: 1,1,2,0,0,0,0 | B43: 1 | C43: 1 | D43: 2 | J43: Activo No Circulante
A44: 1,1,2,1,0,0,0 | B44: 1 | C44: 1 | D44: 2 | E44: 1 | K44: Inversiones Financieras a Largo Plazo | P44: ='Formato 1'!B50 -> 0 | Q44: ='Formato 1'!C50 -> 0
A45: 1,1,2,2,0,0,0 | B45: 1 | C45: 1 | D45: 2 | E45: 2 | K45: Derechos a Recibir Efectivo o Equivalentes a Largo Plazo | P45: ='Formato 1'!B51 -> 0 | Q45: ='Formato 1'!C51 -> 0
A46: 1,1,2,3,0,0,0 | B46: 1 | C46: 1 | D46: 2 | E46: 3 | K46: Bienes Inmuebles, Infraestructura y Construcciones en Proceso | P46: ='Formato 1'!B52 -> 364824636.1 | Q46: ='Formato 1'!C52 -> 340245485.8
A47: 1,1,2,4,0,0,0 | B47: 1 | C47: 1 | D47: 2 | E47: 4 | K47: Bienes Muebles | P47: ='Formato 1'!B53 -> 83420898.77 | Q47: ='Formato 1'!C53 -> 83384944.81
A48: 1,1,2,5,0,0,0 | B48: 1 | C48: 1 | D48: 2 | E48: 5 | K48: Activos Intangibles | P48: ='Formato 1'!B54 -> 135966.14 | Q48: ='Formato 1'!C54 -> 135966.14
A49: 1,1,2,6,0,0,0 | B49: 1 | C49: 1 | D49: 2 | E49: 6 | K49: Depreciación, Deterioro y Amortización Acumulada de Bienes | P49: ='Formato 1'!B55 -> -44948317.51 | Q49: ='Formato 1'!C55 -> -44948317.51
A50: 1,1,2,7,0,0,0 | B50: 1 | C50: 1 | D50: 2 | E50: 7 | K50: Activos Diferidos | P50: ='Formato 1'!B56 -> 1176759.67 | Q50: ='Formato 1'!C56 -> 1176759.67
A51: 1,1,2,8,0,0,0 | B51: 1 | C51: 1 | D51: 2 | E51: 8 | K51: Estimación por Pérdida o Deterioro de Activos no Circulantes | P51: ='Formato 1'!B57 -> 0 | Q51: ='Formato 1'!C57 -> 0
A52: 1,1,2,9,0,0,0 | B52: 1 | C52: 1 | D52: 2 | E52: 9 | K52: Otros Activos no Circulantes | P52: ='Formato 1'!B58 -> 0 | Q52: ='Formato 1'!C58 -> 0
A53: 1,1,2,10,0,0,0 | B53: 1 | C53: 1 | D53: 2 | E53: 10 | J53: Total de Activos No Circulantes | P53: ='Formato 1'!B60 -> 404609943.1 | Q53: ='Formato 1'!C60 -> 379994838.9
A54: 1,1,3,0,0,0,0 | B54: 1 | C54: 1 | D54: 3 | J54: Total del Activo | P54: ='Formato 1'!B62 -> 529826049.8 | Q54: ='Formato 1'!C62 -> 483708792.6
A55: 1,2,0,0,0,0,0 | B55: 1 | C55: 2 | I55: PASIVO
A56: 1,2,1,0,0,0,0 | B56: 1 | C56: 2 | D56: 1 | J56: Pasivo Circulante
A57: 1,2,1,1,0,0,0 | B57: 1 | C57: 2 | D57: 1 | E57: 1 | K57: Cuentas por Pagar a Corto Plazo | P57: ='Formato 1'!E9 -> 12561889.84 | Q57: ='Formato 1'!F9 -> 44143115.55
A58: 1,2,1,1,1,0,0 | B58: 1 | C58: 2 | D58: 1 | E58: 1 | F58: 1 | L58: Servicios Personales por Pagar a Corto Plazo | P58: ='Formato 1'!E10 -> 226028.76 | Q58: ='Formato 1'!F10 -> 1280404.99
A59: 1,2,1,1,2,0,0 | B59: 1 | C59: 2 | D59: 1 | E59: 1 | F59: 2 | L59: Proveedores por Pagar a Corto Plazo | P59: ='Formato 1'!E11 -> 776847.54 | Q59: ='Formato 1'!F11 -> 5140978.21
A60: 1,2,1,1,3,0,0 | B60: 1 | C60: 2 | D60: 1 | E60: 1 | F60: 3 | L60: Contratistas por Obras Públicas por Pagar a Corto Plazo | P60: ='Formato 1'!E12 -> 6424847.12 | Q60: ='Formato 1'!F12 -> 23137837.37
A61: 1,2,1,1,4,0,0 | B61: 1 | C61: 2 | D61: 1 | E61: 1 | F61: 4 | L61: Participaciones y Aportaciones por Pagar a Corto Plazo | P61: ='Formato 1'!E13 -> 0 | Q61: ='Formato 1'!F13 -> 0
A62: 1,2,1,1,5,0,0 | B62: 1 | C62: 2 | D62: 1 | E62: 1 | F62: 5 | L62: Transferencias Otorgadas por Pagar a Corto Plazo | P62: ='Formato 1'!E14 -> 8395.15 | Q62: ='Formato 1'!F14 -> 8609938.39
A63: 1,2,1,1,6,0,0 | B63: 1 | C63: 2 | D63: 1 | E63: 1 | F63: 6 | L63: Intereses, Comisiones y Otros Gastos de la Deuda Pública por Pagar a Corto Plazo | P63: ='Formato 1'!E15 -> 0 | Q63: ='Formato 1'!F15 -> 0
A64: 1,2,1,1,7,0,0 | B64: 1 | C64: 2 | D64: 1 | E64: 1 | F64: 7 | L64: Retenciones y Contribuciones por Pagar a Corto Plazo | P64: ='Formato 1'!E16 -> 2271716.31 | Q64: ='Formato 1'!F16 -> 4179110.72
A65: 1,2,1,1,8,0,0 | B65: 1 | C65: 2 | D65: 1 | E65: 1 | F65: 8 | L65: Devoluciones de la Ley de Ingresos por Pagar a Corto Plazo | P65: ='Formato 1'!E17 -> 0 | Q65: ='Formato 1'!F17 -> 0
A66: 1,2,1,1,9,0,0 | B66: 1 | C66: 2 | D66: 1 | E66: 1 | F66: 9 | L66: Otras Cuentas por Pagar a Corto Plazo | P66: ='Formato 1'!E18 -> 2854054.96 | Q66: ='Formato 1'!F18 -> 1794845.87
A67: =IF(LEN(CLEAN(B67))=0,"0",B67)&","&IF(LEN(CLEAN(C67))=0,"0",C67)&","&IF(LEN(CLEAN(D67))=0,"0",D67)&","&IF(LEN(CLEAN(E67))=0,"0",E67)&","&IF(LEN(CLEAN(F67))=0,"0",F67)&","&IF(LEN(CLEAN(G67))=0,"0",G67)&","&IF(LEN(CLEAN(H67))=0,"0",H67) -> 1,2,1,2,0,0,0 | B67: 1 | C67: 2 | D67: 1 | E67: 2 | K67: Documentos por Pagar a Corto Plazo | P67: ='Formato 1'!E19 -> 0 | Q67: ='Formato 1'!F19 -> 0
A68: 1,2,1,2,1,0,0 | B68: 1 | C68: 2 | D68: 1 | E68: 2 | F68: 1 | L68: Documentos Comerciales por Pagar a Corto Plazo | P68: ='Formato 1'!E20 -> 0 | Q68: ='Formato 1'!F20 -> 0
A69: 1,2,1,2,2,0,0 | B69: 1 | C69: 2 | D69: 1 | E69: 2 | F69: 2 | L69: Documentos con Contratistas por Obras Públicas por Pagar a Corto Plazo | P69: ='Formato 1'!E21 -> 0 | Q69: ='Formato 1'!F21 -> 0
A70: 1,2,1,2,3,0,0 | B70: 1 | C70: 2 | D70: 1 | E70: 2 | F70: 3 | L70: Otros Documentos por Pagar a Corto Plazo | P70: ='Formato 1'!E22 -> 0 | Q70: ='Formato 1'!F22 -> 0
A71: 1,2,1,3,0,0,0 | B71: 1 | C71: 2 | D71: 1 | E71: 3 | K71: Porción a Corto Plazo de la Deuda Pública a Largo Plazo | P71: ='Formato 1'!E23 -> 1205357.13 | Q71: ='Formato 1'!F23 -> 0
A72: 1,2,1,3,1,0,0 | B72: 1 | C72: 2 | D72: 1 | E72: 3 | F72: 1 | L72: Porción a Corto Plazo de la Deuda Pública | P72: ='Formato 1'!E24 -> 1205357.13 | Q72: ='Formato 1'!F24 -> 0
A73: 1,2,1,3,2,0,0 | B73: 1 | C73: 2 | D73: 1 | E73: 3 | F73: 2 | L73: Porción a Corto Plazo de Arrendamiento Financiero | P73: ='Formato 1'!E25 -> 0 | Q73: ='Formato 1'!F25 -> 0
A74: 1,2,1,4,0,0,0 | B74: 1 | C74: 2 | D74: 1 | E74: 4 | K74: Títulos y Valores a Corto Plazo | P74: ='Formato 1'!E26 -> 0 | Q74: ='Formato 1'!F26 -> 0
A75: 1,2,1,4,1,0,0 | B75: 1 | C75: 2 | D75: 1 | E75: 4 | F75: 1 | L75: Títulos y Valores a Corto Plazo | P75: ='Formato 1'!E26 -> 0 | Q75: ='Formato 1'!F26 -> 0
A76: 1,2,1,5,0,0,0 | B76: 1 | C76: 2 | D76: 1 | E76: 5 | K76: Pasivos Diferidos a Corto Plazo | P76: ='Formato 1'!E27 -> 0 | Q76: ='Formato 1'!F27 -> 0
A77: 1,2,1,5,1,0,0 | B77: 1 | C77: 2 | D77: 1 | E77: 5 | F77: 1 | L77: Ingresos Cobrados por Adelantado a Corto Plazo | P77: ='Formato 1'!E28 -> 0 | Q77: ='Formato 1'!F28 -> 0
A78: 1,2,1,5,2,0,0 | B78: 1 | C78: 2 | D78: 1 | E78: 5 | F78: 2 | L78: Intereses Cobrados por Adelantado a Corto Plazo | P78: ='Formato 1'!E29 -> 0 | Q78: ='Formato 1'!F29 -> 0
A79: 1,2,1,5,3,0,0 | B79: 1 | C79: 2 | D79: 1 | E79: 5 | F79: 3 | L79: Otros Pasivos Diferidos a Corto Plazo | P79: ='Formato 1'!E30 -> 0 | Q79: ='Formato 1'!F30 -> 0
A80: 1,2,1,6,0,0,0 | B80: 1 | C80: 2 | D80: 1 | E80: 6 | K80: Fondos y Bienes de Terceros en Garantía y/o Administración a Corto Plazo | P80: ='Formato 1'!E31 -> 0 | Q80: ='Formato 1'!F31 -> 0
A81: 1,2,1,6,1,0,0 | B81: 1 | C81: 2 | D81: 1 | E81: 6 | F81: 1 | L81: Fondos en Garantía a Corto Plazo | P81: ='Formato 1'!E32 -> 0 | Q81: ='Formato 1'!F32 -> 0
A82: 1,2,1,6,2,0,0 | B82: 1 | C82: 2 | D82: 1 | E82: 6 | F82: 2 | L82: Fondos en Administración a Corto Plazo | P82: ='Formato 1'!E33 -> 0 | Q82: ='Formato 1'!F33 -> 0
A83: 1,2,1,6,3,0,0 | B83: 1 | C83: 2 | D83: 1 | E83: 6 | F83: 3 | L83: Fondos Contingentes a Corto Plazo | P83: ='Formato 1'!E34 -> 0 | Q83: ='Formato 1'!F34 -> 0
A84: 1,2,1,6,4,0,0 | B84: 1 | C84: 2 | D84: 1 | E84: 6 | F84: 4 | L84: Fondos de Fideicomisos, Mandatos y Contratos Análogos a Corto Plazo | P84: ='Formato 1'!E35 -> 0 | Q84: ='Formato 1'!F35 -> 0
A85: 1,2,1,6,5,0,0 | B85: 1 | C85: 2 | D85: 1 | E85: 6 | F85: 5 | L85: Otros Fondos de Terceros en Garantía y/o Administración a Corto Plazo | P85: ='Formato 1'!E36 -> 0 | Q85: ='Formato 1'!F36 -> 0
A86: 1,2,1,6,6,0,0 | B86: 1 | C86: 2 | D86: 1 | E86: 6 | F86: 6 | L86: Valores y Bienes en Garantía a Corto Plazo | P86: ='Formato 1'!E37 -> 0 | Q86: ='Formato 1'!F37 -> 0
A87: 1,2,1,7,0,0,0 | B87: 1 | C87: 2 | D87: 1 | E87: 7 | K87: Provisiones a Corto Plazo | P87: ='Formato 1'!E38 -> 0 | Q87: ='Formato 1'!F38 -> 0
A88: 1,2,1,7,1,0,0 | B88: 1 | C88: 2 | D88: 1 | E88: 7 | F88: 1 | L88: Provisión para Demandas y Juicios a Corto Plazo | P88: ='Formato 1'!E39 -> 0 | Q88: ='Formato 1'!F39 -> 0
A89: 1,2,1,7,2,0,0 | B89: 1 | C89: 2 | D89: 1 | E89: 7 | F89: 2 | L89: Provisión para Contingencias a Corto Plazo | P89: ='Formato 1'!E40 -> 0 | Q89: ='Formato 1'!F40 -> 0
A90: 1,2,1,7,3,0,0 | B90: 1 | C90: 2 | D90: 1 | E90: 7 | F90: 3 | L90: Otras Provisiones a Corto Plazo | P90: ='Formato 1'!E41 -> 0 | Q90: ='Formato 1'!F41 -> 0
A91: 1,2,1,8,0,0,0 | B91: 1 | C91: 2 | D91: 1 | E91: 8 | K91: Otros Pasivos a Corto Plazo | P91: ='Formato 1'!E42 -> 0 | Q91: ='Formato 1'!F42 -> 0
A92: 1,2,1,8,1,0,0 | B92: 1 | C92: 2 | D92: 1 | E92: 8 | F92: 1 | L92: Ingresos por Clasificar | P92: ='Formato 1'!E43 -> 0 | Q92: ='Formato 1'!F43 -> 0
A93: 1,2,1,8,2,0,0 | B93: 1 | C93: 2 | D93: 1 | E93: 8 | F93: 2 | L93: Recaudación por Participar | P93: ='Formato 1'!E44 -> 0 | Q93: ='Formato 1'!F44 -> 0
A94: 1,2,1,8,3,0,0 | B94: 1 | C94: 2 | D94: 1 | E94: 8 | F94: 3 | L94: Otros Pasivos Circulantes | P94: ='Formato 1'!E45 -> 0 | Q94: ='Formato 1'!F45 -> 0
A95: 1,2,1,9,0,0,0 | B95: 1 | C95: 2 | D95: 1 | E95: 9 | K95: Total de Pasivos Circulantes | P95: ='Formato 1'!E47 -> 13767246.97 | Q95: ='Formato 1'!F47 -> 44143115.55
A96: 1,2,2,0,0,0,0 | B96: 1 | C96: 2 | D96: 2 | J96: Pasivo No Circulante
A97: 1,2,2,1,1,0,0 | B97: 1 | C97: 2 | D97: 2 | E97: 1 | F97: 1 | K97: Cuentas por Pagar a Largo Plazo | P97: ='Formato 1'!E50 -> 0 | Q97: ='Formato 1'!F50 -> 0
A98: 1,2,2,1,2,0,0 | B98: 1 | C98: 2 | D98: 2 | E98: 1 | F98: 2 | K98: Documentos por Pagar a Largo Plazo | P98: ='Formato 1'!E51 -> 0 | Q98: ='Formato 1'!F51 -> 0
A99: 1,2,2,1,3,0,0 | B99: 1 | C99: 2 | D99: 2 | E99: 1 | F99: 3 | K99: Deuda Pública a Largo Plazo | P99: ='Formato 1'!E52 -> 8035714.36 | Q99: ='Formato 1'!F52 -> 9642857.2
A100: 1,2,2,1,4,0,0 | B100: 1 | C100: 2 | D100: 2 | E100: 1 | F100: 4 | K100: Pasivos Diferidos a Largo Plazo | P100: ='Formato 1'!E53 -> 0 | Q100: ='Formato 1'!F53 -> 0
A101: 1,2,2,1,5,0,0 | B101: 1 | C101: 2 | D101: 2 | E101: 1 | F101: 5 | K101: Fondos y Bienes de Terceros en Garantía y/o en Administración a Largo Plazo | P101: ='Formato 1'!E54 -> 0 | Q101: ='Formato 1'!F54 -> 0
A102: 1,2,2,1,6,0,0 | B102: 1 | C102: 2 | D102: 2 | E102: 1 | F102: 6 | K102: Provisiones a Largo Plazo | P102: ='Formato 1'!E55 -> 0 | Q102: ='Formato 1'!F55 -> 0
A103: 1,2,2,1,7,0,0 | B103: 1 | C103: 2 | D103: 2 | E103: 1 | F103: 7 | K103: Total de Pasivos No Circulantes | P103: ='Formato 1'!E57 -> 8035714.36 | Q103: ='Formato 1'!F57 -> 9642857.2
A104: 1,2,3,0,0,0,0 | B104: 1 | C104: 2 | D104: 3 | J104: Total del Pasivo | P104: ='Formato 1'!E59 -> 21802961.33 | Q104: ='Formato 1'!F59 -> 53785972.75
A105: 1,2,4,0,0,0,0 | B105: 1 | C105: 2 | D105: 4 | J105: HACIENDA PÚBLICA/PATRIMONIO
A106: 1,2,4,1,0,0,0 | B106: 1 | C106: 2 | D106: 4 | E106: 1 | K106: Hacienda Pública/Patrimonio Contribuido | P106: ='Formato 1'!E63 -> 23319492.92 | Q106: ='Formato 1'!F63 -> 23319492.92
A107: 1,2,4,1,1,0,0 | B107: 1 | C107: 2 | D107: 4 | E107: 1 | F107: 1 | L107: Aportaciones | P107: ='Formato 1'!E64 -> 22266596.24 | Q107: ='Formato 1'!F64 -> 22266596.24
A108: 1,2,4,1,2,0,0 | B108: 1 | C108: 2 | D108: 4 | E108: 1 | F108: 2 | L108: Donaciones de Capital | P108: ='Formato 1'!E65 -> 1052896.68 | Q108: ='Formato 1'!F65 -> 1052896.68
A109: 1,2,4,1,4,0,0 | B109: 1 | C109: 2 | D109: 4 | E109: 1 | F109: 4 | L109: Actualización de la Hacienda Pública/Patrimonio | P109: ='Formato 1'!E66 -> 0 | Q109: ='Formato 1'!F66 -> 0
A110: 1,2,4,2,0,0,0 | B110: 1 | C110: 2 | D110: 4 | E110: 2 | K110: Hacienda Pública/Patrimonio Generado | P110: ='Formato 1'!E68 -> 484703595.5 | Q110: ='Formato 1'!F68 -> 406603326.9
A111: 1,2,4,2,1,0,0 | B111: 1 | C111: 2 | D111: 4 | E111: 2 | F111: 1 | L111: Resultados del Ejercicio (Ahorro/ Desahorro) | P111: ='Formato 1'!E69 -> 68042716.77 | Q111: ='Formato 1'!F69 -> 132649066.8
A112: 1,2,4,2,2,0,0 | B112: 1 | C112: 2 | D112: 4 | E112: 2 | F112: 2 | L112: Resultados de Ejercicios Anteriores | P112: ='Formato 1'!E70 -> 416593767.5 | Q112: ='Formato 1'!F70 -> 273887148.8
A113: 1,2,4,2,3,0,0 | B113: 1 | C113: 2 | D113: 4 | E113: 2 | F113: 3 | L113: Revalúos | P113: ='Formato 1'!E71 -> 0 | Q113: ='Formato 1'!F71 -> 0
A114: 1,2,4,2,4,0,0 | B114: 1 | C114: 2 | D114: 4 | E114: 2 | F114: 4 | L114: Reservas | P114: ='Formato 1'!E72 -> 0 | Q114: ='Formato 1'!F72 -> 0
A115: 1,2,4,2,5,0,0 | B115: 1 | C115: 2 | D115: 4 | E115: 2 | F115: 5 | L115: Rectificaciones de Resultados de Ejercicios Anteriores | P115: ='Formato 1'!E73 -> 67111.3 | Q115: ='Formato 1'!F73 -> 67111.3
A116: 1,2,4,3,0,0,0 | B116: 1 | C116: 2 | D116: 4 | E116: 3 | K116: Exceso o Insuficiencia en la Actualización de la Hacienda Pública/Patrimonio | P116: ='Formato 1'!E75 -> 0 | Q116: ='Formato 1'!F75 -> 0
A117: 1,2,4,3,1,0,0 | B117: 1 | C117: 2 | D117: 4 | E117: 3 | F117: 1 | L117: Resultado por Posición Monetaria | P117: ='Formato 1'!E76 -> 0 | Q117: ='Formato 1'!F76 -> 0
A118: 1,2,4,3,2,0,0 | B118: 1 | C118: 2 | D118: 4 | E118: 3 | F118: 2 | L118: Resultado por Tenencia de Activos no Monetarios | P118: ='Formato 1'!E77 -> 0 | Q118: ='Formato 1'!F77 -> 0
A119: 1,2,4,4,0,0,0 | B119: 1 | C119: 2 | D119: 4 | E119: 4 | K119: Total Hacienda Pública/Patrimonio | P119: ='Formato 1'!E79 -> 508023088.4 | Q119: ='Formato 1'!F79 -> 429922819.8
A120: 1,2,4,5,0,0,0 | B120: 1 | C120: 2 | D120: 4 | E120: 5 | K120: Total del Pasivo y Hacienda Pública/Patrimonio | P120: ='Formato 1'!E81 -> 529826049.8 | Q120: ='Formato 1'!F81 -> 483708792.6

Sheet Formato 2
A1: Formato 2 Informe Analítico de la Deuda Pública y Otros Pasivos - LDF
A2: =ENTE_PUBLICO_A -> Municipio de Valle de Santiago, Gto., Gobierno del Estado de Guanajuato (a)
A3: Informe Analítico de la Deuda Pública y Otros Pasivos - LDF
A4: =PERIODO_INFORME -> Al 31 de diciembre de 2021 y al 30 de marzo de 2022 (b)
A5: (PESOS)
A6: Denominación de la Deuda Pública y Otros Pasivos (c) | B6: =ULTIMO_SALDO -> Saldo al 31 de diciembre de 2021 (d) | C6: Disposiciones del Periodo (e) | D6: Amortizaciones del Periodo (f) | E6: Revaluaciones, Reclasificaciones y Otros Ajustes (g) | F6: Saldo Final del Periodo (h) h=d+e-f+g | G6: Pago de Intereses del Periodo (i) | H6: Pago de Comisiones y demás costos asociados durante el Periodo (j)
A8: 1. Deuda Pública (1=A+B) | B8: =B9+B13 -> 9642857.2 | C8: =C9+C13 -> 1607142.84 | D8: =D9+D13 -> 2008928.55 | E8: 0 | F8: =F9+F13 -> 9241071.49 | G8: -169821.26 | H8: 0
A9: A. Corto Plazo (A=a1+a2+a3) | B9: 0 | C9: =C10 -> 1607142.84 | D9: =SUM(D10:D12) -> 401785.71 | E9: 0 | F9: =C9-D9 -> 1205357.13 | G9: =SUM(G10:G12) -> -169821.26 | H9: 0
A10: a1) Instituciones de Crédito | B10: 0 | C10: 1607142.84 | D10: 401785.71 | E10: 0 | F10: -169821.26 | G10: -169821.26 | H10: 0
A11: a2) Títulos y Valores | B11: 0 | C11: 0 | D11: 0 | E11: 0 | F11: 0 | G11: 0 | H11: 0
A12: a3) Arrendamientos Financieros | B12: 0 | C12: 0 | D12: 0 | E12: 0 | F12: 0 | G12: 0 | H12: 0
A13: B. Largo Plazo (B=b1+b2+b3) | B13: =SUM(B14:B15) -> 9642857.2 | C13: =SUM(C14:C15) -> 0 | D13: =D14 -> 1607142.84 | E13: 0 | F13: =B13-D13 -> 8035714.36 | G13: 0 | H13: 0
A14: b1) Instituciones de Crédito | B14: 9642857.2 | C14: 0 | D14: 1607142.84 | E14: 0 | F14: =B14-D14 -> 8035714.36 | G14: 0 | H14: 0
A15: b2) Títulos y Valores | B15: 0 | C15: 0 | D15: 0 | E15: 0 | F15: 0 | G15: 0 | H15: 0
A16: b3) Arrendamientos Financieros | B16: 0 | C16: 0 | D16: 0 | E16: 0 | F16: 0 | G16: 0 | H16: 0
A18: 2. Otros Pasivos | B18: 44143115.55 | F18: 12561889.84
A20: 3. Total de la Deuda Pública y Otros Pasivos (3=1+2) | B20: =B8+B18 -> 53785972.75 | C20: =C8+C18 -> 1607142.84 | D20: =D8+D18 -> 2008928.55 | E20: =E21+E25 -> 0 | F20: =F8+F18 -> 21802961.33 | G20: =G8+G18 -> -169821.26 | H20: =H8+H18 -> 0
A22: 4. Deuda Contingente 1 (Informativo) | B22: =B23+B27 -> 0 | C22: =C23+C27 -> 0 | D22: =D23+D27 -> 0 | E22: 0 | F22: =F23+F27 -> 0 | G22: =G23+G27 -> 0 | H22: =H23+H27 -> 0
A23: A. Deuda Contingente 1 | B23: 0 | C23: 0 | D23: 0 | E23: 0 | F23: 0 | G23: 0 | H23: 0
A24: B. Deuda Contingente 2 | B24: 0 | C24: 0 | D24: 0 | E24: 0 | F24: 0 | G24: 0 | H24: 0
A25: C. Deuda Contingente XX | B25: 0 | C25: 0 | D25: 0 | E25: 0 | F25: 0 | G25: 0 | H25: 0
A26: *
A27: 5. Valor de Instrumentos Bono Cupón Cero 2 (Informativo) | B27: =B28+B32 -> 0 | C27: =C28+C32 -> 0 | D27: =D28+D32 -> 0 | E27: =E28+E32 -> 0 | F27: =F28+F32 -> 0 | G27: =G28+G32 -> 0 | H27: =H28+H32 -> 0
A28: A. Instrumento Bono Cupón Cero 1 | B28: 0 | C28: 0 | D28: 0 | E28: 0 | F28: 0 | G28: 0 | H28: 0
A29: B. Instrumento Bono Cupón Cero 2 | B29: 0 | C29: 0 | D29: 0 | E29: 0 | F29: 0 | G29: 0 | H29: 0
A30: C. Instrumento Bono Cupón Cero XX | B30: 0 | C30: 0 | D30: 0 | E30: 0 | F30: 0 | G30: 0 | H30: 0
A31: *
A33: 1 Se refiere a cualquier Financiamiento sin fuente o garantía de pago definida, que sea asumida de manera solidaria o subsidiaria por las Entidades Federativas con sus Municipios, organismos descentralizados y empresas de participación estatal mayoritaria y fideicomisos, locales o municipales, y por los Municipios con sus respectivos organismos descentralizados y empresas de participación municipal mayoritaria. 2 Se refiere al valor del Bono Cupón Cero que respalda el pago de los créditos asociados al mismo (Activo).
A39: Obligaciones a Corto Plazo (k) | B39: Monto Contratado (l) | C39: Plazo Pactado (m) | D39: Tasa de Interés (n) | E39: Comisiones y Costos Relacionados (o) | F39: Tasa Efectiva (p)
A41: 6. Obligaciones a Corto Plazo (Informativo) | B41: =B42+B46 -> 0 | C41: =C42+C46 -> 0 | D41: =D42+D46 -> 0 | E41: =E42+E46 -> 0 | F41: =F42+F46 -> 0
A42: A. Crédito 1 | B42: 0 | C42: 0 | D42: 0 | E42: 0 | F42: 0
A43: B. Crédito 2 | B43: 0 | C43: 0 | D43: 0 | E43: 0 | F43: 0
A44: C. Crédito XX | B44: 0 | C44: 0 | D44: 0 | E44: 0 | F44: 0
A45: *

Sheet F02 (hidden)
A1: CLAVE | B1: N1 | C1: N2 | D1: N3 | E1: N4 | F1: N5 | G1: N6 | H1: N7 | I1: C O N C E P T O S | P1: SALDO_ANT | Q1: DISP | R1: AMORT | S1: REVAL | T1: SALDO_FIN | U1: PAGO_INT | V1: PAGO_COM
A2: =IF(LEN(CLEAN(B2))=0,"0",B2)&","&IF(LEN(CLEAN(C2))=0,"0",C2)&","&IF(LEN(CLEAN(D2))=0,"0",D2)&","&IF(LEN(CLEAN(E2))=0,"0",E2)&","&IF(LEN(CLEAN(F2))=0,"0",F2)&","&IF(LEN(CLEAN(G2))=0,"0",G2)&","&IF(LEN(CLEAN(H2))=0,"0",H2) -> 2,1,0,0,0,0,0 | B2: 2 | C2: 1 | I2: Denominación de la Deuda Pública y Otros Pasivos
A3: =IF(LEN(CLEAN(B3))=0,"0",B3)&","&IF(LEN(CLEAN(C3))=0,"0",C3)&","&IF(LEN(CLEAN(D3))=0,"0",D3)&","&IF(LEN(CLEAN(E3))=0,"0",E3)&","&IF(LEN(CLEAN(F3))=0,"0",F3)&","&IF(LEN(CLEAN(G3))=0,"0",G3)&","&IF(LEN(CLEAN(H3))=0,"0",H3) -> 2,1,1,0,0,0,0 | B3: 2 | C3: 1 | D3: 1 | J3: Deuda Pública | P3: ='Formato 2'!B8 -> 9642857.2 | Q3: ='Formato 2'!C8 -> 1607142.84 | R3: ='Formato 2'!D8 -> 2008928.55 | S3: ='Formato 2'!E8 -> 0 | T3: ='Formato 2'!F8 -> 9241071.49 | U3: ='Formato 2'!G8 -> -169821.26 | V3: ='Formato 2'!H8 -> 0
A4: 2,1,1,1,0,0,0 | B4: 2 | C4: 1 | D4: 1 | E4: 1 | K4: Corto Plazo | P4: ='Formato 2'!B9 -> 0 | Q4: ='Formato 2'!C9 -> 1607142.84 | R4: ='Formato 2'!D9 -> 401785.71 | S4: ='Formato 2'!E9 -> 0 | T4: ='Formato 2'!F9 -> 1205357.13 | U4: ='Formato 2'!G9 -> -169821.26 | V4: ='Formato 2'!H9 -> 0
A5: 2,1,1,1,1,0,0 | B5: 2 | C5: 1 | D5: 1 | E5: 1 | F5: 1 | L5: Instituciones de Crédito | P5: ='Formato 2'!B10 -> 0 | Q5: ='Formato 2'!C10 -> 1607142.84 | R5: ='Formato 2'!D10 -> 401785.71 | S5: ='Formato 2'!E10 -> 0 | T5: ='Formato 2'!F10 -> -169821.26 | U5: ='Formato 2'!G10 -> -169821.26 | V5: ='Formato 2'!H10 -> 0
A6: 2,1,1,1,2,0,0 | B6: 2 | C6: 1 | D6: 1 | E6: 1 | F6: 2 | L6: Títulos y Valores | P6: ='Formato 2'!B11 -> 0 | Q6: ='Formato 2'!C11 -> 0 | R6: ='Formato 2'!D11 -> 0 | S6: ='Formato 2'!E11 -> 0 | T6: ='Formato 2'!F11 -> 0 | U6: ='Formato 2'!G11 -> 0 | V6: ='Formato 2'!H11 -> 0
A7: =IF(LEN(CLEAN(B7))=0,"0",B7)&","&IF(LEN(CLEAN(C7))=0,"0",C7)&","&IF(LEN(CLEAN(D7))=0,"0",D7)&","&IF(LEN(CLEAN(E7))=0,"0",E7)&","&IF(LEN(CLEAN(F7))=0,"0",F7)&","&IF(LEN(CLEAN(G7))=0,"0",G7)&","&IF(LEN(CLEAN(H7))=0,"0",H7) -> 2,1,1,1,3,0,0 | B7: 2 | C7: 1 | D7: 1 | E7: 1 | F7: 3 | L7: Arrendamientos Financieros | P7: ='Formato 2'!B12 -> 0 | Q7: ='Formato 2'!C12 -> 0 | R7: ='Formato 2'!D12 -> 0 | S7: ='Formato 2'!E12 -> 0 | T7: ='Formato 2'!F12 -> 0 | U7: ='Formato 2'!G12 -> 0 | V7: ='Formato 2'!H12 -> 0
A8: =IF(LEN(CLEAN(B8))=0,"0",B8)&","&IF(LEN(CLEAN(C8))=0,"0",C8)&","&IF(LEN(CLEAN(D8))=0,"0",D8)&","&IF(LEN(CLEAN(E8))=0,"0",E8)&","&IF(LEN(CLEAN(F8))=0,"0",F8)&","&IF(LEN(CLEAN(G8))=0,"0",G8)&","&IF(LEN(CLEAN(H8))=0,"0",H8) -> 2,1,1,2,0,0,0 | B8: 2 | C8: 1 | D8: 1 | E8: 2 | K8: Largo Plazo | P8: ='Formato 2'!B13 -> 9642857.2 | Q8: ='Formato 2'!C13 -> 0 | R8: ='Formato 2'!D13 -> 1607142.84 | S8: ='Formato 2'!E13 -> 0 | T8: ='Formato 2'!F13 -> 8035714.36 | U8: ='Formato 2'!G13 -> 0 | V8: ='Formato 2'!H13 -> 0
A9: 2,1,1,2,1,0,0 | B9: 2 | C9: 1 | D9: 1 | E9: 2 | F9: 1 | L9: Instituciones de Crédito | P9: ='Formato 2'!B14 -> 9642857.2 | Q9: ='Formato 2'!C14 -> 0 | R9: ='Formato 2'!D14 -> 1607142.84 | S9: ='Formato 2'!E14 -> 0 | T9: ='Formato 2'!F14 -> 8035714.36 | U9: ='Formato 2'!G14 -> 0 | V9: ='Formato 2'!H14 -> 0
A10: 2,1,1,2,2,0,0 | B10: 2 | C10: 1 | D10: 1 | E10: 2 | F10: 2 | L10: Títulos y Valores | P10: ='Formato 2'!B15 -> 0 | Q10: ='Formato 2'!C15 -> 0 | R10: ='Formato 2'!D15 -> 0 | S10: ='Formato 2'!E15 -> 0 | T10: ='Formato 2'!F15 -> 0 | U10: ='Formato 2'!G15 -> 0 | V10: ='Formato 2'!H15 -> 0
A11: 2,1,1,2,3,0,0 | B11: 2 | C11: 1 | D11: 1 | E11: 2 | F11: 3 | L11: Arrendamientos Financieros | P11: ='Formato 2'!B16 -> 0 | Q11: ='Formato 2'!C16 -> 0 | R11: ='Formato 2'!D16 -> 0 | S11: ='Formato 2'!E16 -> 0 | T11: ='Formato 2'!F16 -> 0 | U11: ='Formato 2'!G16 -> 0 | V11: ='Formato 2'!H16 -> 0
A12: =IF(LEN(CLEAN(B12))=0,"0",B12)&","&IF(LEN(CLEAN(C12))=0,"0",C12)&","&IF(LEN(CLEAN(D12))=0,"0",D12)&","&IF(LEN(CLEAN(E12))=0,"0",E12)&","&IF(LEN(CLEAN(F12))=0,"0",F12)&","&IF(LEN(CLEAN(G12))=0,"0",G12)&","&IF(LEN(CLEAN(H12))=0,"0",H12) -> 2,1,2,0,0,0,0 | B12: 2 | C12: 1 | D12: 2 | J12: Otros Pasivos | P12: ='Formato 2'!B18 -> 44143115.55 | T12: ='Formato 2'!F18 -> 12561889.84
A13: 2,1,3,0,0,0,0 | B13: 2 | C13: 1 | D13: 3 | J13: Total de la Deuda Pública y Otros Pasivos | P13: ='Formato 2'!B20 -> 53785972.75 | Q13: ='Formato 2'!C20 -> 1607142.84 | R13: ='Formato 2'!D20 -> 2008928.55 | S13: ='Formato 2'!E20 -> 0 | T13: ='Formato 2'!F20 -> 21802961.33 | U13: ='Formato 2'!G20 -> -169821.26 | V13: ='Formato 2'!H20 -> 0
A14: 2,1,4,0,0,0,0 | B14: 2 | C14: 1 | D14: 4 | J14: Deuda Contingente | P14: =DEUDA_CONT_T1 -> 0 | Q14: =DEUDA_CONT_T2 -> 0 | R14: =DEUDA_CONT_T3 -> 0 | S14: =DEUDA_CONT_T4 -> 0 | T14: =DEUDA_CONT_T4 -> 0 | U14: =DEUDA_CONT_T6 -> 0 | V14: =DEUDA_CONT_T7 -> 0
A15: =IF(LEN(CLEAN(B15))=0,"0",B15)&","&IF(LEN(CLEAN(C15))=0,"0",C15)&","&IF(LEN(CLEAN(D15))=0,"0",D15)&","&IF(LEN(CLEAN(E15))=0,"0",E15)&","&IF(LEN(CLEAN(F15))=0,"0",F15)&","&IF(LEN(CLEAN(G15))=0,"0",G15)&","&IF(LEN(CLEAN(H15))=0,"0",H15) -> 2,1,5,0,0,0,0 | B15: 2 | C15: 1 | D15: 5 | J15: Valor de Instrumentos Bono Cupón Cero | P15: =VALOR_INS_BCC_T1 -> 0 | Q15: =VALOR_INS_BCC_T2 -> 0 | R15: =VALOR_INS_BCC_T3 -> 0 | S15: =VALOR_INS_BCC_T4 -> 0 | T15: =VALOR_INS_BCC_T5 -> 0 | U15: =VALOR_INS_BCC_T6 -> 0 | V15: =VALOR_INS_BCC_T7 -> 0
A16: =IF(LEN(CLEAN(B16))=0,"0",B16)&","&IF(LEN(CLEAN(C16))=0,"0",C16)&","&IF(LEN(CLEAN(D16))=0,"0",D16)&","&IF(LEN(CLEAN(E16))=0,"0",E16)&","&IF(LEN(CLEAN(F16))=0,"0",F16)&","&IF(LEN(CLEAN(G16))=0,"0",G16)&","&IF(LEN(CLEAN(H16))=0,"0",H16) -> 2,2,0,0,0,0,0 | B16: 2 | C16: 2 | I16: Obligaciones a Corto Plazo | P16: MONTO | Q16: PLAZO | R16: TASA_INTERES | S16: COMISIONES | T16: TASA_EFECTIVA
A17: 2,2,1,0,0,0,0 | B17: 2 | C17: 2 | D17: 1 | J17: Obligaciones a Corto Plazo | P17: =OB_CORTO_PLAZO_T1 -> 0 | Q17: =OB_CORTO_PLAZO_T2 -> 0 | R17: =OB_CORTO_PLAZO_T3 -> 0 | S17: =OB_CORTO_PLAZO_T4 -> 0 | T17: =OB_CORTO_PLAZO_T5 -> 0

Sheet Formato 3
A1: Formato 3 Informe Analítico de Obligaciones Diferentes de Financiamientos - LDF
A2: =ENTE_PUBLICO_A -> Municipio de Valle de Santiago, Gto., Gobierno del Estado de Guanajuato (a)
A3: Informe Analítico de Obligaciones Diferentes de Financiamientos – LDF
A4: =TRIMESTRE -> Del 1 de enero al 30 de marzo de 2022 (b)
A5: (PESOS)
A6: Denominación de las Obligaciones Diferentes de Financiamiento (c) | B6: Fecha del Contrato (d) | C6: Fecha de inicio de operación del proyecto (e) | D6: Fecha de vencimiento (f) | E6: Monto de la inversión pactado (g) | F6: Plazo pactado (h) | G6: Monto promedio mensual del pago de la contraprestación (i) | H6: Monto promedio mensual del pago de la contraprestación correspondiente al pago de inversión (j) | I6: =MONTO1 -> Monto pagado de la inversión al 30 de marzo de 2022 (k) | J6: =MONTO2 -> Monto pagado de la inversión actualizado al 30 de marzo de 2022 (l) | K6: =SALDO_PENDIENTE -> Saldo pendiente por pagar de la inversión al 30 de marzo de 2022 (m = g – l)
A8: A. Asociaciones Público Privadas (APP’s) (A=a+b+c+d) | E8: 0 | G8: 0 | H8: 0 | I8: 0 | J8: 0 | K8: 0
A9: a) APP 1 | E9: 0 | F9: 0 | G9: 0 | H9: 0 | I9: 0 | J9: 0 | K9: 0
A10: b) APP 2 | E10: 0 | F10: 0 | G10: 0 | H10: 0 | I10: 0 | J10: 0 | K10: 0
A11: c) APP 3 | E11: 0 | F11: 0 | G11: 0 | H11: 0 | I11: 0 | J11: 0 | K11: 0
A12: d) APP XX | E12: 0 | F12: 0 | G12: 0 | H12: 0 | I12: 0 | J12: 0 | K12: 0
A13: *
A14: B. Otros Instrumentos (B=a+b+c+d) | E14: 0 | G14: 0 | H14: 0 | I14: 0 | J14: 0 | K14: 0
A15: a) Otro Instrumento 1 | E15: 0 | F15: 0 | G15: 0 | H15: 0 | I15: 0 | J15: 0 | K15: 0
A16: b) Otro Instrumento 2 | E16: 0 | F16: 0 | G16: 0 | H16: 0 | I16: 0 | J16: 0 | K16: 0
A17: c) Otro Instrumento 3 | E17: 0 | F17: 0 | G17: 0 | H17: 0 | I17: 0 | J17: 0 | K17: 0
A18: d) Otro Instrumento XX | E18: 0 | F18: 0 | G18: 0 | H18: 0 | I18: 0 | J18: 0 | K18: 0
A19: *
A20: C. Total de Obligaciones Diferentes de Financiamiento (C=A+B) | E20: 0 | G20: 0 | H20: 0 | I20: 0 | J20: 0 | K20: 0

Sheet F03 (hidden)
A1: CLAVE | B1: N1 | C1: N2 | D1: N3 | E1: N4 | F1: N5 | G1: N6 | H1: N7 | I1: C O N C E P T O S | P1: FECHA_CONTRATO | Q1: FECHA_INICIO | R1: FECHA_VENCIMIENTO | S1: MONTO_INVERSION | T1: PLAZO | U1: MONTO_PROMEDIO | V1: MONTO_PROMEDIO_INV | W1: MONTO_PAGADO | X1: MONTO_PAGADO_ACTUALIZADO | Y1: SALDO_PENDIENTE
A2: =IF(LEN(CLEAN(B2))=0,"0",B2)&","&IF(LEN(CLEAN(C2))=0,"0",C2)&","&IF(LEN(CLEAN(D2))=0,"0",D2)&","&IF(LEN(CLEAN(E2))=0,"0",E2)&","&IF(LEN(CLEAN(F2))=0,"0",F2)&","&IF(LEN(CLEAN(G2))=0,"0",G2)&","&IF(LEN(CLEAN(H2))=0,"0",H2) -> 3,1,0,0,0,0,0 | B2: 3 | C2: 1 | I2: Denominación de las Obligaciones Diferentes de Financiamiento
A3: =IF(LEN(CLEAN(B3))=0,"0",B3)&","&IF(LEN(CLEAN(C3))=0,"0",C3)&","&IF(LEN(CLEAN(D3))=0,"0",D3)&","&IF(LEN(CLEAN(E3))=0,"0",E3)&","&IF(LEN(CLEAN(F3))=0,"0",F3)&","&IF(LEN(CLEAN(G3))=0,"0",G3)&","&IF(LEN(CLEAN(H3))=0,"0",H3) -> 3,1,1,0,0,0,0 | B3: 3 | C3: 1 | D3: 1 | J3: Asociaciones Público Privadas | S3: =APP_T4 -> 0 | U3: =APP_T6 -> 0 | V3: =APP_T7 -> 0 | W3: =APP_T8 -> 0 | X3: =APP_T9 -> 0 | Y3: =APP_T10 -> 0
A4: 3,1,2,1,1,0,0 | B4: 3 | C4: 1 | D4: 2 | E4: 1 | F4: 1 | J4: Otros Instrumentos | S4: =OTROS_T4 -> 0 | U4: =OTROS_T6 -> 0 | V4: =OTROS_T7 -> 0 | W4: =OTROS_T8 -> 0 | X4: =OTROS_T9 -> 0 | Y4: =OTROS_T10 -> 0
A5: 3,1,3,0,0,0,0 | B5: 3 | C5: 1 | D5: 3 | J5: Total de Obligaciones Diferentes de Financiamiento | S5: =TOTAL_ODF_T4 -> 0 | U5: =TOTAL_ODF_T6 -> 0 | V5: =TOTAL_ODF_T7 -> 0 | W5: =TOTAL_ODF_T8 -> 0 | X5: =TOTAL_ODF_T9 -> 0 | Y5: =TOTAL_ODF_T10 -> 0

Sheet Formato 4
A1: Formato 4 Balance Presupuestario - LDF
A2: =ENTE_PUBLICO_A -> Municipio de Valle de Santiago, Gto., Gobierno del Estado de Guanajuato (a)
A3: Balance Presupuestario - LDF
A4: =TRIMESTRE -> Del 1 de enero al 30 de marzo de 2022 (b)
A5: (PESOS)
A7: Concepto (c) | B7: Estimado/ Aprobado (d) | C7: Devengado | D7: Recaudado/ Pagado
A8: A. Ingresos Totales (A = A1+A2+A3) | B8: =SUM(B9:B11) -> 500000000 | C8: =SUM(C9:C11) -> 131821700 | D8: =SUM(D9:D11) -> 131821700
A9: A1. Ingresos de Libre Disposición | B9: 317000000 | C9: 79967207.18 | D9: 79967207.18
A10: A2. Transferencias Federales Etiquetadas | B10: 183000000 | C10: 51854492.84 | D10: 51854492.84
A11: A3. Financiamiento Neto | B11: 0 | C11: 0 | D11: 0
A13: B. Egresos Presupuestarios1 (B = B1+B2) | B13: =SUM(B14:B15) -> 498392857.2 | C13: =SUM(C14:C16) -> 88394087.54 | D13: =SUM(D14:D16) -> 81548068.02
A14: B1. Gasto No Etiquetado (sin incluir Amortización de la Deuda Pública) | B14: 232000000 | C14: 44527266.35 | D14: 43778673.94
A15: B2. Gasto Etiquetado (sin incluir Amortización de la Deuda Pública) | B15: 266392857.2 | C15: 43866821.19 | D15: 37769394.08
A17: C. Remanentes del Ejercicio Anterior ( C = C1 + C2 ) | B17: 0 | C17: =SUM(C18:C20) -> 24266994.18 | D17: =SUM(D18:D19) -> 24266994.18
A18: C1. Remanentes de Ingresos de Libre Disposición aplicados en el periodo | B18: 0 | C18: 24266994.18 | D18: 24266994.18
A19: C2. Remanentes de Transferencias Federales Etiquetadas aplicados en el periodo | B19: 0 | C19: 0 | D19: 0
A21: I. Balance Presupuestario (I = A – B + C) | B21: =B8-B13+B17 -> 1607142.84 | C21: =C8-C13+C17 -> 67694606.66 | D21: =D8-D13+D17 -> 74540626.18
A23: II. Balance Presupuestario sin Financiamiento Neto (II = I - A3) | B23: =B21-B11 -> 1607142.84 | C23: =C21-C11 -> 67694606.66 | D23: =D21-D11 -> 74540626.18
A25: III. Balance Presupuestario sin Financiamiento Neto y sin Remanentes del Ejercicio Anterior (III= II - C) | B25: =B23-B17 -> 1607142.84 | C25: =C23-C17 -> 43427612.48 | D25: =D23-D17 -> 50273632
A28: Concepto | B28: Aprobado | C28: Devengado | D28: Pagado
A29: E. Intereses, Comisiones y Gastos de la Deuda (E = E1+E2) | B29: =SUM(B30:B31) -> 600000 | C29: =SUM(C30:C31) -> 169821.26 | D29: =SUM(D30:D31) -> 169821.26
A30: E1. Intereses, Comisiones y Gastos de la Deuda con Gasto No Etiquetado | B30: 0 | C30: 0 | D30: 0
A31: E2. Intereses, Comisiones y Gastos de la Deuda con Gasto Etiquetado | B31: 600000 | C31: 169821.26 | D31: 169821.26
A33: IV. Balance Primario (IV = III + E) | B33: =B25+B29 -> 2207142.84 | C33: =C25+C29 -> 43597433.74 | D33: =D25+D29 -> 50443453.26
A36: Concepto | B36: Estimado/ Aprobado | C36: Devengado | D36: Recaudado/ Pagado
A37: F. Financiamiento (F = F1 + F2) | B37: =SUM(B38:B39) -> 0 | C37: =SUM(C38:C39) -> 0 | D37: =SUM(D38:D39) -> 0
A38: F1. Financiamiento con Fuente de Pago de Ingresos de Libre Disposición | B38: 0 | C38: 0 | D38: 0
A39: F2. Financiamiento con Fuente de Pago de Transferencias Federales Etiquetadas | B39: 0 | C39: 0 | D39: 0
A40: G. Amortización de la Deuda (G = G1 + G2) | B40: =SUM(B41:B42) -> 1607142.84 | C40: =SUM(C41:C42) -> 401785.71 | D40: =SUM(D41:D42) -> 401785.71
A41: G1. Amortización de la Deuda Pública con Gasto No Etiquetado | B41: 0 | C41: 0 | D41: 0
A42: G2. Amortización de la Deuda Pública con Gasto Etiquetado | B42: 1607142.84 | C42: 401785.71 | D42: 401785.71
A44: A3. Financiamiento Neto (A3 = F – G ) | B44: =B37-B40 -> -1607142.84 | C44: =C37-C40 -> -401785.71 | D44: =D37-D40 -> -401785.71
A47: Concepto | B47: Estimado/ Aprobado | C47: Devengado | D47: Recaudado/ Pagado
A48: A1. Ingresos de Libre Disposición | B48: 232000000 | C48: 79967207.18 | D48: 79967207.18
A49: A3.1 Financiamiento Neto con Fuente de Pago de Ingresos de Libre Disposición (A3.1 = F1 – G1) | B49: =SUM(B50:B51) -> 0 | C49: =SUM(C50:C51) -> 0 | D49: =SUM(D50:D51) -> 0
A50: F1. Financiamiento con Fuente de Pago de Ingresos de Libre Disposición | B50: 0 | C50: 0 | D50: 0
A51: G1. Amortización de la Deuda Pública con Gasto No Etiquetado | B51: 0 | C51: 0 | D51: 0
A53: B1. Gasto No Etiquetado (sin incluir Amortización de la Deuda Pública) | B53: 232000000 | C53: 44527266.35 | D53: 43778673.94
A55: C1. Remanentes de Ingresos de Libre Disposición aplicados en el periodo | B55: 0 | C55: 24266994.18 | D55: 24266994.18
A57: V. Balance Presupuestario de Recursos Disponibles (V = A1 + A3.1 – B 1 + C1) | B57: =B48+B49-B53+B55 -> 0 | C57: =C48+C49-C53+C55 -> 59706935.01 | D57: =D48+D49-D53+D55 -> 60455527.42
A59: VI. Balance Presupuestario de Recursos Disponibles sin Financiamiento Neto (VI = V – A3.1) | B59: =B57-B49 -> 0 | C59: =C57-C49 -> 59706935.01 | D59: =D57+D49 -> 60455527.42
A62: Concepto | B62: Estimado/ Aprobado | C62: Devengado | D62: Recaudado/ Pagado
A63: A2. Transferencias Federales Etiquetadas | B63: 183000000 | C63: 51854492.84 | D63: 51854492.84
A64: A3.2 Financiamiento Neto con Fuente de Pago de Transferencias Federales Etiquetadas (A3.2 = F2 – G2) | B64: =B65-B66 -> -1607142.84 | C64: =C65-C66 -> -401785.71 | D64: =D65-D66 -> -401785.71
A65: F2. Financiamiento con Fuente de Pago de Transferencias Federales Etiquetadas | B65: 0 | C65: 0 | D65: 0
A66: G2. Amortización de la Deuda Pública con Gasto Etiquetado | B66: 1607142.84 | C66: 401785.71 | D66: 401785.71
A68: B2. Gasto Etiquetado (sin incluir Amortización de la Deuda Pública) | B68: 266392857.2 | C68: 43866821.19 | D68: 37769394.08
A70: C2. Remanentes de Transferencias Federales Etiquetadas aplicados en el periodo | B70: 0 | C70: 0 | D70: 0
A72: VII. Balance Presupuestario de Recursos Etiquetados (VII = A2 + A3.2 – B2 + C2) | B72: =B63+B64-B68+B70 -> -85000000 | C72: =C63+C64-C68+C70 -> 7585885.94 | D72: =D63+D64-D68+D70 -> 13683313.05
A74: VIII. Balance Presupuestario de Recursos Etiquetados sin Financiamiento Neto (VIII = VII – A3.2) | B74: =B72-B64 -> -83392857.16 | C74: =C72-C64 -> 7987671.65 | D74: =D72-D64 -> 14085098.76

Sheet F04 (hidden)
A1: CLAVE | B1: N1 | C1: N2 | D1: N3 | E1: N4 | F1: N5 | G1: N6 | H1: N7 | I1: C O N C E P T O S | P1: EST_APROB | Q1: DEVENGADO | R1: RECAUDADO_PAGADO
A2: =IF(LEN(CLEAN(B2))=0,"0",B2)&","&IF(LEN(CLEAN(C2))=0,"0",C2)&","&IF(LEN(CLEAN(D2))=0,"0",D2)&","&IF(LEN(CLEAN(E2))=0,"0",E2)&","&IF(LEN(CLEAN(F2))=0,"0",F2)&","&IF(LEN(CLEAN(G2))=0,"0",G2)&","&IF(LEN(CLEAN(H2))=0,"0",H2) -> 4,1,0,0,0,0,0 | B2: 4 | C2: 1 | I2: Ingresos Totales | P2: ='Formato 4'!B8 -> 500000000 | Q2: ='Formato 4'!C8 -> 131821700 | R2: ='Formato 4'!D8 -> 131821700
A3: 4,1,1,0,0,0,0 | B3: 4 | C3: 1 | D3: 1 | J3: Ingresos de Libre Disposición | P3: ='Formato 4'!B9 -> 317000000 | Q3: ='Formato 4'!C9 -> 79967207.18 | R3: ='Formato 4'!D9 -> 79967207.18
A4: 4,1,2,0,0,0,0 | B4: 4 | C4: 1 | D4: 2 | J4: Transferencias Federales Etiquetadas | P4: ='Formato 4'!B10 -> 183000000 | Q4: ='Formato 4'!C10 -> 51854492.84 | R4: ='Formato 4'!D10 -> 51854492.84
A5: 4,1,3,0,0,0,0 | B5: 4 | C5: 1 | D5: 3 | J5: Financiamiento Neto | P5: ='Formato 4'!B11 -> 0 | Q5: ='Formato 4'!C11 -> 0 | R5: ='Formato 4'!D11 -> 0
A6: 4,2,0,0,0,0,0 | B6: 4 | C6: 2 | I6: Egresos Presupuestarios | P6: ='Formato 4'!B13 -> 498392857.2 | Q6: ='Formato 4'!C13 -> 88394087.54 | R6: ='Formato 4'!D13 -> 81548068.02
A7: 4,2,1,0,0,0,0 | B7: 4 | C7: 2 | D7: 1 | J7: Gasto No Etiquetado | P7: ='Formato 4'!B14 -> 232000000 | Q7: ='Formato 4'!C14 -> 44527266.35 | R7: ='Formato 4'!D14 -> 43778673.94
A8: 4,2,2,0,0,0,0 | B8: 4 | C8: 2 | D8: 2 | J8: Gasto Etiquetado | P8: ='Formato 4'!B15 -> 266392857.2 | Q8: ='Formato 4'!C15 -> 43866821.19 | R8: ='Formato 4'!D15 -> 37769394.08
A9: 4,3,0,0,0,0,0 | B9: 4 | C9: 3 | I9: Remanentes del Ejercicio Anterior | Q9: ='Formato 4'!C17 -> 24266994.18 | R9: ='Formato 4'!D17 -> 24266994.18
A10: 4,3,1,0,0,0,0 | B10: 4 | C10: 3 | D10: 1 | J10: Remanentes de Ingresos de Libre Disposición aplicados en el periodo | Q10: ='Formato 4'!C18 -> 24266994.18 | R10: ='Formato 4'!D18 -> 24266994.18
A11: 4,3,2,0,0,0,0 | B11: 4 | C11: 3 | D11: 2 | J11: Remanentes de Transferencias Federales Etiquetadas aplicados en el periodo | Q11: ='Formato 4'!C19 -> 0 | R11: ='Formato 4'!D19 -> 0
A12: 4,4,0,0,0,0,0 | B12: 4 | C12: 4 | I12: Balance Presupuestario | P12: ='Formato 4'!B21 -> 1607142.84 | Q12: ='Formato 4'!C21 -> 67694606.66 | R12: ='Formato 4'!D21 -> 74540626.18
A13: 4,5,0,0,0,0,0 | B13: 4 | C13: 5 | I13: Balance Presupuestario sin Financiamiento Neto | P13: ='Formato 4'!B23 -> 1607142.84 | Q13: ='Formato 4'!C23 -> 67694606.66 | R13: ='Formato 4'!D23 -> 74540626.18
A14: 4,6,0,0,0,0,0 | B14: 4 | C14: 6 | I14: Balance Presupuestario sin Financiamiento Neto y sin Remanentes del Ejercicio Anterior | P14: ='Formato 4'!B25 -> 1607142.84 | Q14: ='Formato 4'!C25 -> 43427612.48 | R14: ='Formato 4'!D25 -> 50273632
A15: 4,7,0,0,0,0,0 | B15: 4 | C15: 7 | I15: Intereses, Comisiones y Gastos de la Deuda | P15: ='Formato 4'!B29 -> 600000 | Q15: ='Formato 4'!C29 -> 169821.26 | R15: ='Formato 4'!D29 -> 169821.26
A16: 4,7,1,0,0,0,0 | B16: 4 | C16: 7 | D16: 1 | J16: Intereses, Comisiones y Gastos de la Deuda con Gasto No Etiquetado | P16: ='Formato 4'!B30 -> 0 | Q16: ='Formato 4'!C30 -> 0 | R16: ='Formato 4'!D30 -> 0
A17: 4,7,2,0,0,0,0 | B17: 4 | C17: 7 | D17: 2 | J17: Intereses, Comisiones y Gastos de la Deuda con Gasto Etiquetado | P17: ='Formato 4'!B31 -> 600000 | Q17: ='Formato 4'!C31 -> 169821.26 | R17: ='Formato 4'!D31 -> 169821.26
A18: 4,8,0,0,0,0,0 | B18: 4 | C18: 8 | I18: Balance Primario | P18: ='Formato 4'!B33 -> 2207142.84 | Q18: ='Formato 4'!C33 -> 43597433.74 | R18: ='Formato 4'!D33 -> 50443453.26
A19: 4,8,0,0,0,0,0 | B19: 4 | C19: 8 | I19: Financiamiento | P19: ='Formato 4'!B37 -> 0 | Q19: ='Formato 4'!C37 -> 0 | R19: ='Formato 4'!D37 -> 0
A20: 4,8,1,0,0,0,0 | B20: 4 | C20: 8 | D20: 1 | J20: Financiamiento con Fuente de Pago de Ingresos de Libre Disposición | P20: ='Formato 4'!B38 -> 0 | Q20: ='Formato 4'!C38 -> 0 | R20: ='Formato 4'!D38 -> 0
A21: 4,8,2,0,0,0,0 | B21: 4 | C21: 8 | D21: 2 | J21: Financiamiento con Fuente de Pago de Transferencias Federales Etiquetadas | P21: ='Formato 4'!B39 -> 0 | Q21: ='Formato 4'!C39 -> 0 | R21: ='Formato 4'!D39 -> 0
A22: 4,9,0,0,0,0,0 | B22: 4 | C22: 9 | I22: Amortización de la Deuda | P22: ='Formato 4'!B40 -> 1607142.84 | Q22: ='Formato 4'!C40 -> 401785.71 | R22: ='Formato 4'!D40 -> 401785.71
A23: 4,9,1,0,0,0,0 | B23: 4 | C23: 9 | D23: 1 | J23: G1. Amortización de la Deuda Pública con Gasto No Etiquetado | P23: ='Formato 4'!B41 -> 0 | Q23: ='Formato 4'!C41 -> 0 | R23: ='Formato 4'!D41 -> 0
A24: 4,9,2,0,0,0,0 | B24: 4 | C24: 9 | D24: 2 | J24: G2. Amortización de la Deuda Pública con Gasto Etiquetado | P24: ='Formato 4'!B42 -> 1607142.84 | Q24: ='Formato 4'!C42 -> 401785.71 | R24: ='Formato 4'!D42 -> 401785.71
A25: 4,10,0,0,0,0,0 | B25: 4 | C25: 10 | I25: Financiamiento Neto | P25: ='Formato 4'!B44 -> -1607142.84 | Q25: ='Formato 4'!C44 -> -401785.71 | R25: ='Formato 4'!D44 -> -401785.71
A26: 4,11,0,0,0,0,0 | B26: 4 | C26: 11 | I26: Ingresos de Libre Disposición | P26: ='Formato 4'!B48 -> 232000000 | Q26: ='Formato 4'!C48 -> 79967207.18 | R26: ='Formato 4'!D48 -> 79967207.18
A27: 4,11,1,0,0,0,0 | B27: 4 | C27: 11 | D27: 1 | J27: Financiamiento Neto con Fuente de Pago de Ingresos de Libre | P27: ='Formato 4'!B49 -> 0 | Q27: ='Formato 4'!C49 -> 0 | R27: ='Formato 4'!D49 -> 0
A28: 4,11,1,1,0,0,0 | B28: 4 | C28: 11 | D28: 1 | E28: 1 | K28: Financiamiento con Fuente de Pago de Ingresos de Libre Disposición | P28: ='Formato 4'!B50 -> 0 | Q28: ='Formato 4'!C50 -> 0 | R28: ='Formato 4'!D50 -> 0
A29: 4,11,1,2,0,0,0 | B29: 4 | C29: 11 | D29: 1 | E29: 2 | K29: Amortización de la Deuda Pública con Gasto No Etiquetado | P29: ='Formato 4'!B51 -> 0 | Q29: ='Formato 4'!C51 -> 0 | R29: ='Formato 4'!D51 -> 0
A30: 4,12,0,0,0,0,0 | B30: 4 | C30: 12 | I30: Gasto No Etiquetado | P30: ='Formato 4'!B53 -> 232000000 | Q30: ='Formato 4'!C53 -> 44527266.35 | R30: ='Formato 4'!D53 -> 43778673.94
A31: 4,13,0,0,0,0,0 | B31: 4 | C31: 13 | I31: Remanentes de Ingresos de Libre Disposición aplicados en el periodo | Q31: ='Formato 4'!C55 -> 24266994.18 | R31: ='Formato 4'!D55 -> 24266994.18
A32: 4,14,0,0,0,0,0 | B32: 4 | C32: 14 | I32: Transferencias Federales Etiquetadas | P32: ='Formato 4'!B63 -> 183000000 | Q32: ='Formato 4'!C63 -> 51854492.84 | R32: ='Formato 4'!D63 -> 51854492.84
A33: 4,14,1,0,0,0,0 | B33: 4 | C33: 14 | D33: 1 | J33: Financiamiento Neto con Fuente de Pago de Transferencias Federales Etiquetadas | P33: ='Formato 4'!B64 -> -1607142.84 | Q33: ='Formato 4'!C64 -> -401785.71 | R33: ='Formato 4'!D64 -> -401785.71
A34: 4,14,1,1,0,0,0 | B34: 4 | C34: 14 | D34: 1 | E34: 1 | K34: Financiamiento con Fuente de Pago de Transferencias Federales | P34: ='Formato 4'!B65 -> 0 | Q34: ='Formato 4'!C65 -> 0 | R34: ='Formato 4'!D65 -> 0
A35: 4,14,1,2,0,0,0 | B35: 4 | C35: 14 | D35: 1 | E35: 2 | K35: Amortización de la Deuda Pública con Gasto Etiquetado | P35: ='Formato 4'!B66 -> 1607142.84 | Q35: ='Formato 4'!C66 -> 401785.71 | R35: ='Formato 4'!D66 -> 401785.71
A36: 4,15,0,0,0,0,0 | B36: 4 | C36: 15 | I36: Gasto Etiquetado | P36: ='Formato 4'!B68 -> 266392857.2 | Q36: ='Formato 4'!C68 -> 43866821.19 | R36: ='Formato 4'!D68 -> 37769394.08
A37: 4,16,0,0,0,0,0 | B37: 4 | C37: 16 | I37: Remanentes de Transferencias Federales Etiquetadas aplicados en el periodo | Q37: ='Formato 4'!C70 -> 0 | R37: ='Formato 4'!D70 -> 0
A38: 4,17,0,0,0,0,0 | B38: 4 | C38: 17 | I38: Balance Presupuestario de Recursos Etiquetados | P38: ='Formato 4'!B72 -> -85000000 | Q38: ='Formato 4'!C72 -> 7585885.94 | R38: ='Formato 4'!D72 -> 13683313.05
A39: 4,18,0,0,0,0,0 | B39: 4 | C39: 18 | I39: Balance Presupuestario de Recursos Etiquetados sin Financiamiento | P39: ='Formato 4'!B74 -> -83392857.16 | Q39: ='Formato 4'!C74 -> 7987671.65 | R39: ='Formato 4'!D74 -> 14085098.76

Sheet Formato 5
A1: Formato 5 Estado Analítico de Ingresos Detallado - LDF
A2: =ENTE_PUBLICO_A -> Municipio de Valle de Santiago, Gto., Gobierno del Estado de Guanajuato (a)
A3: Estado Analítico de Ingresos Detallado - LDF
A4: =TRIMESTRE -> Del 1 de enero al 30 de marzo de 2022 (b)
A5: (PESOS)
A6: Concepto (c) | B6: Ingreso | G6: Diferencia (e)
B7: Estimado (d) | C7: Ampliaciones/ (Reducciones) | D7: Modificado | E7: Devengado | F7: Recaudado
A8: Ingresos de Libre Disposición
A9: A. Impuestos | B9: 24000000 | C9: 0 | D9: =B9+C9 -> 24000000 | E9: 19164231.41 | F9: 19164231.41 | G9: =F9-B9 -> -4835768.59
A10: B. Cuotas y Aportaciones de Seguridad Social | B10: 0 | C10: 0 | D10: =B10+C10 -> 0 | E10: 0 | F10: 0 | G10: =F10-B10 -> 0
A11: C. Contribuciones de Mejoras | B11: 8000000 | C11: 0 | D11: =B11+C11 -> 8000000 | E11: 335770 | F11: 335770 | G11: -7664230
A12: D. Derechos | B12: 29600000 | C12: 0 | D12: 29600000 | E12: 6046176.97 | F12: 6046176.97 | G12: -23553823.03
A13: E. Productos | B13: 2450000 | C13: 0 | D13: 2450000 | E13: 858943.53 | F13: 858943.53 | G13: -1591056.47
A14: F. Aprovechamientos | B14: 1950000 | C14: 0 | D14: 1950000 | E14: 353446.48 | F14: 353446.48 | G14: -1596553.52
A15: G. Ingresos por Ventas de Bienes y Servicios | B15: 0 | C15: 0 | D15: 0 | E15: 0 | F15: 0 | G15: 0
A16: H. Participaciones (H=h1+h2+h3+h4+h5+h6+h7+h8+h9+h10+h11) | B16: =SUM(B17:B27) -> 162400000 | C16: =SUM(C17:C27) -> 8728482 | D16: =SUM(D17:D27) -> 171128482 | E16: =SUM(E17:E27) -> 52241751.92 | F16: =SUM(F17:F27) -> 52241751.92 | G16: -110158248.1
A17: h1) Fondo General de Participaciones | B17: 108400000 | C17: 6679876 | D17: 115079876 | E17: 35802942.8 | F17: 35802942.8 | G17: -72597057.2
A18: h2) Fondo de Fomento Municipal | B18: 29300000 | C18: 2377654 | D18: 31677654 | E18: 9611232.88 | F18: 9611232.88 | G18: -19688767.12
A19: h3) Fondo de Fiscalización y Recaudación | B19: 8100000 | C19: 341433 | D19: 8441433 | E19: 1953608.51 | F19: 1953608.51 | G19: -6146391.49
A20: h4) Fondo de Compensación | B20: 0 | C20: 0 | D20: 0 | E20: 0 | F20: 0 | G20: 0
A21: h5) Fondo de Extracción de Hidrocarburos | B21: 0 | C21: 0 | D21: 0 | E21: 0 | F21: 0 | G21: 0
A22: h6) Impuesto Especial Sobre Producción y Servicios | B22: 2800000 | C22: -9335 | D22: 2790665 | E22: 954042.58 | F22: 954042.58 | G22: -1845957.42
A23: h7) 0.136% de la Recaudación Federal Participable | B23: 0 | C23: 0 | D23: 0 | E23: 0 | F23: 0 | G23: 0
A24: h8) 3.17% Sobre Extracción de Petróleo | B24: 0 | C24: 0 | D24: 0 | E24: 0 | F24: 0 | G24: 0
A25: h9) Gasolinas y Diésel | B25: 3200000 | C25: -221196 | D25: 2978804 | E25: 778039.15 | F25: 778039.15 | G25: -2421960.85
A26: h10) Fondo del Impuesto Sobre la Renta | B26: 10600000 | C26: -439950 | D26: 10160050 | E26: 3141886 | F26: 3141886 | G26: -7458114
A27: h11) Fondo de Estabilización de los Ingresos de las Entidades Federativas | B27: 0 | C27: 0 | D27: 0 | E27: 0 | F27: 0 | G27: 0
A28: I. Incentivos Derivados de la Colaboración Fiscal (I=i1+i2+i3+i4+i5) | B28: =SUM(B29:B33) -> 3600000 | C28: =SUM(C29:C33) -> -450762 | D28: =SUM(D29:D34) -> 3149238 | E28: =SUM(E29:E33) -> 966886.87 | F28: =SUM(F29:F33) -> 966886.87 | G28: -2633113.13
A29: i1) Tenencia o Uso de Vehículos | B29: 40000 | C29: 0 | D29: 40000 | E29: 1968.9 | F29: 1968.9 | G29: -38031.1
A30: i2) Fondo de Compensación ISAN | B30: 300000 | C30: 30182 | D30: 330182 | E30: 82545.45 | F30: 82545.45 | G30: -217454.55
A31: i3) Impuesto Sobre Automóviles Nuevos | B31: 1900000 | C31: -220145 | D31: 1679855 | E31: 492465.26 | F31: 492465.26 | G31: -1407534.74
A32: i4) Fondo de Compensación de Repecos-Intermedios | B32: 0 | C32: 0 | D32: 0 | E32: 0 | F32: 0 | G32: 0
A33: i5) Otros Incentivos Económicos | B33: 1360000 | C33: -260799 | D33: =B33+C33 -> 1099201 | E33: 389907.26 | F33: 389907.26 | G33: -970092.74
A34: J. Transferencias | B34: 0 | C34: 0 | D34: 0 | E34: 0 | F34: 0 | G34: 0
A35: K. Convenios | B35: =B36 -> 0 | C35: 0 | D35: =SUM(D36) -> 0 | E35: =SUM(E36) -> 0 | F35: =SUM(F36) -> 0 | G35: 0
A36: k1) Otros Convenios y Subsidios | B36: 0 | C36: 0 | D36: =B36+C36 -> 0 | E36: 0 | F36: 0 | G36: 0
A37: L. Otros Ingresos de Libre Disposición (L=l1+l2) | B37: 0 | C37: 0 | D37: 0 | E37: =SUM(E38:E39) -> 0 | F37: =SUM(F38:F39) -> 0 | G37: 0
A38: l1) Participaciones en Ingresos Locales | B38: 0 | C38: 0 | D38: 0 | E38: 0 | F38: 0 | G38: 0
A39: l2) Otros Ingresos de Libre Disposición | B39: 0 | C39: 0 | D39: 0 | E39: 0 | F39: 0 | G39: 0
G40: =F40-B40 -> 0
A41: I. Total de Ingresos de Libre Disposición (I=A+B+C+D+E+F+G+H+I+J+K+L) | B41: =SUM(B9,B10,B11,B12,B13,B14,B15,B16,B28,B34,B35,B37) -> 232000000 | C41: =SUM(C9,C10,C11,C12,C13,C14,C15,C16,C28,C34,C35,C37) -> 8277720 | D41: =SUM(D9,D10,D11,D12,D13,D14,D15,D16,D28,D34,D35,D37) -> 240277720 | E41: =SUM(E9,E10,E11,E12,E13,E14,E15,E16,E28,E34,E35,E37) -> 79967207.18 | F41: 79967207.18 | G41: =SUM(G9+G10+G11+G12+G13+G14+G15+G28+G16+G35+G37) -> -152032792.8
A42: Ingresos Excedentes de Ingresos de Libre Disposición | G42: 0
A44: Transferencias Federales Etiquetadas
A45: A. Aportaciones (A=a1+a2+a3+a4+a5+a6+a7+a8) | B45: =SUM(B46:B53) -> 182000000 | C45: 8500000 | D45: =SUM(D46:D53) -> 190500000 | E45: =SUM(E46:E53) -> 51854492.84 | F45: =SUM(F46:F53) -> 51854492.84 | G45: =F45-B45 -> -130145507.2
A46: a1) Fondo de Aportaciones para la Nómina Educativa y Gasto Operativo | B46: 0 | C46: 0 | D46: =B46+C46 -> 0 | E46: 0 | F46: 0 | G46: =F46-B46 -> 0
A47: a2) Fondo de Aportaciones para los Servicios de Salud | B47: 0 | C47: 0 | D47: 0 | E47: 0 | F47: 0 | G47: 0
A48: a3) Fondo de Aportaciones para la Infraestructura Social | B48: 84000000 | C48: -4500000 | D48: =B48+C48 -> 79500000 | E48: 23801230.38 | F48: 23801230.38 | G48: -60198769.62
A49: a4) Fondo de Aportaciones para el Fortalecimiento de los Municipios y de las Demarcaciones Territoriales del Distrito Federal | B49: 98000000 | C49: 13000000 | D49: =B49+C49 -> 111000000 | E49: 28053262.46 | F49: 28053262.46 | G49: -69946737.54
A50: a5) Fondo de Aportaciones Múltiples | B50: 0 | C50: 0 | D50: 0 | E50: 0 | F50: 0 | G50: 0
A51: a6) Fondo de Aportaciones para la Educación Tecnológica y de Adultos | B51: 0 | C51: 0 | D51: 0 | E51: 0 | F51: 0 | G51: 0
A52: a7) Fondo de Aportaciones para la Seguridad Pública de los Estados y del Distrito Federal | B52: 0 | C52: 0 | D52: 0 | E52: 0 | F52: 0 | G52: 0
A53: a8) Fondo de Aportaciones para el Fortalecimiento de las Entidades Federativas | B53: 0 | C53: 0 | D53: 0 | E53: 0 | F53: 0 | G53: 0
A54: B. Convenios (B=b1+b2+b3+b4) | B54: =SUM(B55:B58) -> 86000000 | C54: =SUM(C55:C58) -> 0 | D54: =SUM(D55:D58) -> 86000000 | E54: =SUM(E55:E58) -> 0 | F54: =SUM(F55:F58) -> 0 | G54: -86000000
A55: b1) Convenios de Protección Social en Salud | B55: 0 | C55: 0 | D55: 0 | E55: 0 | F55: 0 | G55: 0
A56: b2) Convenios de Descentralización | B56: 0 | C56: 0 | D56: 0 | E56: 0 | F56: 0 | G56: 0
A57: b3) Convenios de Reasignación | B57: 0 | C57: 0 | D57: 0 | E57: 0 | F57: 0 | G57: 0
A58: b4) Otros Convenios y Subsidios | B58: 86000000 | C58: 0 | D58: 86000000 | E58: 0 | F58: 0 | G58: -86000000
A59: C. Fondos Distintos de Aportaciones (C=c1+c2) | B59: =SUM(B60:B61) -> 0 | C59: =SUM(C60:C63) -> 0 | D59: 0 | E59: =SUM(E60:E62) -> 0 | F59: =SUM(F60:F62) -> 0 | G59: 0
A60: c1) Fondo para Entidades Federativas y Municipios Productores de Hidrocarburos | B60: 0 | C60: 0 | D60: 0 | E60: 0 | F60: 0 | G60: 0
A61: c2) Fondo Minero | B61: 0 | C61: 0 | D61: 0 | E61: 0 | F61: 0 | G61: 0
A62: D. Transferencias, Subsidios y Subvenciones, y Pensiones y Jubilaciones | B62: 0 | C62: 0 | D62: 0 | E62: 0 | F62: 0 | G62: 0
A63: E. Otras Transferencias Federales Etiquetadas | B63: 0 | C63: 0 | D63: 0 | E63: 0 | F63: 0 | G63: 0
G64: 0
A65: II. Total de Transferencias Federales Etiquetadas (II = A + B + C + D + E) | B65: =B45+B54+B59+B62+B63 -> 268000000 | C65: =C45+C54+C59+C62+C63 -> 8500000 | D65: =D45+D54+D59+D62+D63 -> 276500000 | E65: 51854492.84 | F65: =F45+F54+F59+F62+F63 -> 51854492.84 | G65: =F65-B65 -> -216145507.2
A67: III. Ingresos Derivados de Financiamientos (III = A) | B67: =B68 -> 0 | C67: =C68 -> 39142995.87 | D67: =D68 -> 39142995.87 | E67: =E68 -> 24266994.18 | F67: 24266994.18 | G67: =G68 -> 24266994.18
A68: A. Ingresos Derivados de Financiamientos | B68: =B75 -> 0 | C68: 39142995.87 | D68: 39142995.87 | E68: 24266994.18 | F68: 24266994.18 | G68: =F68-B68 -> 24266994.18
A70: IV. Total de Ingresos (IV = I + II + III) | B70: =B41+B65+B67 -> 500000000 | C70: =C41+C65+C67 -> 55920715.87 | D70: =D41+D65+D67 -> 555920715.9 | E70: =E41+E65+E67 -> 156088694.2 | F70: =F41+F65+F67 -> 156088694.2 | G70: =G41+G65+G67 -> -343911305.8
A72: Datos Informativos
A73: 1. Ingresos Derivados de Financiamientos con Fuente de Pago de Ingresos de Libre Disposición | B73: 0 | C73: 0 | D73: 0 | E73: 0 | F73: 0 | G73: =F73-B73 -> 0
A74: 2. Ingresos Derivados de Financiamientos con Fuente de Pago de Transferencias Federales Etiquetadas | B74: 0 | C74: 0 | D74: 0 | E74: 0 | F74: 0 | G74: =F74-B74 -> 0
A75: 3. Ingresos Derivados de Financiamientos (3 = 1 + 2) | B75: =B73+B74 -> 0 | C75: =C73+C74 -> 0 | D75: =D73+D74 -> 0 | E75: 0 | F75: =F73+F74 -> 0 | G75: =G73+G74 -> 0

Sheet F05 (hidden)
A1: CLAVE | B1: N1 | C1: N2 | D1: N3 | E1: N4 | F1: N5 | G1: N6 | H1: N7 | I1: C O N C E P T O S | P1: ESTIMADO | Q1: AMPLIACIONES | R1: MODIFICADO | S1: DEVENGADO | T1: RECAUDADO | U1: DIFERENCIA
A2: =IF(LEN(CLEAN(B2))=0,"0",B2)&","&IF(LEN(CLEAN(C2))=0,"0",C2)&","&IF(LEN(CLEAN(D2))=0,"0",D2)&","&IF(LEN(CLEAN(E2))=0,"0",E2)&","&IF(LEN(CLEAN(F2))=0,"0",F2)&","&IF(LEN(CLEAN(G2))=0,"0",G2)&","&IF(LEN(CLEAN(H2))=0,"0",H2) -> 5,1,0,0,0,0,0 | B2: 5 | C2: 1 | I2: Ingresos de Libre Disposición
A3: 5,1,1,0,0,0,0 | B3: 5 | C3: 1 | D3: 1 | J3: Impuestos | P3: ='Formato 5'!B9 -> 24000000 | Q3: ='Formato 5'!C9 -> 0 | R3: ='Formato 5'!D9 -> 24000000 | S3: ='Formato 5'!E9 -> 19164231.41 | T3: ='Formato 5'!F9 -> 19164231.41 | U3: ='Formato 5'!G9 -> -4835768.59
A4: 5,1,2,0,0,0,0 | B4: 5 | C4: 1 | D4: 2 | J4: Cuotas y Aportaciones de Seguridad Social | P4: ='Formato 5'!B10 -> 0 | Q4: ='Formato 5'!C10 -> 0 | R4: ='Formato 5'!D10 -> 0 | S4: ='Formato 5'!E10 -> 0 | T4: ='Formato 5'!F10 -> 0 | U4: ='Formato 5'!G10 -> 0
A5: 5,1,3,0,0,0,0 | B5: 5 | C5: 1 | D5: 3 | J5: Contribuciones de Mejoras | P5: ='Formato 5'!B11 -> 8000000 | Q5: ='Formato 5'!C11 -> 0 | R5: ='Formato 5'!D11 -> 8000000 | S5: ='Formato 5'!E11 -> 335770 | T5: ='Formato 5'!F11 -> 335770 | U5: ='Formato 5'!G11 -> -7664230
A6: 5,1,4,0,0,0,0 | B6: 5 | C6: 1 | D6: 4 | J6: Derechos | P6: ='Formato 5'!B12 -> 29600000 | Q6: ='Formato 5'!C12 -> 0 | R6: ='Formato 5'!D12 -> 29600000 | S6: ='Formato 5'!E12 -> 6046176.97 | T6: ='Formato 5'!F12 -> 6046176.97 | U6: ='Formato 5'!G12 -> -23553823.03
A7: 5,1,5,0,0,0,0 | B7: 5 | C7: 1 | D7: 5 | J7: Productos | P7: ='Formato 5'!B13 -> 2450000 | Q7: ='Formato 5'!C13 -> 0 | R7: ='Formato 5'!D13 -> 2450000 | S7: ='Formato 5'!E13 -> 858943.53 | T7: ='Formato 5'!F13 -> 858943.53 | U7: ='Formato 5'!G13 -> -1591056.47
A8: 5,1,6,0,0,0,0 | B8: 5 | C8: 1 | D8: 6 | J8: Aprovechamientos | P8: ='Formato 5'!B14 -> 1950000 | Q8: ='Formato 5'!C14 -> 0 | R8: ='Formato 5'!D14 -> 1950000 | S8: ='Formato 5'!E14 -> 353446.48 | T8: ='Formato 5'!F14 -> 353446.48 | U8: ='Formato 5'!G14 -> -1596553.52
A9: 5,1,7,0,0,0,0 | B9: 5 | C9: 1 | D9: 7 | J9: Ingresos por Ventas de Bienes y Servicios | P9: ='Formato 5'!B15 -> 0 | Q9: ='Formato 5'!C15 -> 0 | R9: ='Formato 5'!D15 -> 0 | S9: ='Formato 5'!E15 -> 0 | T9: ='Formato 5'!F15 -> 0 | U9: ='Formato 5'!G15 -> 0
A10: 5,1,8,0,0,0,0 | B10: 5 | C10: 1 | D10: 8 | J10: Participaciones | P10: ='Formato 5'!B16 -> 162400000 | Q10: ='Formato 5'!C16 -> 8728482 | R10: ='Formato 5'!D16 -> 171128482 | S10: ='Formato 5'!E16 -> 52241751.92 | T10: ='Formato 5'!F16 -> 52241751.92 | U10: ='Formato 5'!G16 -> -110158248.1
A11: 5,1,8,1,0,0,0 | B11: 5 | C11: 1 | D11: 8 | E11: 1 | K11: Fondo General de Participaciones | P11: ='Formato 5'!B17 -> 108400000 | Q11: ='Formato 5'!C17 -> 6679876 | R11: ='Formato 5'!D17 -> 115079876 | S11: ='Formato 5'!E17 -> 35802942.8 | T11: ='Formato 5'!F17 -> 35802942.8 | U11: ='Formato 5'!G17 -> -72597057.2
A12: 5,1,8,2,0,0,0 | B12: 5 | C12: 1 | D12: 8 | E12: 2 | K12: Fondo de Fomento Municipal | P12: ='Formato 5'!B18 -> 29300000 | Q12: ='Formato 5'!C18 -> 2377654 | R12: ='Formato 5'!D18 -> 31677654 | S12: ='Formato 5'!E18 -> 9611232.88 | T12: ='Formato 5'!F18 -> 9611232.88 | U12: ='Formato 5'!G18 -> -19688767.12
A13: 5,1,8,3,0,0,0 | B13: 5 | C13: 1 | D13: 8 | E13: 3 | K13: Fondo de Fiscalización y Recaudación | P13: ='Formato 5'!B19 -> 8100000 | Q13: ='Formato 5'!C19 -> 341433 | R13: ='Formato 5'!D19 -> 8441433 | S13: ='Formato 5'!E19 -> 1953608.51 | T13: ='Formato 5'!F19 -> 1953608.51 | U13: ='Formato 5'!G19 -> -6146391.49
A14: 5,1,8,4,0,0,0 | B14: 5 | C14: 1 | D14: 8 | E14: 4 | K14: Fondo de Compensación | P14: ='Formato 5'!B20 -> 0 | Q14: ='Formato 5'!C20 -> 0 | R14: ='Formato 5'!D20 -> 0 | S14: ='Formato 5'!E20 -> 0 | T14: ='Formato 5'!F20 -> 0 | U14: ='Formato 5'!G20 -> 0
A15: 5,1,8,5,0,0,0 | B15: 5 | C15: 1 | D15: 8 | E15: 5 | K15: Fondo de Extracción de Hidrocarburos | P15: ='Formato 5'!B21 -> 0 | Q15: ='Formato 5'!C21 -> 0 | R15: ='Formato 5'!D21 -> 0 | S15: ='Formato 5'!E21 -> 0 | T15: ='Formato 5'!F21 -> 0 | U15: ='Formato 5'!G21 -> 0
A16: 5,1,8,6,0,0,0 | B16: 5 | C16: 1 | D16: 8 | E16: 6 | K16: Impuesto Especial Sobre Producción y Servicios | P16: ='Formato 5'!B22 -> 2800000 | Q16: ='Formato 5'!C22 -> -9335 | R16: ='Formato 5'!D22 -> 2790665 | S16: ='Formato 5'!E22 -> 954042.58 | T16: ='Formato 5'!F22 -> 954042.58 | U16: ='Formato 5'!G22 -> -1845957.42
A17: 5,1,8,7,0,0,0 | B17: 5 | C17: 1 | D17: 8 | E17: 7 | K17: 0.136% de la Recaudación Federal Participable | P17: ='Formato 5'!B23 -> 0 | Q17: ='Formato 5'!C23 -> 0 | R17: ='Formato 5'!D23 -> 0 | S17: ='Formato 5'!E23 -> 0 | T17: ='Formato 5'!F23 -> 0 | U17: ='Formato 5'!G23 -> 0
A18: 5,1,8,8,0,0,0 | B18: 5 | C18: 1 | D18: 8 | E18: 8 | K18: 3.17% Sobre Extracción de Petróleo | P18: ='Formato 5'!B24 -> 0 | Q18: ='Formato 5'!C24 -> 0 | R18: ='Formato 5'!D24 -> 0 | S18: ='Formato 5'!E24 -> 0 | T18: ='Formato 5'!F24 -> 0 | U18: ='Formato 5'!G24 -> 0
A19: 5,1,8,9,0,0,0 | B19: 5 | C19: 1 | D19: 8 | E19: 9 | K19: Gasolinas y Diésel | P19: ='Formato 5'!B25 -> 3200000 | Q19: ='Formato 5'!C25 -> -221196 | R19: ='Formato 5'!D25 -> 2978804 | S19: ='Formato 5'!E25 -> 778039.15 | T19: ='Formato 5'!F25 -> 778039.15 | U19: ='Formato 5'!G25 -> -2421960.85
A20: 5,1,8,10,0,0,0 | B20: 5 | C20: 1 | D20: 8 | E20: 10 | K20: Fondo del Impuesto Sobre la Renta | P20: ='Formato 5'!B26 -> 10600000 | Q20: ='Formato 5'!C26 -> -439950 | R20: ='Formato 5'!D26 -> 10160050 | S20: ='Formato 5'!E26 -> 3141886 | T20: ='Formato 5'!F26 -> 3141886 | U20: ='Formato 5'!G26 -> -7458114
A21: 5,1,8,11,0,0,0 | B21: 5 | C21: 1 | D21: 8 | E21: 11 | K21: Fondo de Estabilización de los Ingresos de las Entidades Federativas | P21: ='Formato 5'!B27 -> 0 | Q21: ='Formato 5'!C27 -> 0 | R21: ='Formato 5'!D27 -> 0 | S21: ='Formato 5'!E27 -> 0 | T21: ='Formato 5'!F27 -> 0 | U21: ='Formato 5'!G27 -> 0
A22: 5,1,9,0,0,0,0 | B22: 5 | C22: 1 | D22: 9 | J22: Incentivos Derivados de la Colaboración Fiscal | P22: ='Formato 5'!B28 -> 3600000 | Q22: ='Formato 5'!C28 -> -450762 | R22: ='Formato 5'!D28 -> 3149238 | S22: ='Formato 5'!E28 -> 966886.87 | T22: ='Formato 5'!F28 -> 966886.87 | U22: ='Formato 5'!G28 -> -2633113.13
A23: 5,1,9,1,0,0,0 | B23: 5 | C23: 1 | D23: 9 | E23: 1 | K23: Tenencia o Uso de Vehículos | P23: ='Formato 5'!B29 -> 40000 | Q23: ='Formato 5'!C29 -> 0 | R23: ='Formato 5'!D29 -> 40000 | S23: ='Formato 5'!E29 -> 1968.9 | T23: ='Formato 5'!F29 -> 1968.9 | U23: ='Formato 5'!G29 -> -38031.1
A24: 5,1,9,2,0,0,0 | B24: 5 | C24: 1 | D24: 9 | E24: 2 | K24: Fondo de Compensación ISAN | P24: ='Formato 5'!B30 -> 300000 | Q24: ='Formato 5'!C30 -> 30182 | R24: ='Formato 5'!D30 -> 330182 | S24: ='Formato 5'!E30 -> 82545.45 | T24: ='Formato 5'!F30 -> 82545.45 | U24: ='Formato 5'!G30 -> -217454.55
A25: 5,1,9,3,0,0,0 | B25: 5 | C25: 1 | D25: 9 | E25: 3 | K25: Impuesto Sobre Automóviles Nuevos | P25: ='Formato 5'!B31 -> 1900000 | Q25: ='Formato 5'!C31 -> -220145 | R25: ='Formato 5'!D31 -> 1679855 | S25: ='Formato 5'!E31 -> 492465.26 | T25: ='Formato 5'!F31 -> 492465.26 | U25: ='Formato 5'!G31 -> -1407534.74
A26: 5,1,9,4,0,0,0 | B26: 5 | C26: 1 | D26: 9 | E26: 4 | K26: Fondo de Compensación de Repecos-Intermedios | P26: ='Formato 5'!B32 -> 0 | Q26: ='Formato 5'!C32 -> 0 | R26: ='Formato 5'!D32 -> 0 | S26: ='Formato 5'!E32 -> 0 | T26: ='Formato 5'!F32 -> 0 | U26: ='Formato 5'!G32 -> 0
A27: 5,1,9,5,0,0,0 | B27: 5 | C27: 1 | D27: 9 | E27: 5 | K27: Otros Incentivos Económicos | P27: ='Formato 5'!B33 -> 1360000 | Q27: ='Formato 5'!C33 -> -260799 | R27: ='Formato 5'!D33 -> 1099201 | S27: ='Formato 5'!E33 -> 389907.26 | T27: ='Formato 5'!F33 -> 389907.26 | U27: ='Formato 5'!G33 -> -970092.74
A28: 5,1,10,0,0,0,0 | B28: 5 | C28: 1 | D28: 10 | J28: Transferencias | P28: ='Formato 5'!B34 -> 0 | Q28: ='Formato 5'!C34 -> 0 | R28: ='Formato 5'!D34 -> 0 | S28: ='Formato 5'!E34 -> 0 | T28: ='Formato 5'!F34 -> 0 | U28: ='Formato 5'!G34 -> 0
A29: 5,1,11,0,0,0,0 | B29: 5 | C29: 1 | D29: 11 | J29: Convenios | P29: ='Formato 5'!B35 -> 0 | Q29: ='Formato 5'!C35 -> 0 | R29: ='Formato 5'!D35 -> 0 | S29: ='Formato 5'!E35 -> 0 | T29: ='Formato 5'!F35 -> 0 | U29: ='Formato 5'!G35 -> 0
A30: 5,1,11,1,0,0,0 | B30: 5 | C30: 1 | D30: 11 | E30: 1 | K30: Otros Convenios y Subsidios | P30: ='Formato 5'!B36 -> 0 | Q30: ='Formato 5'!C36 -> 0 | R30: ='Formato 5'!D36 -> 0 | S30: ='Formato 5'!E36 -> 0 | T30: ='Formato 5'!F36 -> 0 | U30: ='Formato 5'!G36 -> 0
A31: 5,1,12,0,0,0,0 | B31: 5 | C31: 1 | D31: 12 | J31: Otros Ingresos de Libre Disposición (L=l1+l2) | P31: ='Formato 5'!B37 -> 0 | Q31: ='Formato 5'!C37 -> 0 | R31: ='Formato 5'!D37 -> 0 | S31: ='Formato 5'!E37 -> 0 | T31: ='Formato 5'!F37 -> 0 | U31: ='Formato 5'!G37 -> 0
A32: 5,1,12,1,0,0,0 | B32: 5 | C32: 1 | D32: 12 | E32: 1 | K32: Participaciones en Ingresos Locales | P32: ='Formato 5'!B38 -> 0 | Q32: ='Formato 5'!C38 -> 0 | R32: ='Formato 5'!D38 -> 0 | S32: ='Formato 5'!E38 -> 0 | T32: ='Formato 5'!F38 -> 0 | U32: ='Formato 5'!G38 -> 0
A33: 5,1,12,2,0,0,0 | B33: 5 | C33: 1 | D33: 12 | E33: 2 | K33: Otros Ingresos de Libre Disposición | P33: ='Formato 5'!B39 -> 0 | Q33: ='Formato 5'!C39 -> 0 | R33: ='Formato 5'!D39 -> 0 | S33: ='Formato 5'!E39 -> 0 | T33: ='Formato 5'!F39 -> 0 | U33: ='Formato 5'!G39 -> 0
A34: 5,2,0,0,0,0,0 | B34: 5 | C34: 2 | I34: Total de Ingresos de Libre Disposición | P34: ='Formato 5'!B41 -> 232000000 | Q34: ='Formato 5'!C41 -> 8277720 | R34: ='Formato 5'!D41 -> 240277720 | S34: ='Formato 5'!E41 -> 79967207.18 | T34: ='Formato 5'!F41 -> 79967207.18 | U34: ='Formato 5'!G41 -> -152032792.8
A35: 5,3,0,0,0,0,0 | B35: 5 | C35: 3 | I35: Ingresos Excedentes de Ingresos de Libre Disposición | U35: ='Formato 5'!G42 -> 0
A36: 5,4,0,0,0,0,0 | B36: 5 | C36: 4 | I36: Transferencias Federales Etiquetadas
A37: 5,4,1,0,0,0,0 | B37: 5 | C37: 4 | D37: 1 | J37: Aportaciones | P37: ='Formato 5'!B45 -> 182000000 | Q37: ='Formato 5'!C45 -> 8500000 | R37: ='Formato 5'!D45 -> 190500000 | S37: ='Formato 5'!E45 -> 51854492.84 | T37: ='Formato 5'!F45 -> 51854492.84 | U37: ='Formato 5'!G45 -> -130145507.2
A38: 5,4,1,1,0,0,0 | B38: 5 | C38: 4 | D38: 1 | E38: 1 | K38: Fondo de Aportaciones para la Nómina Educativa y Gasto Operativo | P38: ='Formato 5'!B46 -> 0 | Q38: ='Formato 5'!C46 -> 0 | R38: ='Formato 5'!D46 -> 0 | S38: ='Formato 5'!E46 -> 0 | T38: ='Formato 5'!F46 -> 0 | U38: ='Formato 5'!G46 -> 0
A39: 5,4,1,2,0,0,0 | B39: 5 | C39: 4 | D39: 1 | E39: 2 | K39: Fondo de Aportaciones para los Servicios de Salud | P39: ='Formato 5'!B47 -> 0 | Q39: ='Formato 5'!C47 -> 0 | R39: ='Formato 5'!D47 -> 0 | S39: ='Formato 5'!E47 -> 0 | T39: ='Formato 5'!F47 -> 0 | U39: ='Formato 5'!G47 -> 0
A40: 5,4,1,3,0,0,0 | B40: 5 | C40: 4 | D40: 1 | E40: 3 | K40: Fondo de Aportaciones para la Infraestructura Social | P40: ='Formato 5'!B48 -> 84000000 | Q40: ='Formato 5'!C48 -> -4500000 | R40: ='Formato 5'!D48 -> 79500000 | S40: ='Formato 5'!E48 -> 23801230.38 | T40: ='Formato 5'!F48 -> 23801230.38 | U40: ='Formato 5'!G48 -> -60198769.62
A41: 5,4,1,4,0,0,0 | B41: 5 | C41: 4 | D41: 1 | E41: 4 | K41: Fondo de Aportaciones para el Fortalecimiento de los Municipios y de las Demarcaciones Territoriales del Distrito Federal | P41: ='Formato 5'!B49 -> 98000000 | Q41: ='Formato 5'!C49 -> 13000000 | R41: ='Formato 5'!D49 -> 111000000 | S41: ='Formato 5'!E49 -> 28053262.46 | T41: ='Formato 5'!F49 -> 28053262.46 | U41: ='Formato 5'!G49 -> -69946737.54
A42: 5,4,1,5,0,0,0 | B42: 5 | C42: 4 | D42: 1 | E42: 5 | K42: Fondo de Aportaciones Múltiples | P42: ='Formato 5'!B50 -> 0 | Q42: ='Formato 5'!C50 -> 0 | R42: ='Formato 5'!D50 -> 0 | S42: ='Formato 5'!E50 -> 0 | T42: ='Formato 5'!F50 -> 0 | U42: ='Formato 5'!G50 -> 0
A43: 5,4,1,6,0,0,0 | B43: 5 | C43: 4 | D43: 1 | E43: 6 | K43: Fondo de Aportaciones para la Educación Tecnológica y de Adultos | P43: ='Formato 5'!B51 -> 0 | Q43: ='Formato 5'!C51 -> 0 | R43: ='Formato 5'!D51 -> 0 | S43: ='Formato 5'!E51 -> 0 | T43: ='Formato 5'!F51 -> 0 | U43: ='Formato 5'!G51 -> 0
A44: 5,4,1,7,0,0,0 | B44: 5 | C44: 4 | D44: 1 | E44: 7 | K44: Fondo de Aportaciones para la Seguridad Pública de los Estados y del Distrito Federal | P44: ='Formato 5'!B52 -> 0 | Q44: ='Formato 5'!C52 -> 0 | R44: ='Formato 5'!D52 -> 0 | S44: ='Formato 5'!E52 -> 0 | T44: ='Formato 5'!F52 -> 0 | U44: ='Formato 5'!G52 -> 0
A45: 5,4,1,8,0,0,0 | B45: 5 | C45: 4 | D45: 1 | E45: 8 | K45: Fondo de Aportaciones para el Fortalecimiento de las Entidades Federativas | P45: ='Formato 5'!B53 -> 0 | Q45: ='Formato 5'!C53 -> 0 | R45: ='Formato 5'!D53 -> 0 | S45: ='Formato 5'!E53 -> 0 | T45: ='Formato 5'!F53 -> 0 | U45: ='Formato 5'!G53 -> 0
A46: 5,4,2,0,0,0,0 | B46: 5 | C46: 4 | D46: 2 | J46: Convenios | P46: ='Formato 5'!B54 -> 86000000 | Q46: ='Formato 5'!C54 -> 0 | R46: ='Formato 5'!D54 -> 86000000 | S46: ='Formato 5'!E54 -> 0 | T46: ='Formato 5'!F54 -> 0 | U46: ='Formato 5'!G54 -> -86000000
A47: 5,4,2,1,0,0,0 | B47: 5 | C47: 4 | D47: 2 | E47: 1 | K47: Convenios de Protección Social en Salud | P47: ='Formato 5'!B55 -> 0 | Q47: ='Formato 5'!C55 -> 0 | R47: ='Formato 5'!D55 -> 0 | S47: ='Formato 5'!E55 -> 0 | T47: ='Formato 5'!F55 -> 0 | U47: ='Formato 5'!G55 -> 0
A48: 5,4,2,2,0,0,0 | B48: 5 | C48: 4 | D48: 2 | E48: 2 | K48: Convenios de Descentralización | P48: ='Formato 5'!B56 -> 0 | Q48: ='Formato 5'!C56 -> 0 | R48: ='Formato 5'!D56 -> 0 | S48: ='Formato 5'!E56 -> 0 | T48: ='Formato 5'!F56 -> 0 | U48: ='Formato 5'!G56 -> 0
A49: 5,4,2,3,0,0,0 | B49: 5 | C49: 4 | D49: 2 | E49: 3 | K49: Convenios de Reasignación | P49: ='Formato 5'!B57 -> 0 | Q49: ='Formato 5'!C57 -> 0 | R49: ='Formato 5'!D57 -> 0 | S49: ='Formato 5'!E57 -> 0 | T49: ='Formato 5'!F57 -> 0 | U49: ='Formato 5'!G57 -> 0
A50: 5,4,2,4,0,0,0 | B50: 5 | C50: 4 | D50: 2 | E50: 4 | K50: Otros Convenios y Subsidios | P50: ='Formato 5'!B58 -> 86000000 | Q50: ='Formato 5'!C58 -> 0 | R50: ='Formato 5'!D58 -> 86000000 | S50: ='Formato 5'!E58 -> 0 | T50: ='Formato 5'!F58 -> 0 | U50: ='Formato 5'!G58 -> -86000000
A51: 5,4,3,0,0,0,0 | B51: 5 | C51: 4 | D51: 3 | J51: Fondos Distintos de Aportaciones | P51: ='Formato 5'!B59 -> 0 | Q51: ='Formato 5'!C59 -> 0 | R51: ='Formato 5'!D59 -> 0 | S51: ='Formato 5'!E59 -> 0 | T51: ='Formato 5'!F59 -> 0 | U51: ='Formato 5'!G59 -> 0
A52: 5,4,3,1,0,0,0 | B52: 5 | C52: 4 | D52: 3 | E52: 1 | K52: Fondo para Entidades Federativas y Municipios Productores de Hidrocarburos | P52: ='Formato 5'!B60 -> 0 | Q52: ='Formato 5'!C60 -> 0 | R52: ='Formato 5'!D60 -> 0 | S52: ='Formato 5'!E60 -> 0 | T52: ='Formato 5'!F60 -> 0 | U52: ='Formato 5'!G60 -> 0
A53: 5,4,3,2,0,0,0 | B53: 5 | C53: 4 | D53: 3 | E53: 2 | K53: Fondo Minero | P53: ='Formato 5'!B61 -> 0 | Q53: ='Formato 5'!C61 -> 0 | R53: ='Formato 5'!D61 -> 0 | S53: ='Formato 5'!E61 -> 0 | T53: ='Formato 5'!F61 -> 0 | U53: ='Formato 5'!G61 -> 0
A54: 5,4,4,0,0,0,0 | B54: 5 | C54: 4 | D54: 4 | J54: Transferencias, Subsidios y Subvenciones, y Pensiones y Jubilaciones | P54: ='Formato 5'!B62 -> 0 | Q54: ='Formato 5'!C62 -> 0 | R54: ='Formato 5'!D62 -> 0 | S54: ='Formato 5'!E62 -> 0 | T54: ='Formato 5'!F62 -> 0 | U54: ='Formato 5'!G62 -> 0
A55: 5,4,5,0,0,0,0 | B55: 5 | C55: 4 | D55: 5 | J55: Otras Transferencias Federales Etiquetadas | P55: ='Formato 5'!B63 -> 0 | Q55: ='Formato 5'!C63 -> 0 | R55: ='Formato 5'!D63 -> 0 | S55: ='Formato 5'!E63 -> 0 | T55: ='Formato 5'!F63 -> 0 | U55: ='Formato 5'!G63 -> 0
A56: 5,5,0,0,0,0,0 | B56: 5 | C56: 5 | I56: Total de Transferencias Federales Etiquetadas | P56: ='Formato 5'!B65 -> 268000000 | Q56: ='Formato 5'!C65 -> 8500000 | R56: ='Formato 5'!D65 -> 276500000 | S56: ='Formato 5'!E65 -> 51854492.84 | T56: ='Formato 5'!F65 -> 51854492.84 | U56: ='Formato 5'!G65 -> -216145507.2
A57: 5,6,0,0,0,0,0 | B57: 5 | C57: 6 | I57: Ingresos Derivados de Financiamientos | P57: ='Formato 5'!B67 -> 0 | Q57: ='Formato 5'!C67 -> 39142995.87 | R57: ='Formato 5'!D67 -> 39142995.87 | S57: ='Formato 5'!E67 -> 24266994.18 | T57: ='Formato 5'!F67 -> 24266994.18 | U57: ='Formato 5'!G67 -> 24266994.18
A58: 5,6,1,0,0,0,0 | B58: 5 | C58: 6 | D58: 1 | J58: Ingresos Derivados de Financiamientos | P58: ='Formato 5'!B68 -> 0 | Q58: ='Formato 5'!C68 -> 39142995.87 | R58: ='Formato 5'!D68 -> 39142995.87 | S58: ='Formato 5'!E68 -> 24266994.18 | T58: ='Formato 5'!F68 -> 24266994.18 | U58: ='Formato 5'!G68 -> 24266994.18
A59: 5,7,0,0,0,0,0 | B59: 5 | C59: 7 | I59: Datos Informativos
A60: 5,7,1,0,0,0,0 | B60: 5 | C60: 7 | D60: 1 | J60: Ingresos Derivados de Financiamientos con Fuente de Pago de Ingresos de Libre Disposición | P60: ='Formato 5'!B73 -> 0 | Q60: ='Formato 5'!C73 -> 0 | R60: ='Formato 5'!D73 -> 0 | S60: ='Formato 5'!E73 -> 0 | T60: ='Formato 5'!F73 -> 0 | U60: ='Formato 5'!G73 -> 0
A61: 5,7,2,0,0,0,0 | B61: 5 | C61: 7 | D61: 2 | J61: Ingresos Derivados de Financiamientos con Fuente de Pago de Transferencias Federales Etiquetadas | P61: ='Formato 5'!B74 -> 0 | Q61: ='Formato 5'!C74 -> 0 | R61: ='Formato 5'!D74 -> 0 | S61: ='Formato 5'!E74 -> 0 | T61: ='Formato 5'!F74 -> 0 | U61: ='Formato 5'!G74 -> 0
A62: 5,7,3,0,0,0,0 | B62: 5 | C62: 7 | D62: 3 | J62: Ingresos Derivados de Financiamientos | P62: ='Formato 5'!B75 -> 0 | Q62: ='Formato 5'!C75 -> 0 | R62: ='Formato 5'!D75 -> 0 | S62: ='Formato 5'!E75 -> 0 | T62: ='Formato 5'!F75 -> 0 | U62: ='Formato 5'!G75 -> 0

Sheet Formato 6 a)
A1: Formato 6 a) Estado Analítico del Ejercicio del Presupuesto de Egresos Detallado - LDF (Clasificación por Objeto del Gasto)
A2: =ENTE_PUBLICO_A -> Municipio de Valle de Santiago, Gto., Gobierno del Estado de Guanajuato (a)
A3: Estado Analítico del Ejercicio del Presupuesto de Egresos Detallado - LDF
A4: Clasificación por Objeto del Gasto (Capítulo y Concepto)
A5: =TRIMESTRE -> Del 1 de enero al 30 de marzo de 2022 (b)
A6: (PESOS)
A7: Concepto (c) | B7: Egresos | G7: Subejercicio (e)
B8: Aprobado (d) | C8: Ampliaciones/ (Reducciones) | D8: Modificado | E8: Devengado | F8: Pagado
A9: I. Gasto No Etiquetado (I=A+B+C+D+E+F+G+H+I) | B9: =SUM(B10,B18,B28,B38,B48,B58,B62,B71,B75) -> 232000000 | C9: 19384465.9 | D9: 251384465.9 | E9: 44527266.35 | F9: 43778673.94 | G9: =SUM(G10,G18,G28,G38,G48,G58,G62,G71,G75) -> 206857199.6
A10: A. Servicios Personales (A=a1+a2+a3+a4+a5+a6+a7) | B10: =SUM(B11:B17) -> 109782618 | C10: =SUM(C11:C17) -> 0 | D10: =SUM(D11:D17) -> 109782618 | E10: 22574450.21 | F10: 22138386.4 | G10: 87208167.79
A11: a1) Remuneraciones al Personal de Carácter Permanente | B11: 71472536 | C11: 0 | D11: =B11+C11 -> 71472536 | E11: 16447055.22 | F11: 16441881.74 | G11: =D11-E11 -> 55025480.78
A12: a2) Remuneraciones al Personal de Carácter Transitorio | B12: 1746000 | C12: 0 | D12: =B12+C12 -> 1746000 | E12: 606597.83 | F12: 606597.83 | G12: 1139402.17
A13: a3) Remuneraciones Adicionales y Especiales | B13: 14442950 | C13: 0 | D13: 14442950 | E13: 526838.69 | F13: 469672.4 | G13: 13916111.31
A14: a4) Seguridad Social | B14: 5650000 | C14: 0 | D14: 5650000 | E14: 1172211.17 | F14: 825798.8 | G14: 4477788.83
A15: a5) Otras Prestaciones Sociales y Económicas | B15: 16471132 | C15: 0 | D15: 16471132 | E15: 3821747.3 | F15: 3794435.63 | G15: 12649384.7
A16: a6) Previsiones | B16: 0 | C16: 0 | D16: 0 | E16: 0 | F16: 0 | G16: 0
A17: a7) Pago de Estímulos a Servidores Públicos | B17: 0 | C17: 0 | D17: 0 | E17: 0 | F17: 0 | G17: 0
A18: B. Materiales y Suministros (B=b1+b2+b3+b4+b5+b6+b7+b8+b9) | B18: =SUM(B19:B27) -> 13292243.81 | C18: =SUM(C19:C27) -> 472800 | D18: 13765043.81 | E18: 2321997.29 | F18: 2321997.29 | G18: =SUM(G19:G27) -> 11443046.52
A19: b1) Materiales de Administración, Emisión de Documentos y Artículos Oficiales | B19: 3618500 | C19: 39500 | D19: =B19+C19 -> 3658000 | E19: 754012.5 | F19: 754012.5 | G19: =D19-E19 -> 2903987.5
A20: b2) Alimentos y Utensilios | B20: 792243.81 | C20: 33000 | D20: 825243.81 | E20: 85590.04 | F20: 85590.04 | G20: 739653.77
A21: b3) Materias Primas y Materiales de Producción y Comercialización | B21: 9000 | C21: 0 | D21: 9000 | E21: 0 | F21: 0 | G21: 9000
A22: b4) Materiales y Artículos de Construcción y de Reparación | B22: 2448000 | C22: 38800 | D22: 2486800 | E22: 601492.02 | F22: 601492.02 | G22: 1885307.98
A23: b5) Productos Químicos, Farmacéuticos y de Laboratorio | B23: 895000 | C23: 90500 | D23: 985500 | E23: 100986.71 | F23: 100986.71 | G23: 884513.29
A24: b6) Combustibles, Lubricantes y Aditivos | B24: 2642000 | C24: -76000 | D24: 2566000 | E24: 467397.05 | F24: 467397.05 | G24: 2098602.95
A25: b7) Vestuario, Blancos, Prendas de Protección y Artículos Deportivos | B25: 1725000 | C25: 140000 | D25: 1865000 | E25: 50083.28 | F25: 50083.28 | G25: 1814916.72
A26: b8) Materiales y Suministros Para Seguridad | B26: 0 | C26: 0 | D26: 0 | E26: 0 | F26: 0 | G26: 0
A27: b9) Herramientas, Refacciones y Accesorios Menores | B27: 1162500 | C27: 207000 | D27: 1369500 | E27: 262435.69 | F27: 262435.69 | G27: 1107064.31
A28: C. Servicios Generales (C=c1+c2+c3+c4+c5+c6+c7+c8+c9) | B28: =SUM(B29:B37) -> 46494309 | C28: =SUM(C29:C37) -> 3579826 | D28: 50074135 | E28: 7560839.66 | F28: 7501996.17 | G28: 42513295.34
A29: c1) Servicios Básicos | B29: 16181500 | C29: 6200 | D29: =B29+C29 -> 16187700 | E29: 2630450.09 | F29: 2630450.09 | G29: 13557249.91
A30: c2) Servicios de Arrendamiento | B30: 1046115 | C30: 57500 | D30: =B30+C30 -> 1103615 | E30: 116001.18 | F30: 116001.18 | G30: 987613.82
A31: c3) Servicios Profesionales, Científicos, Técnicos y Otros Servicios | B31: 6186400 | C31: 2081926 | D31: 8268326 | E31: 528103.58 | F31: 528103.58 | G31: 7740222.42
A32: c4) Servicios Financieros, Bancarios y Comerciales | B32: 1500000 | C32: 0 | D32: 1500000 | E32: 318147.56 | F32: 318146.07 | G32: 1181852.44
A33: c5) Servicios de Instalación, Reparación, Mantenimiento y Conservación | B33: 917594 | C33: 64200 | D33: 981794 | E33: 317909.5 | F33: 317909.5 | G33: 663884.5
A34: c6) Servicios de Comunicación Social y Publicidad | B34: 2626000 | C34: 0 | D34: 2626000 | E34: 163960.94 | F34: 163960.94 | G34: 2462039.06
A35: c7) Servicios de Traslado y Viáticos | B35: 362700 | C35: 9000 | D35: 371700 | E35: 12246.08 | F35: 12246.08 | G35: 359453.92
A36: c8) Servicios Oficiales | B36: 2266000 | C36: 168000 | D36: 2434000 | E36: 243923.63 | F36: 243923.63 | G36: 2190076.37
A37: c9) Otros Servicios Generales | B37: 15408000 | C37: 1193000 | D37: 16601000 | E37: 3230097.1 | F37: 3171255.1 | G37: 13370902.9
A38: D. Transferencias, Asignaciones, Subsidios y Otras Ayudas (D=d1+d2+d3+d4+d5+d6+d7+d8+d9) | B38: =SUM(B39:B47) -> 38102829.19 | C38: =SUM(C39:C47) -> 1860627.64 | D38: 39963456.83 | E38: =SUM(E39:E47) -> 7498705.21 | F38: 7498705.21 | G38: 32464751.62
A39: d1) Transferencias Internas y Asignaciones al Sector Público | B39: 0 | C39: 0 | D39: =B39+C39 -> 0 | E39: 0 | F39: 0 | G39: 0
A40: d2) Transferencias al Resto del Sector Público | B40: 16020656.19 | C40: 0 | D40: =B40+C40 -> 16020656.19 | E40: 4005164.04 | F40: 4005164.04 | G40: 12015492.15
A41: d3) Subsidios y Subvenciones | B41: 0 | C41: 539093.64 | D41: 539093.64 | E41: 0 | F41: 0 | G41: 539093.64
A42: d4) Ayudas Sociales | B42: 13820000 | C42: 1321534 | D42: 15141534 | E42: 1919486.47 | F42: 1919486.47 | G42: 13222047.53
A43: d5) Pensiones y Jubilaciones | B43: 8262173 | C43: 0 | D43: 8262173 | E43: 1574054.7 | F43: 1574054.7 | G43: 6688118.3
A44: d6) Transferencias a Fideicomisos, Mandatos y Otros Análogos | B44: 0 | C44: 0 | D44: 0 | E44: 0 | F44: 0 | G44: 0
A45: d7) Transferencias a la Seguridad Social | B45: 0 | C45: 0 | D45: 0 | E45: 0 | F45: 0 | G45: 0
A46: d8) Donativos | B46: 0 | C46: 0 | D46: 0 | E46: 0 | F46: 0 | G46: 0
A47: d9) Transferencias al Exterior | B47: 0 | C47: 0 | D47: 0 | E47: 0 | F47: 0 | G47: 0
A48: E. Bienes Muebles, Inmuebles e Intangibles (E=e1+e2+e3+e4+e5+e6+e7+e8+e9) | B48: =SUM(B49:B57) -> 2328000 | C48: =SUM(C49:C57) -> 50000 | D48: 2378000 | E48: 35953.96 | F48: 5329.96 | G48: 2342046.04
A49: e1) Mobiliario y Equipo de Administración | B49: 294000 | C49: 0 | D49: =B49+C49 -> 294000 | E49: 5329.96 | F49: 5329.96 | G49: 288670.04
A50: e2) Mobiliario y Equipo Educacional y Recreativo | B50: 80000 | C50: 50000 | D50: =B50+C50 -> 130000 | E50: 30624 | F50: 0 | G50: 99376
A51: e3) Equipo e Instrumental Médico y de Laboratorio | B51: 100000 | C51: 0 | D51: 100000 | E51: 0 | F51: 0 | G51: 100000
A52: e4) Vehículos y Equipo de Transporte | B52: 0 | C52: 0 | D52: 0 | E52: 0 | F52: 0 | G52: 0
A53: e5) Equipo de Defensa y Seguridad | B53: 0 | C53: 0 | D53: 0 | E53: 0 | F53: 0 | G53: 0
A54: e6) Maquinaria, Otros Equipos y Herramientas | B54: 254000 | C54: 0 | D54: 254000 | E54: 0 | F54: 0 | G54: 254000
A55: e7) Activos Biológicos | B55: 0 | C55: 0 | D55: 0 | E55: 0 | F55: 0 | G55: 0
A56: e8) Bienes Inmuebles | B56: 1600000 | C56: 0 | D56: 1600000 | E56: 0 | F56: 0 | G56: 1600000
A57: e9) Activos Intangibles | B57: 0 | C57: 0 | D57: 0 | E57: 0 | F57: 0 | G57: 0
A58: F. Inversión Pública (F=f1+f2+f3) | B58: =SUM(B59:B61) -> 22000000 | C58: =SUM(C59:C61) -> 11781749.51 | D58: 33781749.51 | E58: 3595857.27 | F58: 3372796.16 | G58: 30185892.24
A59: f1) Obra Pública en Bienes de Dominio Público | B59: 22000000 | C59: 11652934.47 | D59: =B59+C59 -> 33652934.47 | E59: 3467902.67 | F59: 3244841.56 | G59: 30185031.8
A60: f2) Obra Pública en Bienes Propios | B60: 0 | C60: 128815.04 | D60: =B60+C60 -> 128815.04 | E60: 127954.6 | F60: 127954.6 | G60: 860.44
A61: f3) Proyectos Productivos y Acciones de Fomento | B61: 0 | C61: 0 | D61: 0 | E61: 0 | F61: 0 | G61: 0
A62: G. Inversiones Financieras y Otras Provisiones (G=g1+g2+g3+g4+g5+g6+g7) | B62: =SUM(B63:B67,B69:B70) -> 0 | C62: 0 | D62: =SUM(D63:D67) -> 0 | E62: =SUM(E63:E67,E69:E70) -> 0 | F62: 0 | G62: 0
A63: g1) Inversiones Para el Fomento de Actividades Productivas | B63: 0 | C63: 0 | D63: =B63+C63 -> 0 | E63: 0 | F63: 0 | G63: 0
A64: g2) Acciones y Participaciones de Capital | B64: 0 | C64: 0 | D64: =B64+C64 -> 0 | E64: 0 | F64: 0 | G64: 0
A65: g3) Compra de Títulos y Valores | B65: 0 | C65: 0 | D65: 0 | E65: 0 | F65: 0 | G65: 0
A66: g4) Concesión de Préstamos | B66: 0 | C66: 0 | D66: 0 | E66: 0 | F66: 0 | G66: 0
A67: g5) Inversiones en Fideicomisos, Mandatos y Otros Análogos | B67: 0 | C67: 0 | D67: 0 | E67: 0 | F67: 0 | G67: 0
A68: Fideicomiso de Desastres Naturales (Informativo) | B68: 0 | C68: 0 | D68: 0 | E68: 0 | F68: 0 | G68: 0
A69: g6) Otras Inversiones Financieras | B69: 0 | C69: 0 | D69: 0 | E69: 0 | F69: 0 | G69: 0
A70: g7) Provisiones para Contingencias y Otras Erogaciones Especiales | B70: 0 | C70: 0 | D70: 0 | E70: 0 | F70: 0 | G70: 0
B71: =SUM(B72:B74) -> 0 | C71: =SUM(C72:C74) -> 1639462.75 | D71: =SUM(D72:D74) -> 1639462.75 | E71: 939462.75 | F71: 939462.75 | G71: 700000
A72: h1) Participaciones | B72: 0 | C72: 0 | D72: =B72+C72 -> 0 | E72: 0 | F72: 0 | G72: 0
A73: h2) Aportaciones | B73: 0 | C73: 0 | D73: =B73+C73 -> 0 | E73: 0 | F73: 0 | G73: 0
A74: h3) Convenios | B74: 0 | C74: 1639462.75 | D74: 1639462.75 | E74: 939462.75 | F74: 939462.75 | G74: 700000
A75: I. Deuda Pública (I=i1+i2+i3+i4+i5+i6+i7) | B75: =SUM(B76:B82) -> 0 | C75: =SUM(C76:C82) -> 0 | D75: =SUM(D76:D82) -> 0 | E75: 0 | F75: 0 | G75: 0
A76: i1) Amortización de la Deuda Pública | B76: 0 | C76: 0 | D76: =B76+C76 -> 0 | E76: 0 | F76: 0 | G76: =D76-E76 -> 0
A77: i2) Intereses de la Deuda Pública | B77: 0 | C77: 0 | D77: =B77+C77 -> 0 | E77: 0 | F77: 0 | G77: 0
A78: i3) Comisiones de la Deuda Pública | B78: 0 | C78: 0 | D78: 0 | E78: 0 | F78: 0 | G78: 0
A79: i4) Gastos de la Deuda Pública | B79: 0 | C79: 0 | D79: 0 | E79: 0 | F79: 0 | G79: 0
A80: i5) Costo por Coberturas | B80: 0 | C80: 0 | D80: 0 | E80: 0 | F80: 0 | G80: 0
A81: i6) Apoyos Financieros | B81: 0 | C81: 0 | D81: 0 | E81: 0 | F81: 0 | G81: 0
A82: i7) Adeudos de Ejercicios Fiscales Anteriores (ADEFAS) | B82: 0 | C82: 0 | D82: 0 | E82: 0 | F82: 0 | G82: 0
